Service Heads (T),Executive (T),Director (T),Service Managers (T),Cost centre,Cost centre (T),Account,Account (T),Transaction number,Transaction Date,Period,Amount,Customer/supplier ID,Customer/supplier Name
AD Regulated Provision,Revenue Budgets,Childrens Services,CS Commissioning Service,A0492,Agency Fostercare,A56000,Other Establishments,30161908,31/07/2022,202308,"7,368.39",132099,Five Rivers Childcare Ltd
AD Regulated Provision,Revenue Budgets,Childrens Services,Children in Care Disability,A0509,Unaccomp Childr Asylum Seekers,A44050,Translating & Interpreter Services,30166025,27/11/2022,202308,383.75,122711,HE Words
AD Regulated Provision,Revenue Budgets,Childrens Services,CS Residential Homes,A1718,Staying Close Project,A22005,Building Rents,30164653,04/01/2023,202308,"7,500.00",102869,Foresight Nel Ltd
AD Regulated Provision,Revenue Budgets,Childrens Services,CS Residential Homes,A1718,Staying Close Project,A56000,Other Establishments,30164657,04/01/2023,202308,"2,500.00",102869,Foresight Nel Ltd
AD Regulated Provision,Revenue Budgets,Childrens Services,CS Residential Homes,A1718,Staying Close Project,A20005,"Property Repairs, Maintenance & Alterations",30164663,20/01/2023,202308,570.00,102869,Foresight Nel Ltd
AD Regulated Provision,Revenue Budgets,Childrens Services,CS Residential Homes,A1718,Staying Close Project,A20005,"Property Repairs, Maintenance & Alterations",30164659,06/03/2023,202308,504.00,102869,Foresight Nel Ltd
AD Regulated Provision,Revenue Budgets,Childrens Services,CS Residential Homes,A1718,Staying Close Project,A56000,Other Establishments,30160856,01/05/2023,202308,"4,200.00",1000106,Gravity Red Inspires
AD Regulated Provision,Revenue Budgets,Childrens Services,CS Residential Homes,A1718,Staying Close Project,A22005,Building Rents,30164660,03/05/2023,202308,"10,385.10",102869,Foresight Nel Ltd
AD Regulated Provision,Revenue Budgets,Childrens Services,CS Commissioning Service,A1789,Childrens Serv Supp Housing,A56000,Other Establishments,30165316,16/05/2023,202308,"3,517.50",1002181,Velox Healthcare
AD Regulated Provision,Revenue Budgets,Childrens Services,CS Commissioning Service,A0492,Agency Fostercare,A56000,Other Establishments,30161329,30/06/2023,202308,"7,344.60",132099,Five Rivers Childcare Ltd
AD Regulated Provision,Revenue Budgets,Childrens Services,CS Residential Homes,A1718,Staying Close Project,A56000,Other Establishments,30160853,01/07/2023,202308,"1,944.00",1000106,Gravity Red Inspires
AD Regulated Provision,Revenue Budgets,Childrens Services,CS Residential Homes,A1718,Staying Close Project,A56000,Other Establishments,30165116,01/07/2023,202308,"4,536.00",1000106,Gravity Red Inspires
AD Regulated Provision,Revenue Budgets,Childrens Services,CS Commissioning Service,A1789,Childrens Serv Supp Housing,A56000,Other Establishments,30156088,31/07/2023,202308,"13,584.00",REDACTED PERSONAL INFORMATION,REDACTED PERSONAL INFORMATION
AD Regulated Provision,Revenue Budgets,Childrens Services,CS Commissioning Service,A1789,Childrens Serv Supp Housing,A56000,Other Establishments,30163688,01/08/2023,202308,"15,713.09",1000106,Gravity Red Inspires
AD Regulated Provision,Revenue Budgets,Childrens Services,CS Commissioning Service,A0273,Agency Placement,A56000,Other Establishments,30136429,03/08/2023,202308,"32,873.00",1005664,Shyne Together
AD Regulated Provision,Revenue Budgets,Childrens Services,Children in Care Disability,A0517,Direct Payments Scheme,A61135,Direct Payments,30160095,15/08/2023,202308,"2,739.00",1002181,Velox Healthcare
AD Regulated Provision,Revenue Budgets,Childrens Services,Children in Care Disability,A0509,Unaccomp Childr Asylum Seekers,A61163,Driving Lessons,30166027,18/08/2023,202308,350.00,1008417,Waiss Driving School
AD Regulated Provision,Revenue Budgets,Childrens Services,CS Commissioning Service,A0273,Agency Placement,A56000,Other Establishments,30139949,21/08/2023,202308,"1,424.45",1005310,Horizon Care & Education Group Ltd
AD Regulated Provision,Revenue Budgets,Childrens Services,Children in Care Disability,A0517,Direct Payments Scheme,A61135,Direct Payments,30160091,22/08/2023,202308,"2,739.00",1002181,Velox Healthcare
AD Regulated Provision,Revenue Budgets,Childrens Services,CS Commissioning Service,A0273,Agency Placement,A56000,Other Establishments,30158578,31/08/2023,202308,"24,357.14",137992,Halliwell Homes Ltd
AD Regulated Provision,Revenue Budgets,Childrens Services,CS Commissioning Service,A0492,Agency Fostercare,A56000,Other Establishments,30162509,31/08/2023,202308,295.80,1004631,Integrated Fostering Services Ltd
AD Regulated Provision,Revenue Budgets,Childrens Services,CS Residential Homes,A1718,Staying Close Project,A22005,Building Rents,30164656,31/08/2023,202308,"4,154.04",102869,Foresight Nel Ltd
AD Regulated Provision,Revenue Budgets,Childrens Services,CS Residential Homes,A1718,Staying Close Project,A22005,Building Rents,30164665,31/08/2023,202308,"6,231.06",102869,Foresight Nel Ltd
AD Regulated Provision,Revenue Budgets,Childrens Services,CS Commissioning Service,A0273,Agency Placement,A56000,Other Establishments,30141863,01/09/2023,202308,"16,696.20",1005310,Horizon Care & Education Group Ltd
AD Regulated Provision,Revenue Budgets,Childrens Services,CS Commissioning Service,A0492,Agency Fostercare,A56000,Other Establishments,30159476,01/09/2023,202308,728.58,1002661,Shining Stars Fostering Agency
AD Regulated Provision,Revenue Budgets,Childrens Services,CS Commissioning Service,A0273,Agency Placement,A56000,Other Establishments,30160907,01/09/2023,202308,"17,293.66",1000488,Care Today Childrens Services Ltd
AD Regulated Provision,Revenue Budgets,Childrens Services,CS Commissioning Service,A1789,Childrens Serv Supp Housing,A56000,Other Establishments,30163485,01/09/2023,202308,"9,000.00",1000106,Gravity Red Inspires
AD Regulated Provision,Revenue Budgets,Childrens Services,Children in Care Disability,A0517,Direct Payments Scheme,A56000,Other Establishments,30144949,08/09/2023,202308,260.00,105925,The Rowan Organisation
AD Regulated Provision,Revenue Budgets,Childrens Services,Fostering and Adoption,A0490,Fostering And Adoption Team,A11005,Agency Supply Staff,30158177,19/09/2023,202308,"2,127.50",120715,Nonstop Consulting Limited
AD Regulated Provision,Revenue Budgets,Childrens Services,CS Commissioning Service,A0492,Agency Fostercare,A56000,Other Establishments,30158188,25/09/2023,202308,"3,877.17",112225,The National Fostering Agency
AD Regulated Provision,Revenue Budgets,Childrens Services,CS Commissioning Service,A0273,Agency Placement,A56000,Other Establishments,30157507,29/09/2023,202308,"1,358.00",1007813,Project Phoenix Ltd
AD Regulated Provision,Revenue Budgets,Childrens Services,CS Commissioning Service,A0492,Agency Fostercare,A56000,Other Establishments,30158838,29/09/2023,202308,"4,864.20",105607,Action For Children Services Ltd
AD Regulated Provision,Revenue Budgets,Childrens Services,CS Commissioning Service,A0273,Agency Placement,A56000,Other Establishments,30159982,29/09/2023,202308,"42,857.14",1002153,Prosperity Children's Services
AD Regulated Provision,Revenue Budgets,Childrens Services,Fostering and Adoption,A0489,Adoption Support,A49105,Other Supplies & Services,30158686,30/09/2023,202308,"3,902.50",144362,Family Action - Pac-Uk
AD Regulated Provision,Revenue Budgets,Childrens Services,Fostering and Adoption,A0489,Adoption Support,A49105,Other Supplies & Services,30158693,30/09/2023,202308,420.00,1001758,Oakdale Therapies Ltd
AD Regulated Provision,Revenue Budgets,Childrens Services,CS Commissioning Service,A0273,Agency Placement,A56000,Other Establishments,30158700,30/09/2023,202308,"21,021.30",110615,Timeout Homes Ltd
AD Regulated Provision,Revenue Budgets,Childrens Services,CS Commissioning Service,A1789,Childrens Serv Supp Housing,A56000,Other Establishments,30159983,30/09/2023,202308,"30,535.80",REDACTED PERSONAL INFORMATION,REDACTED PERSONAL INFORMATION
AD Regulated Provision,Revenue Budgets,Childrens Services,CS Commissioning Service,A1789,Childrens Serv Supp Housing,A56000,Other Establishments,30162809,30/09/2023,202308,"2,391.30",REDACTED PERSONAL INFORMATION,REDACTED PERSONAL INFORMATION
AD Regulated Provision,Revenue Budgets,Childrens Services,CS Commissioning Service,A1789,Childrens Serv Supp Housing,A56000,Other Establishments,30162813,30/09/2023,202308,"2,391.30",REDACTED PERSONAL INFORMATION,REDACTED PERSONAL INFORMATION
AD Regulated Provision,Revenue Budgets,Childrens Services,CS Commissioning Service,A0273,Agency Placement,A56000,Other Establishments,30150569,01/10/2023,202308,"17,252.74",1005310,Horizon Care & Education Group Ltd
AD Regulated Provision,Revenue Budgets,Childrens Services,CS Commissioning Service,A0273,Agency Placement,A56000,Other Establishments,30158651,01/10/2023,202308,"-17,252.74",1005310,Horizon Care & Education Group Ltd
AD Regulated Provision,Revenue Budgets,Childrens Services,CS Commissioning Service,A0273,Agency Placement,A56000,Other Establishments,30158662,01/10/2023,202308,"17,252.74",1005310,Horizon Care & Education Group Ltd
AD Regulated Provision,Revenue Budgets,Childrens Services,CS Commissioning Service,A0273,Agency Placement,A56000,Other Establishments,30158703,01/10/2023,202308,"23,250.00",1000494,New Horizons - (Stockport) Ltd
AD Regulated Provision,Revenue Budgets,Childrens Services,CS Commissioning Service,A0273,Agency Placement,A56000,Other Establishments,30160766,01/10/2023,202308,"24,357.01",1007585,Friends Together Care Homes Ltd
AD Regulated Provision,Revenue Budgets,Childrens Services,CS Commissioning Service,A0492,Agency Fostercare,A56000,Other Establishments,30163064,01/10/2023,202308,"-1,211.22",1007260,Capstone Foster Care Ltd (North)
AD Regulated Provision,Revenue Budgets,Childrens Services,CS Commissioning Service,A0492,Agency Fostercare,A56000,Other Establishments,30163087,01/10/2023,202308,"-1,211.22",1007260,Capstone Foster Care Ltd (North)
AD Regulated Provision,Revenue Budgets,Childrens Services,Children in Care Disability,A0517,Direct Payments Scheme,A56000,Other Establishments,30150609,02/10/2023,202308,539.50,105925,The Rowan Organisation
AD Regulated Provision,Revenue Budgets,Childrens Services,Children in Care Disability,A0517,Direct Payments Scheme,A61135,Direct Payments,30160096,03/10/2023,202308,"2,389.00",1002181,Velox Healthcare
AD Regulated Provision,Revenue Budgets,Childrens Services,Children in Care Disability,A0517,Direct Payments Scheme,A61135,Direct Payments,30160090,10/10/2023,202308,"2,476.50",1002181,Velox Healthcare
AD Regulated Provision,Revenue Budgets,Childrens Services,CS Residential Homes,A1718,Staying Close Project,A20005,"Property Repairs, Maintenance & Alterations",30164661,13/10/2023,202308,284.00,102869,Foresight Nel Ltd
AD Regulated Provision,Revenue Budgets,Childrens Services,Fostering and Adoption,A1603,Adoption Support Fund,A49105,Other Supplies & Services,30158635,17/10/2023,202308,"1,950.00",1008062,Dr LA Holmes
AD Regulated Provision,Revenue Budgets,Childrens Services,Fostering and Adoption,A0489,Adoption Support,A49105,Other Supplies & Services,30158684,17/10/2023,202308,640.00,140435,Time To Listen Limited
AD Regulated Provision,Revenue Budgets,Childrens Services,Children in Care Disability,A0517,Direct Payments Scheme,A61135,Direct Payments,30160094,17/10/2023,202308,"2,529.00",1002181,Velox Healthcare
AD Regulated Provision,Revenue Budgets,Childrens Services,CS Commissioning Service,A1789,Childrens Serv Supp Housing,A56000,Other Establishments,30161786,18/10/2023,202308,"3,453.42",REDACTED PERSONAL INFORMATION,REDACTED PERSONAL INFORMATION
AD Regulated Provision,Revenue Budgets,Childrens Services,CS Commissioning Service,A1789,Childrens Serv Supp Housing,A56000,Other Establishments,30156233,23/10/2023,202308,"1,064.11",REDACTED PERSONAL INFORMATION,REDACTED PERSONAL INFORMATION
AD Regulated Provision,Revenue Budgets,Childrens Services,CS Commissioning Service,A1789,Childrens Serv Supp Housing,A56000,Other Establishments,30156234,23/10/2023,202308,569.70,REDACTED PERSONAL INFORMATION,REDACTED PERSONAL INFORMATION
AD Regulated Provision,Revenue Budgets,Childrens Services,CS Commissioning Service,A0273,Agency Placement,A56000,Other Establishments,30158848,23/10/2023,202308,"13,646.90",1000489,Acorn Care & Education Ltd (Sales)
AD Regulated Provision,Revenue Budgets,Childrens Services,CS Commissioning Service,A0273,Agency Placement,A56000,Other Establishments,30158855,23/10/2023,202308,"13,206.67",1000489,Acorn Care & Education Ltd (Sales)
AD Regulated Provision,Revenue Budgets,Childrens Services,CS Residential Homes,A1757,REDACTED PERSONAL INFORMATION,A56000,Other Establishments,30159662,23/10/2023,202308,"3,431.00",101836,Ofsted
AD Regulated Provision,Revenue Budgets,Childrens Services,Fostering and Adoption,A0490,Fostering And Adoption Team,A11005,Agency Supply Staff,30156739,24/10/2023,202308,"2,127.50",120715,Nonstop Consulting Limited
AD Regulated Provision,Revenue Budgets,Childrens Services,CS Commissioning Service,A0273,Agency Placement,A56000,Other Establishments,30157510,24/10/2023,202308,"19,604.00",1007813,Project Phoenix Ltd
AD Regulated Provision,Revenue Budgets,Childrens Services,CS Commissioning Service,A1789,Childrens Serv Supp Housing,A56000,Other Establishments,30162814,24/10/2023,202308,"2,567.50",1002181,Velox Healthcare
AD Regulated Provision,Revenue Budgets,Childrens Services,CS Commissioning Service,A0273,Agency Placement,A56000,Other Establishments,30162170,25/10/2023,202308,"20,568.07",1007837,Aspiris Children's Services Limited
AD Regulated Provision,Revenue Budgets,Childrens Services,CS Commissioning Service,A0273,Agency Placement,A56000,Other Establishments,30156983,26/10/2023,202308,"21,649.74",145195,Keys Pce Limited
AD Regulated Provision,Revenue Budgets,Childrens Services,CS Commissioning Service,A0273,Agency Placement,A56000,Other Establishments,30156997,26/10/2023,202308,"21,649.74",145195,Keys Pce Limited
AD Regulated Provision,Revenue Budgets,Childrens Services,CS Commissioning Service,A0273,Agency Placement,A56000,Other Establishments,30157011,26/10/2023,202308,"21,649.74",145195,Keys Pce Limited
AD Regulated Provision,Revenue Budgets,Childrens Services,CS Commissioning Service,A0492,Agency Fostercare,A56000,Other Establishments,30157317,26/10/2023,202308,"3,817.34",150831,Affinity Fostering
AD Regulated Provision,Revenue Budgets,Childrens Services,CS Commissioning Service,A0492,Agency Fostercare,A56000,Other Establishments,30158840,26/10/2023,202308,"5,026.34",105607,Action For Children Services Ltd
AD Regulated Provision,Revenue Budgets,Childrens Services,CS Commissioning Service,A0492,Agency Fostercare,A56000,Other Establishments,30158846,26/10/2023,202308,"4,925.90",105607,Action For Children Services Ltd
AD Regulated Provision,Revenue Budgets,Childrens Services,CS Commissioning Service,A0492,Agency Fostercare,A56000,Other Establishments,30158863,26/10/2023,202308,"6,226.66",105607,Action For Children Services Ltd
AD Regulated Provision,Revenue Budgets,Childrens Services,CS Commissioning Service,A0492,Agency Fostercare,A56000,Other Establishments,30158871,26/10/2023,202308,"5,060.44",105607,Action For Children Services Ltd
AD Regulated Provision,Revenue Budgets,Childrens Services,CS Commissioning Service,A0492,Agency Fostercare,A56000,Other Establishments,30158876,26/10/2023,202308,"6,554.33",105607,Action For Children Services Ltd
AD Regulated Provision,Revenue Budgets,Childrens Services,CS Commissioning Service,A0273,Agency Placement,A56000,Other Establishments,30157947,27/10/2023,202308,"-7,791.56",1005310,Horizon Care & Education Group Ltd
AD Regulated Provision,Revenue Budgets,Childrens Services,CS Commissioning Service,A0273,Agency Placement,A56000,Other Establishments,30158866,27/10/2023,202308,567.51,1000489,Acorn Care & Education Ltd (Sales)
AD Regulated Provision,Revenue Budgets,Childrens Services,CS Commissioning Service,A0273,Agency Placement,A56000,Other Establishments,30158868,27/10/2023,202308,549.20,1000489,Acorn Care & Education Ltd (Sales)
AD Regulated Provision,Revenue Budgets,Childrens Services,CS Commissioning Service,A0273,Agency Placement,A56000,Other Establishments,30158872,27/10/2023,202308,569.06,1000489,Acorn Care & Education Ltd (Sales)
AD Regulated Provision,Revenue Budgets,Childrens Services,CS Commissioning Service,A0273,Agency Placement,A56000,Other Establishments,30158875,27/10/2023,202308,569.06,1000489,Acorn Care & Education Ltd (Sales)
AD Regulated Provision,Revenue Budgets,Childrens Services,CS Commissioning Service,A0492,Agency Fostercare,A56000,Other Establishments,30157777,30/10/2023,202308,522.56,112225,The National Fostering Agency
AD Regulated Provision,Revenue Budgets,Childrens Services,AD Regulated Provision,A1895,AD Regulated Provision,A44065,Consultancy Services,30158151,30/10/2023,202308,"12,000.00",1003779,Alexander Kemp Ltd
AD Regulated Provision,Revenue Budgets,Childrens Services,CS Residential Homes,A0504,REDACTED PERSONAL INFORMATION,A40920,Purchase of Equipment,30161036,30/10/2023,202308,852.35,PETTY CASH,PETTY CASH
AD Regulated Provision,Revenue Budgets,Childrens Services,CS Residential Homes,A0504,REDACTED PERSONAL INFORMATION,A44030,Provisions,30161036,30/10/2023,202308,557.16,PETTY CASH,PETTY CASH
AD Regulated Provision,Revenue Budgets,Childrens Services,CS Residential Homes,A0504,REDACTED PERSONAL INFORMATION,A49106,Holidays - Service Users,30161036,30/10/2023,202308,455.70,PETTY CASH,PETTY CASH
AD Regulated Provision,Revenue Budgets,Childrens Services,CS Commissioning Service,A1789,Childrens Serv Supp Housing,A56000,Other Establishments,30157891,31/10/2023,202308,"6,620.71",REDACTED PERSONAL INFORMATION,REDACTED PERSONAL INFORMATION
AD Regulated Provision,Revenue Budgets,Childrens Services,CS Commissioning Service,A0492,Agency Fostercare,A56000,Other Establishments,30158071,31/10/2023,202308,"6,295.48",101150,Tree House Care Fostering Solutions Ltd
AD Regulated Provision,Revenue Budgets,Childrens Services,CS Commissioning Service,A0492,Agency Fostercare,A56000,Other Establishments,30158075,31/10/2023,202308,"3,331.88",101150,Tree House Care Fostering Solutions Ltd
AD Regulated Provision,Revenue Budgets,Childrens Services,CS Commissioning Service,A0492,Agency Fostercare,A56000,Other Establishments,30158079,31/10/2023,202308,"3,503.62",101150,Tree House Care Fostering Solutions Ltd
AD Regulated Provision,Revenue Budgets,Childrens Services,CS Commissioning Service,A0273,Agency Placement,A56000,Other Establishments,30158081,31/10/2023,202308,"4,470.56",146328,Hexagon Care Services Ltd
AD Regulated Provision,Revenue Budgets,Childrens Services,CS Commissioning Service,A0492,Agency Fostercare,A56000,Other Establishments,30158084,31/10/2023,202308,"3,579.26",101150,Tree House Care Fostering Solutions Ltd
AD Regulated Provision,Revenue Budgets,Childrens Services,CS Commissioning Service,A0492,Agency Fostercare,A56000,Other Establishments,30158085,31/10/2023,202308,"5,111.59",101150,Tree House Care Fostering Solutions Ltd
AD Regulated Provision,Revenue Budgets,Childrens Services,CS Commissioning Service,A0492,Agency Fostercare,A56000,Other Establishments,30158088,31/10/2023,202308,"3,552.91",101150,Tree House Care Fostering Solutions Ltd
AD Regulated Provision,Revenue Budgets,Childrens Services,CS Commissioning Service,A0273,Agency Placement,A56000,Other Establishments,30158091,31/10/2023,202308,"22,132.45",146328,Hexagon Care Services Ltd
AD Regulated Provision,Revenue Budgets,Childrens Services,CS Commissioning Service,A0492,Agency Fostercare,A56000,Other Establishments,30158092,31/10/2023,202308,"3,471.69",101150,Tree House Care Fostering Solutions Ltd
AD Regulated Provision,Revenue Budgets,Childrens Services,CS Commissioning Service,A0492,Agency Fostercare,A56000,Other Establishments,30158100,31/10/2023,202308,"3,331.88",101150,Tree House Care Fostering Solutions Ltd
AD Regulated Provision,Revenue Budgets,Childrens Services,CS Commissioning Service,A0492,Agency Fostercare,A56000,Other Establishments,30158136,31/10/2023,202308,"4,982.01",1000346,Brighter Futures Foster Care
AD Regulated Provision,Revenue Budgets,Childrens Services,CS Commissioning Service,A0492,Agency Fostercare,A56000,Other Establishments,30158147,31/10/2023,202308,"3,602.99",112225,The National Fostering Agency
AD Regulated Provision,Revenue Budgets,Childrens Services,CS Commissioning Service,A0492,Agency Fostercare,A56000,Other Establishments,30158176,31/10/2023,202308,"3,785.10",132099,Five Rivers Childcare Ltd
AD Regulated Provision,Revenue Budgets,Childrens Services,CS Commissioning Service,A0492,Agency Fostercare,A56000,Other Establishments,30158185,31/10/2023,202308,"3,877.17",112225,The National Fostering Agency
AD Regulated Provision,Revenue Budgets,Childrens Services,CS Commissioning Service,A0492,Agency Fostercare,A56000,Other Establishments,30158189,31/10/2023,202308,"3,785.19",132099,Five Rivers Childcare Ltd
AD Regulated Provision,Revenue Budgets,Childrens Services,CS Commissioning Service,A0492,Agency Fostercare,A56000,Other Establishments,30158191,31/10/2023,202308,"3,946.30",132099,Five Rivers Childcare Ltd
AD Regulated Provision,Revenue Budgets,Childrens Services,CS Commissioning Service,A0492,Agency Fostercare,A56000,Other Establishments,30158200,31/10/2023,202308,"3,877.17",112225,The National Fostering Agency
AD Regulated Provision,Revenue Budgets,Childrens Services,CS Commissioning Service,A0492,Agency Fostercare,A56000,Other Establishments,30158206,31/10/2023,202308,"4,067.20",132099,Five Rivers Childcare Ltd
AD Regulated Provision,Revenue Budgets,Childrens Services,CS Commissioning Service,A0492,Agency Fostercare,A56000,Other Establishments,30158210,31/10/2023,202308,"3,683.31",112225,The National Fostering Agency
AD Regulated Provision,Revenue Budgets,Childrens Services,CS Commissioning Service,A0492,Agency Fostercare,A56000,Other Establishments,30158211,31/10/2023,202308,"3,602.82",112225,The National Fostering Agency
AD Regulated Provision,Revenue Budgets,Childrens Services,CS Commissioning Service,A0492,Agency Fostercare,A56000,Other Establishments,30158213,31/10/2023,202308,"3,768.07",112225,The National Fostering Agency
AD Regulated Provision,Revenue Budgets,Childrens Services,CS Commissioning Service,A0492,Agency Fostercare,A56000,Other Establishments,30158221,31/10/2023,202308,"3,521.50",112225,The National Fostering Agency
AD Regulated Provision,Revenue Budgets,Childrens Services,CS Commissioning Service,A0492,Agency Fostercare,A56000,Other Establishments,30158226,31/10/2023,202308,"3,877.17",112225,The National Fostering Agency
AD Regulated Provision,Revenue Budgets,Childrens Services,CS Commissioning Service,A0492,Agency Fostercare,A56000,Other Establishments,30158267,31/10/2023,202308,"1,162.80",101455,Foster Care Associates Limited
AD Regulated Provision,Revenue Budgets,Childrens Services,CS Commissioning Service,A0273,Agency Placement,A56000,Other Establishments,30158271,31/10/2023,202308,"26,305.71",1003502,Pebbles Care Ltd
AD Regulated Provision,Revenue Budgets,Childrens Services,Fostering and Adoption,A0490,Fostering And Adoption Team,A11005,Agency Supply Staff,30158359,31/10/2023,202308,"2,127.50",120715,Nonstop Consulting Limited
AD Regulated Provision,Revenue Budgets,Childrens Services,CS Commissioning Service,A0492,Agency Fostercare,A56000,Other Establishments,30158587,31/10/2023,202308,"5,522.96",1007402,Ivy House Fostering Agency
AD Regulated Provision,Revenue Budgets,Childrens Services,CS Commissioning Service,A0492,Agency Fostercare,A56000,Other Establishments,30158599,31/10/2023,202308,"4,137.22",132099,Five Rivers Childcare Ltd
AD Regulated Provision,Revenue Budgets,Childrens Services,CS Commissioning Service,A0492,Agency Fostercare,A56000,Other Establishments,30158603,31/10/2023,202308,"5,522.96",1007402,Ivy House Fostering Agency
AD Regulated Provision,Revenue Budgets,Childrens Services,CS Commissioning Service,A0492,Agency Fostercare,A56000,Other Establishments,30159226,31/10/2023,202308,"3,974.20",149498,Compass Fostering London Ltd
AD Regulated Provision,Revenue Budgets,Childrens Services,CS Commissioning Service,A0492,Agency Fostercare,A56000,Other Establishments,30159683,31/10/2023,202308,"3,751.00",129923,The Adolescent & Childrens Trust
AD Regulated Provision,Revenue Budgets,Childrens Services,CS Commissioning Service,A0492,Agency Fostercare,A56000,Other Establishments,30159694,31/10/2023,202308,"3,751.00",129923,The Adolescent & Childrens Trust
AD Regulated Provision,Revenue Budgets,Childrens Services,CS Commissioning Service,A0492,Agency Fostercare,A56000,Other Establishments,30159771,31/10/2023,202308,"3,644.67",1002705,Horizon Fostering Services
AD Regulated Provision,Revenue Budgets,Childrens Services,CS Commissioning Service,A0492,Agency Fostercare,A56000,Other Establishments,30159836,31/10/2023,202308,"8,409.86",1003086,The Ethical Fostering Service Limited
AD Regulated Provision,Revenue Budgets,Childrens Services,CS Commissioning Service,A0492,Agency Fostercare,A56000,Other Establishments,30159964,31/10/2023,202308,"3,804.32",132099,Five Rivers Childcare Ltd
AD Regulated Provision,Revenue Budgets,Childrens Services,CS Commissioning Service,A1789,Childrens Serv Supp Housing,A56000,Other Establishments,30159980,31/10/2023,202308,"5,231.45",REDACTED PERSONAL INFORMATION,REDACTED PERSONAL INFORMATION
AD Regulated Provision,Revenue Budgets,Childrens Services,CS Commissioning Service,A0492,Agency Fostercare,A56000,Other Establishments,30160045,31/10/2023,202308,"4,169.50",1002663,Banya Family Placement Agency Limited
AD Regulated Provision,Revenue Budgets,Childrens Services,CS Commissioning Service,A1767,Looked After Chld Travel Costs,A33005,Public Transport - Non Staff,30160340,31/10/2023,202308,256.25,100546,Links Taxis
AD Regulated Provision,Revenue Budgets,Childrens Services,CS Commissioning Service,A1767,Looked After Chld Travel Costs,A33005,Public Transport - Non Staff,30160340,31/10/2023,202308,"5,125.00",100546,Links Taxis
AD Regulated Provision,Revenue Budgets,Childrens Services,Children in Care Disability,A0509,Unaccomp Childr Asylum Seekers,A44050,Translating & Interpreter Services,30161095,31/10/2023,202308,490.62,148993,Clear Voice Interpreting Services
AD Regulated Provision,Revenue Budgets,Childrens Services,CS Commissioning Service,A0492,Agency Fostercare,A56000,Other Establishments,30161776,31/10/2023,202308,"3,472.00",1004631,Integrated Fostering Services Ltd
AD Regulated Provision,Revenue Budgets,Childrens Services,CS Commissioning Service,A0492,Agency Fostercare,A56000,Other Establishments,30161779,31/10/2023,202308,"5,314.33",1004631,Integrated Fostering Services Ltd
AD Regulated Provision,Revenue Budgets,Childrens Services,CS Commissioning Service,A0492,Agency Fostercare,A56000,Other Establishments,30161782,31/10/2023,202308,"3,631.34",1004631,Integrated Fostering Services Ltd
AD Regulated Provision,Revenue Budgets,Childrens Services,CS Commissioning Service,A0492,Agency Fostercare,A56000,Other Establishments,30162074,31/10/2023,202308,"3,782.00",145801,Young People At Heart
AD Regulated Provision,Revenue Budgets,Childrens Services,CS Commissioning Service,A0492,Agency Fostercare,A56000,Other Establishments,30162076,31/10/2023,202308,"3,782.00",145801,Young People At Heart
AD Regulated Provision,Revenue Budgets,Childrens Services,CS Commissioning Service,A0492,Agency Fostercare,A56000,Other Establishments,30162077,31/10/2023,202308,"3,782.00",145801,Young People At Heart
AD Regulated Provision,Revenue Budgets,Childrens Services,CS Commissioning Service,A0492,Agency Fostercare,A56000,Other Establishments,30162078,31/10/2023,202308,"3,689.00",145801,Young People At Heart
AD Regulated Provision,Revenue Budgets,Childrens Services,CS Commissioning Service,A0492,Agency Fostercare,A56000,Other Establishments,30162081,31/10/2023,202308,"3,689.00",145801,Young People At Heart
AD Regulated Provision,Revenue Budgets,Childrens Services,CS Commissioning Service,A0492,Agency Fostercare,A56000,Other Establishments,30162082,31/10/2023,202308,"3,689.00",145801,Young People At Heart
AD Regulated Provision,Revenue Budgets,Childrens Services,CS Commissioning Service,A0273,Agency Placement,A56000,Other Establishments,30162155,31/10/2023,202308,"14,304.29",124869,Progressive Care
AD Regulated Provision,Revenue Budgets,Childrens Services,CS Commissioning Service,A0273,Agency Placement,A56000,Other Establishments,30162159,31/10/2023,202308,"32,992.86",145308,Gba Care Ltd
AD Regulated Provision,Revenue Budgets,Childrens Services,CS Commissioning Service,A0273,Agency Placement,A56000,Other Establishments,30162735,31/10/2023,202308,600.00,1005310,Horizon Care & Education Group Ltd
AD Regulated Provision,Revenue Budgets,Childrens Services,CS Commissioning Service,A0273,Agency Placement,A56000,Other Establishments,30162755,31/10/2023,202308,600.00,1005310,Horizon Care & Education Group Ltd
AD Regulated Provision,Revenue Budgets,Childrens Services,CS Commissioning Service,A1789,Childrens Serv Supp Housing,A56000,Other Establishments,30162812,31/10/2023,202308,"2,152.17",REDACTED PERSONAL INFORMATION,REDACTED PERSONAL INFORMATION
AD Regulated Provision,Revenue Budgets,Childrens Services,CS Commissioning Service,A1789,Childrens Serv Supp Housing,A56000,Other Establishments,30162817,31/10/2023,202308,"1,195.65",REDACTED PERSONAL INFORMATION,REDACTED PERSONAL INFORMATION
AD Regulated Provision,Revenue Budgets,Childrens Services,CS Commissioning Service,A1789,Childrens Serv Supp Housing,A56000,Other Establishments,30162826,31/10/2023,202308,717.39,REDACTED PERSONAL INFORMATION,REDACTED PERSONAL INFORMATION
AD Regulated Provision,Revenue Budgets,Childrens Services,Fostering and Adoption,A1603,Adoption Support Fund,A49105,Other Supplies & Services,30165429,31/10/2023,202308,280.00,1001758,Oakdale Therapies Ltd
AD Regulated Provision,Revenue Budgets,Childrens Services,CS Commissioning Service,A0273,Agency Placement,A56000,Other Establishments,30166840,31/10/2023,202308,"21,301.34",1006597,Woodlands Ty Pont
AD Regulated Provision,Revenue Budgets,Childrens Services,CS Commissioning Service,A0492,Agency Fostercare,A56000,Other Establishments,30158650,01/11/2023,202308,"3,808.35",1006055,Star Fostering Ltd
AD Regulated Provision,Revenue Budgets,Childrens Services,CS Commissioning Service,A0492,Agency Fostercare,A56000,Other Establishments,30158666,01/11/2023,202308,"4,058.21",1006055,Star Fostering Ltd
AD Regulated Provision,Revenue Budgets,Childrens Services,CS Commissioning Service,A0492,Agency Fostercare,A56000,Other Establishments,30158669,01/11/2023,202308,"3,808.35",1006055,Star Fostering Ltd
AD Regulated Provision,Revenue Budgets,Childrens Services,CS Commissioning Service,A0273,Agency Placement,A56000,Other Establishments,30158681,01/11/2023,202308,"22,500.00",1000494,New Horizons - (Stockport) Ltd
AD Regulated Provision,Revenue Budgets,Childrens Services,CS Commissioning Service,A0492,Agency Fostercare,A56000,Other Establishments,30158683,01/11/2023,202308,"4,457.55",148494,By The Bridge Northwest Ltd
AD Regulated Provision,Revenue Budgets,Childrens Services,CS Commissioning Service,A0273,Agency Placement,A56000,Other Establishments,30158690,01/11/2023,202308,"17,112.90",1007093,Hennessy Living Group Ltd
AD Regulated Provision,Revenue Budgets,Childrens Services,CS Commissioning Service,A0492,Agency Fostercare,A56000,Other Establishments,30158704,01/11/2023,202308,"4,276.29",148494,By The Bridge Northwest Ltd
AD Regulated Provision,Revenue Budgets,Childrens Services,CS Commissioning Service,A0492,Agency Fostercare,A56000,Other Establishments,30158833,01/11/2023,202308,"3,861.67",1006055,Star Fostering Ltd
AD Regulated Provision,Revenue Budgets,Childrens Services,CS Commissioning Service,A0273,Agency Placement,A56000,Other Establishments,30159396,01/11/2023,202308,"42,642.90",142624,Compass Childrens Homes Ltd
AD Regulated Provision,Revenue Budgets,Childrens Services,CS Commissioning Service,A0273,Agency Placement,A56000,Other Establishments,30159403,01/11/2023,202308,"28,237.50",142624,Compass Childrens Homes Ltd
AD Regulated Provision,Revenue Budgets,Childrens Services,CS Commissioning Service,A0273,Agency Placement,A56000,Other Establishments,30159404,01/11/2023,202308,"22,725.00",142624,Compass Childrens Homes Ltd
AD Regulated Provision,Revenue Budgets,Childrens Services,CS Commissioning Service,A0492,Agency Fostercare,A56000,Other Establishments,30159739,01/11/2023,202308,"3,857.64",145652,Parallel Parents
AD Regulated Provision,Revenue Budgets,Childrens Services,CS Commissioning Service,A0492,Agency Fostercare,A56000,Other Establishments,30159760,01/11/2023,202308,"3,979.47",145652,Parallel Parents
AD Regulated Provision,Revenue Budgets,Childrens Services,CS Commissioning Service,A0492,Agency Fostercare,A56000,Other Establishments,30159775,01/11/2023,202308,"5,986.72",145652,Parallel Parents
AD Regulated Provision,Revenue Budgets,Childrens Services,CS Commissioning Service,A0492,Agency Fostercare,A56000,Other Establishments,30160129,01/11/2023,202308,"3,648.30",128844,Compass Fostering North Limited
AD Regulated Provision,Revenue Budgets,Childrens Services,CS Commissioning Service,A0492,Agency Fostercare,A56000,Other Establishments,30160132,01/11/2023,202308,"3,619.80",128844,Compass Fostering North Limited
AD Regulated Provision,Revenue Budgets,Childrens Services,CS Commissioning Service,A0492,Agency Fostercare,A56000,Other Establishments,30160133,01/11/2023,202308,"3,529.20",128844,Compass Fostering North Limited
AD Regulated Provision,Revenue Budgets,Childrens Services,CS Commissioning Service,A0492,Agency Fostercare,A56000,Other Establishments,30160134,01/11/2023,202308,"3,658.20",128844,Compass Fostering North Limited
AD Regulated Provision,Revenue Budgets,Childrens Services,CS Commissioning Service,A0492,Agency Fostercare,A56000,Other Establishments,30160136,01/11/2023,202308,"3,728.40",128844,Compass Fostering North Limited
AD Regulated Provision,Revenue Budgets,Childrens Services,CS Commissioning Service,A0492,Agency Fostercare,A56000,Other Establishments,30160138,01/11/2023,202308,"3,573.30",128844,Compass Fostering North Limited
AD Regulated Provision,Revenue Budgets,Childrens Services,Children in Care Disability,A0509,Unaccomp Childr Asylum Seekers,A56000,Other Establishments,30160564,01/11/2023,202308,"8,934.83",144120,Learning4life-Gy-Cic
AD Regulated Provision,Revenue Budgets,Childrens Services,CS Commissioning Service,A0492,Agency Fostercare,A56000,Other Establishments,30161668,01/11/2023,202308,"3,832.50",128418,Nexus Fostering Ltd
AD Regulated Provision,Revenue Budgets,Childrens Services,CS Commissioning Service,A0492,Agency Fostercare,A56000,Other Establishments,30161670,01/11/2023,202308,"3,562.50",128418,Nexus Fostering Ltd
AD Regulated Provision,Revenue Budgets,Childrens Services,CS Commissioning Service,A0492,Agency Fostercare,A56000,Other Establishments,30161672,01/11/2023,202308,"6,270.00",128418,Nexus Fostering Ltd
AD Regulated Provision,Revenue Budgets,Childrens Services,CS Commissioning Service,A0273,Agency Placement,A56000,Other Establishments,30161811,01/11/2023,202308,"17,293.66",1000488,Care Today Childrens Services Ltd
AD Regulated Provision,Revenue Budgets,Childrens Services,CS Commissioning Service,A0273,Agency Placement,A56000,Other Establishments,30162157,01/11/2023,202308,"22,842.60",1001521,Shore care Services
AD Regulated Provision,Revenue Budgets,Childrens Services,CS Commissioning Service,A0273,Agency Placement,A56000,Other Establishments,30162165,01/11/2023,202308,"22,842.60",1001521,Shore care Services
AD Regulated Provision,Revenue Budgets,Childrens Services,CS Commissioning Service,A0273,Agency Placement,A56000,Other Establishments,30162215,01/11/2023,202308,"22,500.00",1002134,Your Chapter Limited
AD Regulated Provision,Revenue Budgets,Childrens Services,CS Residential Homes,A0499,REDACTED PERSONAL INFORMATION,A16015,Staff Training Expenses,30162259,01/11/2023,202308,495.50,REDACTED PERSONAL INFORMATION,REDACTED PERSONAL INFORMATION
AD Regulated Provision,Revenue Budgets,Childrens Services,CS Commissioning Service,A0492,Agency Fostercare,A56000,Other Establishments,30163065,01/11/2023,202308,"8,755.80",1007260,Capstone Foster Care Ltd (North)
AD Regulated Provision,Revenue Budgets,Childrens Services,CS Commissioning Service,A0492,Agency Fostercare,A56000,Other Establishments,30163088,01/11/2023,202308,"8,755.80",1007260,Capstone Foster Care Ltd (North)
AD Regulated Provision,Revenue Budgets,Childrens Services,CS Commissioning Service,A0492,Agency Fostercare,A56000,Other Establishments,30163367,01/11/2023,202308,"3,170.61",144562,Unity Foster Care Ltd
AD Regulated Provision,Revenue Budgets,Childrens Services,CS Commissioning Service,A0492,Agency Fostercare,A56000,Other Establishments,30163376,01/11/2023,202308,"3,148.74",144562,Unity Foster Care Ltd
AD Regulated Provision,Revenue Budgets,Childrens Services,CS Commissioning Service,A0492,Agency Fostercare,A56000,Other Establishments,30163378,01/11/2023,202308,"2,992.98",144562,Unity Foster Care Ltd
AD Regulated Provision,Revenue Budgets,Childrens Services,CS Commissioning Service,A0492,Agency Fostercare,A56000,Other Establishments,30163379,01/11/2023,202308,"3,150.50",144562,Unity Foster Care Ltd
AD Regulated Provision,Revenue Budgets,Childrens Services,CS Commissioning Service,A0492,Agency Fostercare,A56000,Other Establishments,30166303,01/11/2023,202308,"3,857.14",1002661,Shining Stars Fostering Agency
AD Regulated Provision,Revenue Budgets,Childrens Services,CS Commissioning Service,A0492,Agency Fostercare,A56000,Other Establishments,30166307,01/11/2023,202308,"3,407.14",1002661,Shining Stars Fostering Agency
AD Regulated Provision,Revenue Budgets,Childrens Services,CS Commissioning Service,A0492,Agency Fostercare,A56000,Other Establishments,30166312,01/11/2023,202308,"3,857.14",1002661,Shining Stars Fostering Agency
AD Regulated Provision,Revenue Budgets,Childrens Services,CS Commissioning Service,A0273,Agency Placement,A56000,Other Establishments,30166853,01/11/2023,202308,"20,614.20",1006597,Woodlands Ty Pont
AD Regulated Provision,Revenue Budgets,Childrens Services,CS Residential Homes,A1718,Staying Close Project,A56000,Other Establishments,30159398,02/11/2023,202308,"4,460.00",1006007,Crisp and Crane Consultancy Limited
AD Regulated Provision,Revenue Budgets,Childrens Services,CS Residential Homes,A1757,REDACTED PERSONAL INFORMATION,A20005,"Property Repairs, Maintenance & Alterations",30163555,02/11/2023,202308,"1,129.50",133267,Equans Services Ltd
AD Regulated Provision,Revenue Budgets,Childrens Services,Children in Care Disability,A0511,Care Leavers Allowances,A61165,Housing Benefit,42264568,02/11/2023,202308,257.00,REDACTED PERSONAL INFORMATION,REDACTED PERSONAL INFORMATION
AD Regulated Provision,Revenue Budgets,Childrens Services,Children in Care Disability,A0511,Care Leavers Allowances,A61165,Housing Benefit,42264574,02/11/2023,202308,257.00,REDACTED PERSONAL INFORMATION,REDACTED PERSONAL INFORMATION
AD Regulated Provision,Revenue Budgets,Childrens Services,Children in Care Disability,A0511,Care Leavers Allowances,A61165,Housing Benefit,42264576,02/11/2023,202308,360.00,REDACTED PERSONAL INFORMATION,REDACTED PERSONAL INFORMATION
AD Regulated Provision,Revenue Budgets,Childrens Services,Children in Care Disability,A0511,Care Leavers Allowances,A61165,Housing Benefit,42264577,02/11/2023,202308,257.00,REDACTED PERSONAL INFORMATION,REDACTED PERSONAL INFORMATION
AD Regulated Provision,Revenue Budgets,Childrens Services,Children in Care Disability,A0511,Care Leavers Allowances,A61165,Housing Benefit,42264578,02/11/2023,202308,257.00,REDACTED PERSONAL INFORMATION,REDACTED PERSONAL INFORMATION
AD Regulated Provision,Revenue Budgets,Childrens Services,Children in Care Disability,A0509,Unaccomp Childr Asylum Seekers,A61165,Housing Benefit,42264579,02/11/2023,202308,292.00,REDACTED PERSONAL INFORMATION,REDACTED PERSONAL INFORMATION
AD Regulated Provision,Revenue Budgets,Childrens Services,Children in Care Disability,A0511,Care Leavers Allowances,A61165,Housing Benefit,42264580,02/11/2023,202308,257.00,REDACTED PERSONAL INFORMATION,REDACTED PERSONAL INFORMATION
AD Regulated Provision,Revenue Budgets,Childrens Services,Children in Care Disability,A0511,Care Leavers Allowances,A61165,Housing Benefit,42264584,02/11/2023,202308,257.00,REDACTED PERSONAL INFORMATION,REDACTED PERSONAL INFORMATION
AD Regulated Provision,Revenue Budgets,Childrens Services,Children in Care Disability,A0511,Care Leavers Allowances,A61165,Housing Benefit,42264585,02/11/2023,202308,257.00,REDACTED PERSONAL INFORMATION,REDACTED PERSONAL INFORMATION
AD Regulated Provision,Revenue Budgets,Childrens Services,Children in Care Disability,A0511,Care Leavers Allowances,A61165,Housing Benefit,42264586,02/11/2023,202308,257.00,REDACTED PERSONAL INFORMATION,REDACTED PERSONAL INFORMATION
AD Regulated Provision,Revenue Budgets,Childrens Services,Children in Care Disability,A0511,Care Leavers Allowances,A61165,Housing Benefit,42264587,02/11/2023,202308,257.00,REDACTED PERSONAL INFORMATION,REDACTED PERSONAL INFORMATION
AD Regulated Provision,Revenue Budgets,Childrens Services,Children in Care Disability,A0517,Direct Payments Scheme,A56000,Other Establishments,42264631,02/11/2023,202308,398.19,REDACTED PERSONAL INFORMATION,REDACTED PERSONAL INFORMATION
AD Regulated Provision,Revenue Budgets,Childrens Services,Children in Care Disability,A0517,Direct Payments Scheme,A56000,Other Establishments,42264632,02/11/2023,202308,305.31,REDACTED PERSONAL INFORMATION,REDACTED PERSONAL INFORMATION
AD Regulated Provision,Revenue Budgets,Childrens Services,Children in Care Disability,A0517,Direct Payments Scheme,A56000,Other Establishments,42264639,02/11/2023,202308,384.45,REDACTED PERSONAL INFORMATION,REDACTED PERSONAL INFORMATION
AD Regulated Provision,Revenue Budgets,Childrens Services,Children in Care Disability,A0517,Direct Payments Scheme,A56000,Other Establishments,42264639,02/11/2023,202308,447.07,REDACTED PERSONAL INFORMATION,REDACTED PERSONAL INFORMATION
AD Regulated Provision,Revenue Budgets,Childrens Services,Fostering and Adoption,A0484,Mainstream Carer Payments,A61166,Contract Plus,42264684,02/11/2023,202308,315.00,REDACTED PERSONAL INFORMATION,REDACTED PERSONAL INFORMATION
AD Regulated Provision,Revenue Budgets,Childrens Services,Fostering and Adoption,A0489,Adoption Support,A61120,Adoptions Allowances,42264688,02/11/2023,202308,370.74,REDACTED PERSONAL INFORMATION,REDACTED PERSONAL INFORMATION
AD Regulated Provision,Revenue Budgets,Childrens Services,Fostering and Adoption,A0489,Adoption Support,A61120,Adoptions Allowances,42264688,02/11/2023,202308,370.74,REDACTED PERSONAL INFORMATION,REDACTED PERSONAL INFORMATION
AD Regulated Provision,Revenue Budgets,Childrens Services,Fostering and Adoption,A0484,Mainstream Carer Payments,A61115,Holiday Allowances,42264689,02/11/2023,202308,350.00,REDACTED PERSONAL INFORMATION,REDACTED PERSONAL INFORMATION
AD Regulated Provision,Revenue Budgets,Childrens Services,Fostering and Adoption,A0484,Mainstream Carer Payments,A61166,Contract Plus,42264690,02/11/2023,202308,315.00,REDACTED PERSONAL INFORMATION,REDACTED PERSONAL INFORMATION
AD Regulated Provision,Revenue Budgets,Childrens Services,Fostering and Adoption,A0484,Mainstream Carer Payments,A61166,Contract Plus,42264752,02/11/2023,202308,315.00,REDACTED PERSONAL INFORMATION,REDACTED PERSONAL INFORMATION
AD Regulated Provision,Revenue Budgets,Childrens Services,Fostering and Adoption,A0489,Adoption Support,A61120,Adoptions Allowances,42264771,02/11/2023,202308,435.69,REDACTED PERSONAL INFORMATION,REDACTED PERSONAL INFORMATION
AD Regulated Provision,Revenue Budgets,Childrens Services,Fostering and Adoption,A0486,Residence  Or Special G'Ship,A61015,Fostering and Guardianship Allowances,42264830,02/11/2023,202308,364.08,REDACTED PERSONAL INFORMATION,REDACTED PERSONAL INFORMATION
AD Regulated Provision,Revenue Budgets,Childrens Services,Fostering and Adoption,A0486,Residence  Or Special G'Ship,A61015,Fostering and Guardianship Allowances,42264830,02/11/2023,202308,364.08,REDACTED PERSONAL INFORMATION,REDACTED PERSONAL INFORMATION
AD Regulated Provision,Revenue Budgets,Childrens Services,Fostering and Adoption,A0484,Mainstream Carer Payments,A61166,Contract Plus,42264834,02/11/2023,202308,315.00,REDACTED PERSONAL INFORMATION,REDACTED PERSONAL INFORMATION
AD Regulated Provision,Revenue Budgets,Childrens Services,Fostering and Adoption,A0484,Mainstream Carer Payments,A61166,Contract Plus,42264851,02/11/2023,202308,315.00,REDACTED PERSONAL INFORMATION,REDACTED PERSONAL INFORMATION
AD Regulated Provision,Revenue Budgets,Childrens Services,Fostering and Adoption,A0484,Mainstream Carer Payments,A61166,Contract Plus,42264852,02/11/2023,202308,315.00,REDACTED PERSONAL INFORMATION,REDACTED PERSONAL INFORMATION
AD Regulated Provision,Revenue Budgets,Childrens Services,Fostering and Adoption,A0484,Mainstream Carer Payments,A57205,Child Care Payments,42264853,02/11/2023,202308,711.58,REDACTED PERSONAL INFORMATION,REDACTED PERSONAL INFORMATION
AD Regulated Provision,Revenue Budgets,Childrens Services,Fostering and Adoption,A0484,Mainstream Carer Payments,A61166,Contract Plus,42264854,02/11/2023,202308,315.00,REDACTED PERSONAL INFORMATION,REDACTED PERSONAL INFORMATION
AD Regulated Provision,Revenue Budgets,Childrens Services,Fostering and Adoption,A0484,Mainstream Carer Payments,A61166,Contract Plus,42264856,02/11/2023,202308,315.00,REDACTED PERSONAL INFORMATION,REDACTED PERSONAL INFORMATION
AD Regulated Provision,Revenue Budgets,Childrens Services,Fostering and Adoption,A0484,Mainstream Carer Payments,A61159,Special Carer Payments,42264878,02/11/2023,202308,711.58,REDACTED PERSONAL INFORMATION,REDACTED PERSONAL INFORMATION
AD Regulated Provision,Revenue Budgets,Childrens Services,Fostering and Adoption,A0484,Mainstream Carer Payments,A61166,Contract Plus,42264887,02/11/2023,202308,315.00,REDACTED PERSONAL INFORMATION,REDACTED PERSONAL INFORMATION
AD Regulated Provision,Revenue Budgets,Childrens Services,Fostering and Adoption,A0484,Mainstream Carer Payments,A61166,Contract Plus,42264890,02/11/2023,202308,315.00,REDACTED PERSONAL INFORMATION,REDACTED PERSONAL INFORMATION
AD Regulated Provision,Revenue Budgets,Childrens Services,Fostering and Adoption,A0484,Mainstream Carer Payments,A61166,Contract Plus,42264893,02/11/2023,202308,315.00,REDACTED PERSONAL INFORMATION,REDACTED PERSONAL INFORMATION
AD Regulated Provision,Revenue Budgets,Childrens Services,Fostering and Adoption,A0489,Adoption Support,A61120,Adoptions Allowances,42264896,02/11/2023,202308,559.44,REDACTED PERSONAL INFORMATION,REDACTED PERSONAL INFORMATION
AD Regulated Provision,Revenue Budgets,Childrens Services,Fostering and Adoption,A0484,Mainstream Carer Payments,A61166,Contract Plus,42264901,02/11/2023,202308,315.00,REDACTED PERSONAL INFORMATION,REDACTED PERSONAL INFORMATION
AD Regulated Provision,Revenue Budgets,Childrens Services,Fostering and Adoption,A0484,Mainstream Carer Payments,A61166,Contract Plus,42264902,02/11/2023,202308,315.00,REDACTED PERSONAL INFORMATION,REDACTED PERSONAL INFORMATION
AD Regulated Provision,Revenue Budgets,Childrens Services,Fostering and Adoption,A0486,Residence  Or Special G'Ship,A61015,Fostering and Guardianship Allowances,42264906,02/11/2023,202308,365.10,REDACTED PERSONAL INFORMATION,REDACTED PERSONAL INFORMATION
AD Regulated Provision,Revenue Budgets,Childrens Services,Fostering and Adoption,A0489,Adoption Support,A61120,Adoptions Allowances,42264930,02/11/2023,202308,886.58,REDACTED PERSONAL INFORMATION,REDACTED PERSONAL INFORMATION
AD Regulated Provision,Revenue Budgets,Childrens Services,Fostering and Adoption,A0484,Mainstream Carer Payments,A61166,Contract Plus,42264970,02/11/2023,202308,315.00,REDACTED PERSONAL INFORMATION,REDACTED PERSONAL INFORMATION
AD Regulated Provision,Revenue Budgets,Childrens Services,Fostering and Adoption,A0484,Mainstream Carer Payments,A57205,Child Care Payments,42264998,02/11/2023,202308,318.00,REDACTED PERSONAL INFORMATION,REDACTED PERSONAL INFORMATION
AD Regulated Provision,Revenue Budgets,Childrens Services,Fostering and Adoption,A0484,Mainstream Carer Payments,A61166,Contract Plus,42265036,02/11/2023,202308,315.00,REDACTED PERSONAL INFORMATION,REDACTED PERSONAL INFORMATION
AD Regulated Provision,Revenue Budgets,Childrens Services,Fostering and Adoption,A0486,Residence  Or Special G'Ship,A61015,Fostering and Guardianship Allowances,42265044,02/11/2023,202308,357.00,REDACTED PERSONAL INFORMATION,REDACTED PERSONAL INFORMATION
AD Regulated Provision,Revenue Budgets,Childrens Services,Fostering and Adoption,A0486,Residence  Or Special G'Ship,A61015,Fostering and Guardianship Allowances,42265044,02/11/2023,202308,357.00,REDACTED PERSONAL INFORMATION,REDACTED PERSONAL INFORMATION
AD Regulated Provision,Revenue Budgets,Childrens Services,Fostering and Adoption,A0486,Residence  Or Special G'Ship,A61015,Fostering and Guardianship Allowances,42265056,02/11/2023,202308,466.00,REDACTED PERSONAL INFORMATION,REDACTED PERSONAL INFORMATION
AD Regulated Provision,Revenue Budgets,Childrens Services,Fostering and Adoption,A0486,Residence  Or Special G'Ship,A61015,Fostering and Guardianship Allowances,42265057,02/11/2023,202308,357.00,REDACTED PERSONAL INFORMATION,REDACTED PERSONAL INFORMATION
AD Regulated Provision,Revenue Budgets,Childrens Services,Fostering and Adoption,A0486,Residence  Or Special G'Ship,A61015,Fostering and Guardianship Allowances,42265063,02/11/2023,202308,333.00,REDACTED PERSONAL INFORMATION,REDACTED PERSONAL INFORMATION
AD Regulated Provision,Revenue Budgets,Childrens Services,Fostering and Adoption,A0484,Mainstream Carer Payments,A57205,Child Care Payments,42265121,02/11/2023,202308,875.00,REDACTED PERSONAL INFORMATION,REDACTED PERSONAL INFORMATION
AD Regulated Provision,Revenue Budgets,Childrens Services,Children in Care Disability,A0509,Unaccomp Childr Asylum Seekers,A61152,Leaving Care Grant,30160768,04/11/2023,202308,541.67,REDACTED PERSONAL INFORMATION,REDACTED PERSONAL INFORMATION
AD Regulated Provision,Revenue Budgets,Childrens Services,Head Of Corporate Parenting,A0506,Head Of Service Resources,A56000,Other Establishments,30159827,06/11/2023,202308,"2,100.00",REDACTED PERSONAL INFORMATION,REDACTED PERSONAL INFORMATION
AD Regulated Provision,Revenue Budgets,Childrens Services,CS Commissioning Service,A0273,Agency Placement,A56000,Other Establishments,30159968,06/11/2023,202308,"18,373.34",REDACTED PERSONAL INFORMATION,REDACTED PERSONAL INFORMATION
AD Regulated Provision,Revenue Budgets,Childrens Services,CS Commissioning Service,A0273,Agency Placement,A56000,Other Establishments,30159970,06/11/2023,202308,"1,710.00",REDACTED PERSONAL INFORMATION,REDACTED PERSONAL INFORMATION
AD Regulated Provision,Revenue Budgets,Childrens Services,CS Commissioning Service,A0492,Agency Fostercare,A56000,Other Establishments,30160891,06/11/2023,202308,"4,182.50",REDACTED PERSONAL INFORMATION,REDACTED PERSONAL INFORMATION
AD Regulated Provision,Revenue Budgets,Childrens Services,Children in Care Disability,A0511,Care Leavers Allowances,A61152,Leaving Care Grant,30162602,06/11/2023,202308,875.00,REDACTED PERSONAL INFORMATION,REDACTED PERSONAL INFORMATION
AD Regulated Provision,Revenue Budgets,Childrens Services,CS Commissioning Service,A1844,CH and Educ Comm Team,A11005,Agency Supply Staff,30161905,07/11/2023,202308,636.19,REDACTED PERSONAL INFORMATION,REDACTED PERSONAL INFORMATION
AD Regulated Provision,Revenue Budgets,Childrens Services,CS Residential Homes,A1713,REDACTED PERSONAL INFORMATION,A40080,Health & Safety Equipment,30161030,08/11/2023,202308,"1,450.00",REDACTED PERSONAL INFORMATION,REDACTED PERSONAL INFORMATION
AD Regulated Provision,Revenue Budgets,Childrens Services,CS Commissioning Service,A0492,Agency Fostercare,A56000,Other Establishments,30161812,08/11/2023,202308,"5,142.90",1000540,Chrysalis Consortium Ltd
AD Regulated Provision,Revenue Budgets,Childrens Services,Children in Care Disability,A0509,Unaccomp Childr Asylum Seekers,A61163,Driving Lessons,30162604,08/11/2023,202308,645.00,1005601,Anderby Driving Centre Ltd
AD Regulated Provision,Revenue Budgets,Childrens Services,CS Commissioning Service,A0492,Agency Fostercare,A56000,Other Establishments,30161146,09/11/2023,202308,659.55,101455,Foster Care Associates Limited
AD Regulated Provision,Revenue Budgets,Childrens Services,CS Commissioning Service,A0492,Agency Fostercare,A56000,Other Establishments,30161155,09/11/2023,202308,-631.55,101455,Foster Care Associates Limited
AD Regulated Provision,Revenue Budgets,Childrens Services,Children in Care Disability,A0511,Care Leavers Allowances,A61165,Housing Benefit,42265916,09/11/2023,202308,257.00,REDACTED PERSONAL INFORMATION,REDACTED PERSONAL INFORMATION
AD Regulated Provision,Revenue Budgets,Childrens Services,Children in Care Disability,A0511,Care Leavers Allowances,A61165,Housing Benefit,42265918,09/11/2023,202308,257.00,REDACTED PERSONAL INFORMATION,REDACTED PERSONAL INFORMATION
AD Regulated Provision,Revenue Budgets,Childrens Services,Children in Care Disability,A0511,Care Leavers Allowances,A61165,Housing Benefit,42265919,09/11/2023,202308,360.00,REDACTED PERSONAL INFORMATION,REDACTED PERSONAL INFORMATION
AD Regulated Provision,Revenue Budgets,Childrens Services,Children in Care Disability,A0511,Care Leavers Allowances,A61165,Housing Benefit,42265920,09/11/2023,202308,257.00,REDACTED PERSONAL INFORMATION,REDACTED PERSONAL INFORMATION
AD Regulated Provision,Revenue Budgets,Childrens Services,Children in Care Disability,A0511,Care Leavers Allowances,A61165,Housing Benefit,42265924,09/11/2023,202308,257.00,REDACTED PERSONAL INFORMATION,REDACTED PERSONAL INFORMATION
AD Regulated Provision,Revenue Budgets,Childrens Services,Children in Care Disability,A0511,Care Leavers Allowances,A61165,Housing Benefit,42265926,09/11/2023,202308,257.00,REDACTED PERSONAL INFORMATION,REDACTED PERSONAL INFORMATION
AD Regulated Provision,Revenue Budgets,Childrens Services,Children in Care Disability,A0511,Care Leavers Allowances,A61165,Housing Benefit,42265927,09/11/2023,202308,257.00,REDACTED PERSONAL INFORMATION,REDACTED PERSONAL INFORMATION
AD Regulated Provision,Revenue Budgets,Childrens Services,Children in Care Disability,A0511,Care Leavers Allowances,A61165,Housing Benefit,42265928,09/11/2023,202308,257.00,REDACTED PERSONAL INFORMATION,REDACTED PERSONAL INFORMATION
AD Regulated Provision,Revenue Budgets,Childrens Services,Children in Care Disability,A0511,Care Leavers Allowances,A61165,Housing Benefit,42265929,09/11/2023,202308,257.00,REDACTED PERSONAL INFORMATION,REDACTED PERSONAL INFORMATION
AD Regulated Provision,Revenue Budgets,Childrens Services,Children in Care Disability,A0509,Unaccomp Childr Asylum Seekers,A61165,Housing Benefit,42265932,09/11/2023,202308,292.00,REDACTED PERSONAL INFORMATION,REDACTED PERSONAL INFORMATION
AD Regulated Provision,Revenue Budgets,Childrens Services,Children in Care Disability,A0511,Care Leavers Allowances,A61165,Housing Benefit,42265933,09/11/2023,202308,257.00,REDACTED PERSONAL INFORMATION,REDACTED PERSONAL INFORMATION
AD Regulated Provision,Revenue Budgets,Childrens Services,Children in Care Disability,A0511,Care Leavers Allowances,A61163,Driving Lessons,42265949,09/11/2023,202308,380.00,REDACTED PERSONAL INFORMATION,REDACTED PERSONAL INFORMATION
AD Regulated Provision,Revenue Budgets,Childrens Services,Children in Care Disability,A0511,Care Leavers Allowances,A61165,Housing Benefit,42265950,09/11/2023,202308,624.14,REDACTED PERSONAL INFORMATION,REDACTED PERSONAL INFORMATION
AD Regulated Provision,Revenue Budgets,Childrens Services,Children in Care Disability,A0517,Direct Payments Scheme,A56000,Other Establishments,42266005,09/11/2023,202308,398.19,REDACTED PERSONAL INFORMATION,REDACTED PERSONAL INFORMATION
AD Regulated Provision,Revenue Budgets,Childrens Services,Children in Care Disability,A0517,Direct Payments Scheme,A56000,Other Establishments,42266006,09/11/2023,202308,305.31,REDACTED PERSONAL INFORMATION,REDACTED PERSONAL INFORMATION
AD Regulated Provision,Revenue Budgets,Childrens Services,Children in Care Disability,A0514,Children in Care,A61156,Section 17,42266012,09/11/2023,202308,345.00,REDACTED PERSONAL INFORMATION,REDACTED PERSONAL INFORMATION
AD Regulated Provision,Revenue Budgets,Childrens Services,Children in Care Disability,A0517,Direct Payments Scheme,A56000,Other Establishments,42266013,09/11/2023,202308,384.45,REDACTED PERSONAL INFORMATION,REDACTED PERSONAL INFORMATION
AD Regulated Provision,Revenue Budgets,Childrens Services,Children in Care Disability,A0517,Direct Payments Scheme,A56000,Other Establishments,42266013,09/11/2023,202308,447.07,REDACTED PERSONAL INFORMATION,REDACTED PERSONAL INFORMATION
AD Regulated Provision,Revenue Budgets,Childrens Services,Fostering and Adoption,A0484,Mainstream Carer Payments,A61166,Contract Plus,42266031,09/11/2023,202308,315.00,REDACTED PERSONAL INFORMATION,REDACTED PERSONAL INFORMATION
AD Regulated Provision,Revenue Budgets,Childrens Services,Fostering and Adoption,A0489,Adoption Support,A61120,Adoptions Allowances,42266035,09/11/2023,202308,370.74,REDACTED PERSONAL INFORMATION,REDACTED PERSONAL INFORMATION
AD Regulated Provision,Revenue Budgets,Childrens Services,Fostering and Adoption,A0489,Adoption Support,A61120,Adoptions Allowances,42266035,09/11/2023,202308,370.74,REDACTED PERSONAL INFORMATION,REDACTED PERSONAL INFORMATION
AD Regulated Provision,Revenue Budgets,Childrens Services,Fostering and Adoption,A0484,Mainstream Carer Payments,A61166,Contract Plus,42266037,09/11/2023,202308,315.00,REDACTED PERSONAL INFORMATION,REDACTED PERSONAL INFORMATION
AD Regulated Provision,Revenue Budgets,Childrens Services,Fostering and Adoption,A0484,Mainstream Carer Payments,A61166,Contract Plus,42266100,09/11/2023,202308,315.00,REDACTED PERSONAL INFORMATION,REDACTED PERSONAL INFORMATION
AD Regulated Provision,Revenue Budgets,Childrens Services,Fostering and Adoption,A0486,Residence  Or Special G'Ship,A61015,Fostering and Guardianship Allowances,42266178,09/11/2023,202308,364.08,REDACTED PERSONAL INFORMATION,REDACTED PERSONAL INFORMATION
AD Regulated Provision,Revenue Budgets,Childrens Services,Fostering and Adoption,A0486,Residence  Or Special G'Ship,A61015,Fostering and Guardianship Allowances,42266178,09/11/2023,202308,364.08,REDACTED PERSONAL INFORMATION,REDACTED PERSONAL INFORMATION
AD Regulated Provision,Revenue Budgets,Childrens Services,Fostering and Adoption,A0484,Mainstream Carer Payments,A61166,Contract Plus,42266182,09/11/2023,202308,315.00,REDACTED PERSONAL INFORMATION,REDACTED PERSONAL INFORMATION
AD Regulated Provision,Revenue Budgets,Childrens Services,Fostering and Adoption,A0484,Mainstream Carer Payments,A61166,Contract Plus,42266199,09/11/2023,202308,315.00,REDACTED PERSONAL INFORMATION,REDACTED PERSONAL INFORMATION
AD Regulated Provision,Revenue Budgets,Childrens Services,Fostering and Adoption,A0484,Mainstream Carer Payments,A61166,Contract Plus,42266200,09/11/2023,202308,315.00,REDACTED PERSONAL INFORMATION,REDACTED PERSONAL INFORMATION
AD Regulated Provision,Revenue Budgets,Childrens Services,Fostering and Adoption,A0484,Mainstream Carer Payments,A57205,Child Care Payments,42266201,09/11/2023,202308,711.58,REDACTED PERSONAL INFORMATION,REDACTED PERSONAL INFORMATION
AD Regulated Provision,Revenue Budgets,Childrens Services,Fostering and Adoption,A0484,Mainstream Carer Payments,A61166,Contract Plus,42266202,09/11/2023,202308,315.00,REDACTED PERSONAL INFORMATION,REDACTED PERSONAL INFORMATION
AD Regulated Provision,Revenue Budgets,Childrens Services,Fostering and Adoption,A0484,Mainstream Carer Payments,A61166,Contract Plus,42266203,09/11/2023,202308,315.00,REDACTED PERSONAL INFORMATION,REDACTED PERSONAL INFORMATION
AD Regulated Provision,Revenue Budgets,Childrens Services,Fostering and Adoption,A0484,Mainstream Carer Payments,A61166,Contract Plus,42266204,09/11/2023,202308,315.00,REDACTED PERSONAL INFORMATION,REDACTED PERSONAL INFORMATION
AD Regulated Provision,Revenue Budgets,Childrens Services,Fostering and Adoption,A0484,Mainstream Carer Payments,A61159,Special Carer Payments,42266226,09/11/2023,202308,711.58,REDACTED PERSONAL INFORMATION,REDACTED PERSONAL INFORMATION
AD Regulated Provision,Revenue Budgets,Childrens Services,Fostering and Adoption,A0484,Mainstream Carer Payments,A61166,Contract Plus,42266236,09/11/2023,202308,315.00,REDACTED PERSONAL INFORMATION,REDACTED PERSONAL INFORMATION
AD Regulated Provision,Revenue Budgets,Childrens Services,Fostering and Adoption,A0484,Mainstream Carer Payments,A61166,Contract Plus,42266240,09/11/2023,202308,315.00,REDACTED PERSONAL INFORMATION,REDACTED PERSONAL INFORMATION
AD Regulated Provision,Revenue Budgets,Childrens Services,Fostering and Adoption,A0484,Mainstream Carer Payments,A61166,Contract Plus,42266243,09/11/2023,202308,315.00,REDACTED PERSONAL INFORMATION,REDACTED PERSONAL INFORMATION
AD Regulated Provision,Revenue Budgets,Childrens Services,Fostering and Adoption,A0489,Adoption Support,A61120,Adoptions Allowances,42266246,09/11/2023,202308,559.44,REDACTED PERSONAL INFORMATION,REDACTED PERSONAL INFORMATION
AD Regulated Provision,Revenue Budgets,Childrens Services,Fostering and Adoption,A0484,Mainstream Carer Payments,A61166,Contract Plus,42266251,09/11/2023,202308,315.00,REDACTED PERSONAL INFORMATION,REDACTED PERSONAL INFORMATION
AD Regulated Provision,Revenue Budgets,Childrens Services,Fostering and Adoption,A0484,Mainstream Carer Payments,A61166,Contract Plus,42266252,09/11/2023,202308,315.00,REDACTED PERSONAL INFORMATION,REDACTED PERSONAL INFORMATION
AD Regulated Provision,Revenue Budgets,Childrens Services,Fostering and Adoption,A0484,Mainstream Carer Payments,A61115,Holiday Allowances,42266255,09/11/2023,202308,318.00,REDACTED PERSONAL INFORMATION,REDACTED PERSONAL INFORMATION
AD Regulated Provision,Revenue Budgets,Childrens Services,Fostering and Adoption,A0486,Residence  Or Special G'Ship,A61015,Fostering and Guardianship Allowances,42266256,09/11/2023,202308,365.10,REDACTED PERSONAL INFORMATION,REDACTED PERSONAL INFORMATION
AD Regulated Provision,Revenue Budgets,Childrens Services,Fostering and Adoption,A0489,Adoption Support,A61120,Adoptions Allowances,42266280,09/11/2023,202308,886.58,REDACTED PERSONAL INFORMATION,REDACTED PERSONAL INFORMATION
AD Regulated Provision,Revenue Budgets,Childrens Services,Fostering and Adoption,A0484,Mainstream Carer Payments,A61166,Contract Plus,42266321,09/11/2023,202308,315.00,REDACTED PERSONAL INFORMATION,REDACTED PERSONAL INFORMATION
AD Regulated Provision,Revenue Budgets,Childrens Services,Fostering and Adoption,A0484,Mainstream Carer Payments,A57205,Child Care Payments,42266350,09/11/2023,202308,318.00,REDACTED PERSONAL INFORMATION,REDACTED PERSONAL INFORMATION
AD Regulated Provision,Revenue Budgets,Childrens Services,Fostering and Adoption,A0484,Mainstream Carer Payments,A61166,Contract Plus,42266389,09/11/2023,202308,315.00,REDACTED PERSONAL INFORMATION,REDACTED PERSONAL INFORMATION
AD Regulated Provision,Revenue Budgets,Childrens Services,Fostering and Adoption,A0486,Residence  Or Special G'Ship,A61015,Fostering and Guardianship Allowances,42266397,09/11/2023,202308,357.00,REDACTED PERSONAL INFORMATION,REDACTED PERSONAL INFORMATION
AD Regulated Provision,Revenue Budgets,Childrens Services,Fostering and Adoption,A0486,Residence  Or Special G'Ship,A61015,Fostering and Guardianship Allowances,42266397,09/11/2023,202308,357.00,REDACTED PERSONAL INFORMATION,REDACTED PERSONAL INFORMATION
AD Regulated Provision,Revenue Budgets,Childrens Services,Fostering and Adoption,A0486,Residence  Or Special G'Ship,A61015,Fostering and Guardianship Allowances,42266409,09/11/2023,202308,466.00,REDACTED PERSONAL INFORMATION,REDACTED PERSONAL INFORMATION
AD Regulated Provision,Revenue Budgets,Childrens Services,Fostering and Adoption,A0486,Residence  Or Special G'Ship,A61015,Fostering and Guardianship Allowances,42266410,09/11/2023,202308,357.00,REDACTED PERSONAL INFORMATION,REDACTED PERSONAL INFORMATION
AD Regulated Provision,Revenue Budgets,Childrens Services,Fostering and Adoption,A0486,Residence  Or Special G'Ship,A61015,Fostering and Guardianship Allowances,42266416,09/11/2023,202308,333.00,REDACTED PERSONAL INFORMATION,REDACTED PERSONAL INFORMATION
AD Regulated Provision,Revenue Budgets,Childrens Services,Children in Care Disability,A0509,REDACTED PERSONAL INFORMATION,A61045,Personal Allowance,30162736,10/11/2023,202308,404.40,PETTY CASH,PETTY CASH
AD Regulated Provision,Revenue Budgets,Childrens Services,Children in Care Disability,A0511,REDACTED PERSONAL INFORMATION,A61045,Personal Allowance,30162736,10/11/2023,202308,876.20,PETTY CASH,PETTY CASH
AD Regulated Provision,Revenue Budgets,Childrens Services,Children in Care Disability,A0511,REDACTED PERSONAL INFORMATION,A61110,Birthday Allowances,30162736,10/11/2023,202308,280.00,PETTY CASH,PETTY CASH
AD Regulated Provision,Revenue Budgets,Childrens Services,CS Commissioning Service,A0273,Agency Placement,A56000,Other Establishments,30162160,13/11/2023,202308,"10,900.00",145195,Keys Pce Limited
AD Regulated Provision,Revenue Budgets,Childrens Services,CS Commissioning Service,A0273,Agency Placement,A56000,Other Establishments,30162161,13/11/2023,202308,"21,649.74",145195,Keys Pce Limited
AD Regulated Provision,Revenue Budgets,Childrens Services,CS Commissioning Service,A0273,Agency Placement,A56000,Other Establishments,30162171,13/11/2023,202308,"7,682.16",145195,Keys Pce Limited
AD Regulated Provision,Revenue Budgets,Childrens Services,CS Residential Homes,A0501,REDACTED PERSONAL INFORMATION,A44030,Provisions,30162197,13/11/2023,202308,"1,421.71",PETTY CASH,PETTY CASH
AD Regulated Provision,Revenue Budgets,Childrens Services,CS Residential Homes,A0501,REDACTED PERSONAL INFORMATION,A49106,Holidays - Service Users,30162197,13/11/2023,202308,351.89,PETTY CASH,PETTY CASH
AD Regulated Provision,Revenue Budgets,Childrens Services,CS Commissioning Service,A1844,CH and Educ Comm Team,A11005,Agency Supply Staff,30162313,14/11/2023,202308,276.41,1007668,Humber Recruitment Limited
AD Regulated Provision,Revenue Budgets,Childrens Services,Fostering and Adoption,A0490,Fostering And Adoption Team,A11005,Agency Supply Staff,30162636,14/11/2023,202308,"2,127.50",120715,Nonstop Consulting Limited
AD Regulated Provision,Revenue Budgets,Childrens Services,Fostering and Adoption,A0490,Fostering And Adoption Team,A11005,Agency Supply Staff,30162638,14/11/2023,202308,"1,725.00",120715,Nonstop Consulting Limited
AD Regulated Provision,Revenue Budgets,Childrens Services,CS Commissioning Service,A0273,Agency Placement,A56000,Other Establishments,30165162,14/11/2023,202308,"13,206.67",1000489,Acorn Care & Education Ltd (Sales)
AD Regulated Provision,Revenue Budgets,Childrens Services,CS Commissioning Service,A0492,Agency Fostercare,A56000,Other Establishments,30162807,15/11/2023,202308,"3,957.30",101455,Foster Care Associates Limited
AD Regulated Provision,Revenue Budgets,Childrens Services,CS Commissioning Service,A0492,Agency Fostercare,A56000,Other Establishments,30162808,15/11/2023,202308,"3,957.30",101455,Foster Care Associates Limited
AD Regulated Provision,Revenue Budgets,Childrens Services,CS Commissioning Service,A0492,Agency Fostercare,A56000,Other Establishments,30162815,15/11/2023,202308,"3,789.30",101455,Foster Care Associates Limited
AD Regulated Provision,Revenue Budgets,Childrens Services,CS Commissioning Service,A0492,Agency Fostercare,A56000,Other Establishments,30162819,15/11/2023,202308,"3,789.30",101455,Foster Care Associates Limited
AD Regulated Provision,Revenue Budgets,Childrens Services,CS Commissioning Service,A0492,Agency Fostercare,A56000,Other Establishments,30162824,15/11/2023,202308,"3,957.30",101455,Foster Care Associates Limited
AD Regulated Provision,Revenue Budgets,Childrens Services,CS Commissioning Service,A0492,Agency Fostercare,A56000,Other Establishments,30162825,15/11/2023,202308,"3,789.30",101455,Foster Care Associates Limited
AD Regulated Provision,Revenue Budgets,Childrens Services,CS Commissioning Service,A0492,Agency Fostercare,A56000,Other Establishments,30162827,15/11/2023,202308,"3,957.30",101455,Foster Care Associates Limited
AD Regulated Provision,Revenue Budgets,Childrens Services,CS Commissioning Service,A0492,Agency Fostercare,A56000,Other Establishments,30162828,15/11/2023,202308,"3,957.30",101455,Foster Care Associates Limited
AD Regulated Provision,Revenue Budgets,Childrens Services,CS Commissioning Service,A0492,Agency Fostercare,A56000,Other Establishments,30162829,15/11/2023,202308,"3,751.41",101455,Foster Care Associates Limited
AD Regulated Provision,Revenue Budgets,Childrens Services,CS Commissioning Service,A0492,Agency Fostercare,A56000,Other Establishments,30162833,15/11/2023,202308,"3,957.30",101455,Foster Care Associates Limited
AD Regulated Provision,Revenue Budgets,Childrens Services,CS Commissioning Service,A0492,Agency Fostercare,A56000,Other Establishments,30162982,15/11/2023,202308,"3,957.30",101455,Foster Care Associates Limited
AD Regulated Provision,Revenue Budgets,Childrens Services,CS Commissioning Service,A0492,Agency Fostercare,A56000,Other Establishments,30162983,15/11/2023,202308,"4,066.80",101455,Foster Care Associates Limited
AD Regulated Provision,Revenue Budgets,Childrens Services,CS Commissioning Service,A0492,Agency Fostercare,A56000,Other Establishments,30162984,15/11/2023,202308,"3,957.30",101455,Foster Care Associates Limited
AD Regulated Provision,Revenue Budgets,Childrens Services,CS Commissioning Service,A0492,Agency Fostercare,A56000,Other Establishments,30162990,15/11/2023,202308,"3,482.72",101455,Foster Care Associates Limited
AD Regulated Provision,Revenue Budgets,Childrens Services,CS Commissioning Service,A0492,Agency Fostercare,A56000,Other Establishments,30162992,15/11/2023,202308,"4,066.50",101455,Foster Care Associates Limited
AD Regulated Provision,Revenue Budgets,Childrens Services,CS Commissioning Service,A0492,Agency Fostercare,A56000,Other Establishments,30162993,15/11/2023,202308,"4,066.80",101455,Foster Care Associates Limited
AD Regulated Provision,Revenue Budgets,Childrens Services,CS Commissioning Service,A0492,Agency Fostercare,A56000,Other Establishments,30162997,15/11/2023,202308,"4,511.14",101455,Foster Care Associates Limited
AD Regulated Provision,Revenue Budgets,Childrens Services,CS Commissioning Service,A0492,Agency Fostercare,A56000,Other Establishments,30162998,15/11/2023,202308,"3,789.30",101455,Foster Care Associates Limited
AD Regulated Provision,Revenue Budgets,Childrens Services,CS Commissioning Service,A0492,Agency Fostercare,A56000,Other Establishments,30163001,15/11/2023,202308,"3,789.30",101455,Foster Care Associates Limited
AD Regulated Provision,Revenue Budgets,Childrens Services,CS Commissioning Service,A0492,Agency Fostercare,A56000,Other Establishments,30163003,15/11/2023,202308,"3,789.30",101455,Foster Care Associates Limited
AD Regulated Provision,Revenue Budgets,Childrens Services,CS Commissioning Service,A0492,Agency Fostercare,A56000,Other Establishments,30163004,15/11/2023,202308,"4,699.50",101455,Foster Care Associates Limited
AD Regulated Provision,Revenue Budgets,Childrens Services,CS Commissioning Service,A0492,Agency Fostercare,A56000,Other Establishments,30163009,15/11/2023,202308,"4,066.80",101455,Foster Care Associates Limited
AD Regulated Provision,Revenue Budgets,Childrens Services,CS Commissioning Service,A0492,Agency Fostercare,A56000,Other Establishments,30163012,15/11/2023,202308,"3,641.40",101455,Foster Care Associates Limited
AD Regulated Provision,Revenue Budgets,Childrens Services,CS Commissioning Service,A0492,Agency Fostercare,A56000,Other Establishments,30163013,15/11/2023,202308,"4,066.80",101455,Foster Care Associates Limited
AD Regulated Provision,Revenue Budgets,Childrens Services,CS Commissioning Service,A0492,Agency Fostercare,A56000,Other Establishments,30163107,15/11/2023,202308,"4,722.30",135118,Orange Grove Fostercare Ltd
AD Regulated Provision,Revenue Budgets,Childrens Services,CS Commissioning Service,A0492,Agency Fostercare,A56000,Other Establishments,30163109,15/11/2023,202308,"3,774.00",135118,Orange Grove Fostercare Ltd
AD Regulated Provision,Revenue Budgets,Childrens Services,CS Commissioning Service,A0492,Agency Fostercare,A56000,Other Establishments,30163111,15/11/2023,202308,"3,660.23",135118,Orange Grove Fostercare Ltd
AD Regulated Provision,Revenue Budgets,Childrens Services,CS Commissioning Service,A0492,Agency Fostercare,A56000,Other Establishments,30163112,15/11/2023,202308,"3,654.71",145485,Fosterplus Ltd
AD Regulated Provision,Revenue Budgets,Childrens Services,CS Commissioning Service,A0492,Agency Fostercare,A56000,Other Establishments,30163126,15/11/2023,202308,"3,868.80",135118,Orange Grove Fostercare Ltd
AD Regulated Provision,Revenue Budgets,Childrens Services,CS Commissioning Service,A0492,Agency Fostercare,A56000,Other Establishments,30163130,15/11/2023,202308,"3,983.70",145485,Fosterplus Ltd
AD Regulated Provision,Revenue Budgets,Childrens Services,CS Commissioning Service,A0492,Agency Fostercare,A56000,Other Establishments,30163134,15/11/2023,202308,"3,698.52",135118,Orange Grove Fostercare Ltd
AD Regulated Provision,Revenue Budgets,Childrens Services,CS Commissioning Service,A0492,Agency Fostercare,A56000,Other Establishments,30163135,15/11/2023,202308,"3,876.00",101455,Foster Care Associates Limited
AD Regulated Provision,Revenue Budgets,Childrens Services,Children in Care Disability,A0511,Care Leavers Allowances,A61152,Leaving Care Grant,30163618,15/11/2023,202308,453.33,103262,Carpets Galore
AD Regulated Provision,Revenue Budgets,Childrens Services,Children in Care Disability,A0515,Childrens Disability Team,A56000,Other Establishments,30163685,16/11/2023,202308,300.00,REDACTED PERSONAL INFORMATION,REDACTED PERSONAL INFORMATION
AD Regulated Provision,Revenue Budgets,Childrens Services,CS Commissioning Service,A0273,Agency Placement,A56000,Other Establishments,30164964,16/11/2023,202308,"22,517.19",1000489,Acorn Care & Education Ltd (Sales)
AD Regulated Provision,Revenue Budgets,Childrens Services,CS Commissioning Service,A0273,Agency Placement,A56000,Other Establishments,30166847,16/11/2023,202308,"44,214.00",1002901,Safe Haven Adolescent Care Group Ltd
AD Regulated Provision,Revenue Budgets,Childrens Services,Fostering and Adoption,A1603,Adoption Support Fund,A49105,Other Supplies & Services,30166891,16/11/2023,202308,330.00,140435,Time To Listen Limited
AD Regulated Provision,Revenue Budgets,Childrens Services,Children in Care Disability,A0511,Care Leavers Allowances,A61165,Housing Benefit,42267431,16/11/2023,202308,257.00,REDACTED PERSONAL INFORMATION,REDACTED PERSONAL INFORMATION
AD Regulated Provision,Revenue Budgets,Childrens Services,Children in Care Disability,A0511,Care Leavers Allowances,A61165,Housing Benefit,42267432,16/11/2023,202308,360.00,REDACTED PERSONAL INFORMATION,REDACTED PERSONAL INFORMATION
AD Regulated Provision,Revenue Budgets,Childrens Services,Children in Care Disability,A0511,Care Leavers Allowances,A61165,Housing Benefit,42267434,16/11/2023,202308,257.00,REDACTED PERSONAL INFORMATION,REDACTED PERSONAL INFORMATION
AD Regulated Provision,Revenue Budgets,Childrens Services,Children in Care Disability,A0511,Care Leavers Allowances,A61165,Housing Benefit,42267436,16/11/2023,202308,257.00,REDACTED PERSONAL INFORMATION,REDACTED PERSONAL INFORMATION
AD Regulated Provision,Revenue Budgets,Childrens Services,Children in Care Disability,A0511,Care Leavers Allowances,A61165,Housing Benefit,42267438,16/11/2023,202308,257.00,REDACTED PERSONAL INFORMATION,REDACTED PERSONAL INFORMATION
AD Regulated Provision,Revenue Budgets,Childrens Services,Children in Care Disability,A0511,Care Leavers Allowances,A61165,Housing Benefit,42267440,16/11/2023,202308,257.00,REDACTED PERSONAL INFORMATION,REDACTED PERSONAL INFORMATION
AD Regulated Provision,Revenue Budgets,Childrens Services,Children in Care Disability,A0511,Care Leavers Allowances,A61165,Housing Benefit,42267441,16/11/2023,202308,257.00,REDACTED PERSONAL INFORMATION,REDACTED PERSONAL INFORMATION
AD Regulated Provision,Revenue Budgets,Childrens Services,Children in Care Disability,A0511,Care Leavers Allowances,A61165,Housing Benefit,42267442,16/11/2023,202308,257.00,REDACTED PERSONAL INFORMATION,REDACTED PERSONAL INFORMATION
AD Regulated Provision,Revenue Budgets,Childrens Services,Children in Care Disability,A0511,Care Leavers Allowances,A61165,Housing Benefit,42267445,16/11/2023,202308,257.00,REDACTED PERSONAL INFORMATION,REDACTED PERSONAL INFORMATION
AD Regulated Provision,Revenue Budgets,Childrens Services,Children in Care Disability,A0509,Unaccomp Childr Asylum Seekers,A61165,Housing Benefit,42267446,16/11/2023,202308,292.00,REDACTED PERSONAL INFORMATION,REDACTED PERSONAL INFORMATION
AD Regulated Provision,Revenue Budgets,Childrens Services,Children in Care Disability,A0511,Care Leavers Allowances,A61165,Housing Benefit,42267447,16/11/2023,202308,257.00,REDACTED PERSONAL INFORMATION,REDACTED PERSONAL INFORMATION
AD Regulated Provision,Revenue Budgets,Childrens Services,Children in Care Disability,A0517,Direct Payments Scheme,A56000,Other Establishments,42267514,16/11/2023,202308,398.19,REDACTED PERSONAL INFORMATION,REDACTED PERSONAL INFORMATION
AD Regulated Provision,Revenue Budgets,Childrens Services,Children in Care Disability,A0517,Direct Payments Scheme,A56000,Other Establishments,42267515,16/11/2023,202308,305.31,REDACTED PERSONAL INFORMATION,REDACTED PERSONAL INFORMATION
AD Regulated Provision,Revenue Budgets,Childrens Services,Children in Care Disability,A0517,Direct Payments Scheme,A56000,Other Establishments,42267523,16/11/2023,202308,384.45,REDACTED PERSONAL INFORMATION,REDACTED PERSONAL INFORMATION
AD Regulated Provision,Revenue Budgets,Childrens Services,Children in Care Disability,A0517,Direct Payments Scheme,A56000,Other Establishments,42267523,16/11/2023,202308,447.07,REDACTED PERSONAL INFORMATION,REDACTED PERSONAL INFORMATION
AD Regulated Provision,Revenue Budgets,Childrens Services,Fostering and Adoption,A0484,Mainstream Carer Payments,A61166,Contract Plus,42267541,16/11/2023,202308,315.00,REDACTED PERSONAL INFORMATION,REDACTED PERSONAL INFORMATION
AD Regulated Provision,Revenue Budgets,Childrens Services,Fostering and Adoption,A0489,Adoption Support,A61120,Adoptions Allowances,42267545,16/11/2023,202308,370.74,REDACTED PERSONAL INFORMATION,REDACTED PERSONAL INFORMATION
AD Regulated Provision,Revenue Budgets,Childrens Services,Fostering and Adoption,A0489,Adoption Support,A61120,Adoptions Allowances,42267545,16/11/2023,202308,370.74,REDACTED PERSONAL INFORMATION,REDACTED PERSONAL INFORMATION
AD Regulated Provision,Revenue Budgets,Childrens Services,Fostering and Adoption,A0484,Mainstream Carer Payments,A61166,Contract Plus,42267547,16/11/2023,202308,315.00,REDACTED PERSONAL INFORMATION,REDACTED PERSONAL INFORMATION
AD Regulated Provision,Revenue Budgets,Childrens Services,Fostering and Adoption,A0484,Mainstream Carer Payments,A61166,Contract Plus,42267610,16/11/2023,202308,315.00,REDACTED PERSONAL INFORMATION,REDACTED PERSONAL INFORMATION
AD Regulated Provision,Revenue Budgets,Childrens Services,Fostering and Adoption,A0484,Mainstream Carer Payments,A57205,Child Care Payments,42267675,16/11/2023,202308,258.42,REDACTED PERSONAL INFORMATION,REDACTED PERSONAL INFORMATION
AD Regulated Provision,Revenue Budgets,Childrens Services,Fostering and Adoption,A0484,Mainstream Carer Payments,A57205,Child Care Payments,42267675,16/11/2023,202308,275.99,REDACTED PERSONAL INFORMATION,REDACTED PERSONAL INFORMATION
AD Regulated Provision,Revenue Budgets,Childrens Services,Fostering and Adoption,A0486,Residence  Or Special G'Ship,A61015,Fostering and Guardianship Allowances,42267688,16/11/2023,202308,364.08,REDACTED PERSONAL INFORMATION,REDACTED PERSONAL INFORMATION
AD Regulated Provision,Revenue Budgets,Childrens Services,Fostering and Adoption,A0486,Residence  Or Special G'Ship,A61015,Fostering and Guardianship Allowances,42267688,16/11/2023,202308,364.08,REDACTED PERSONAL INFORMATION,REDACTED PERSONAL INFORMATION
AD Regulated Provision,Revenue Budgets,Childrens Services,Fostering and Adoption,A0484,Mainstream Carer Payments,A61166,Contract Plus,42267692,16/11/2023,202308,315.00,REDACTED PERSONAL INFORMATION,REDACTED PERSONAL INFORMATION
AD Regulated Provision,Revenue Budgets,Childrens Services,Fostering and Adoption,A0484,Mainstream Carer Payments,A61166,Contract Plus,42267709,16/11/2023,202308,315.00,REDACTED PERSONAL INFORMATION,REDACTED PERSONAL INFORMATION
AD Regulated Provision,Revenue Budgets,Childrens Services,Fostering and Adoption,A0484,Mainstream Carer Payments,A61166,Contract Plus,42267710,16/11/2023,202308,315.00,REDACTED PERSONAL INFORMATION,REDACTED PERSONAL INFORMATION
AD Regulated Provision,Revenue Budgets,Childrens Services,Fostering and Adoption,A0484,Mainstream Carer Payments,A57205,Child Care Payments,42267711,16/11/2023,202308,711.58,REDACTED PERSONAL INFORMATION,REDACTED PERSONAL INFORMATION
AD Regulated Provision,Revenue Budgets,Childrens Services,Fostering and Adoption,A0484,Mainstream Carer Payments,A61166,Contract Plus,42267712,16/11/2023,202308,315.00,REDACTED PERSONAL INFORMATION,REDACTED PERSONAL INFORMATION
AD Regulated Provision,Revenue Budgets,Childrens Services,Fostering and Adoption,A0484,Mainstream Carer Payments,A61166,Contract Plus,42267713,16/11/2023,202308,315.00,REDACTED PERSONAL INFORMATION,REDACTED PERSONAL INFORMATION
AD Regulated Provision,Revenue Budgets,Childrens Services,Fostering and Adoption,A0484,Mainstream Carer Payments,A61166,Contract Plus,42267714,16/11/2023,202308,315.00,REDACTED PERSONAL INFORMATION,REDACTED PERSONAL INFORMATION
AD Regulated Provision,Revenue Budgets,Childrens Services,Fostering and Adoption,A0484,Mainstream Carer Payments,A61150,Additional Cost,42267735,16/11/2023,202308,350.00,REDACTED PERSONAL INFORMATION,REDACTED PERSONAL INFORMATION
AD Regulated Provision,Revenue Budgets,Childrens Services,Fostering and Adoption,A0484,Mainstream Carer Payments,A61159,Special Carer Payments,42267736,16/11/2023,202308,711.58,REDACTED PERSONAL INFORMATION,REDACTED PERSONAL INFORMATION
AD Regulated Provision,Revenue Budgets,Childrens Services,Fostering and Adoption,A0484,Mainstream Carer Payments,A61166,Contract Plus,42267746,16/11/2023,202308,315.00,REDACTED PERSONAL INFORMATION,REDACTED PERSONAL INFORMATION
AD Regulated Provision,Revenue Budgets,Childrens Services,Fostering and Adoption,A0484,Mainstream Carer Payments,A61166,Contract Plus,42267749,16/11/2023,202308,315.00,REDACTED PERSONAL INFORMATION,REDACTED PERSONAL INFORMATION
AD Regulated Provision,Revenue Budgets,Childrens Services,Fostering and Adoption,A0484,Mainstream Carer Payments,A61166,Contract Plus,42267752,16/11/2023,202308,315.00,REDACTED PERSONAL INFORMATION,REDACTED PERSONAL INFORMATION
AD Regulated Provision,Revenue Budgets,Childrens Services,Fostering and Adoption,A0489,Adoption Support,A61120,Adoptions Allowances,42267755,16/11/2023,202308,559.44,REDACTED PERSONAL INFORMATION,REDACTED PERSONAL INFORMATION
AD Regulated Provision,Revenue Budgets,Childrens Services,Fostering and Adoption,A0484,Mainstream Carer Payments,A61166,Contract Plus,42267760,16/11/2023,202308,315.00,REDACTED PERSONAL INFORMATION,REDACTED PERSONAL INFORMATION
AD Regulated Provision,Revenue Budgets,Childrens Services,Fostering and Adoption,A0484,Mainstream Carer Payments,A61166,Contract Plus,42267761,16/11/2023,202308,315.00,REDACTED PERSONAL INFORMATION,REDACTED PERSONAL INFORMATION
AD Regulated Provision,Revenue Budgets,Childrens Services,Fostering and Adoption,A0486,Residence  Or Special G'Ship,A61015,Fostering and Guardianship Allowances,42267765,16/11/2023,202308,365.10,REDACTED PERSONAL INFORMATION,REDACTED PERSONAL INFORMATION
AD Regulated Provision,Revenue Budgets,Childrens Services,Fostering and Adoption,A0489,Adoption Support,A61120,Adoptions Allowances,42267790,16/11/2023,202308,886.58,REDACTED PERSONAL INFORMATION,REDACTED PERSONAL INFORMATION
AD Regulated Provision,Revenue Budgets,Childrens Services,Fostering and Adoption,A0484,Mainstream Carer Payments,A61166,Contract Plus,42267830,16/11/2023,202308,315.00,REDACTED PERSONAL INFORMATION,REDACTED PERSONAL INFORMATION
AD Regulated Provision,Revenue Budgets,Childrens Services,Fostering and Adoption,A0484,Mainstream Carer Payments,A57205,Child Care Payments,42267858,16/11/2023,202308,318.00,REDACTED PERSONAL INFORMATION,REDACTED PERSONAL INFORMATION
AD Regulated Provision,Revenue Budgets,Childrens Services,Fostering and Adoption,A0484,Mainstream Carer Payments,A61166,Contract Plus,42267897,16/11/2023,202308,315.00,REDACTED PERSONAL INFORMATION,REDACTED PERSONAL INFORMATION
AD Regulated Provision,Revenue Budgets,Childrens Services,Fostering and Adoption,A0486,Residence  Or Special G'Ship,A61015,Fostering and Guardianship Allowances,42267905,16/11/2023,202308,357.00,REDACTED PERSONAL INFORMATION,REDACTED PERSONAL INFORMATION
AD Regulated Provision,Revenue Budgets,Childrens Services,Fostering and Adoption,A0486,Residence  Or Special G'Ship,A61015,Fostering and Guardianship Allowances,42267905,16/11/2023,202308,357.00,REDACTED PERSONAL INFORMATION,REDACTED PERSONAL INFORMATION
AD Regulated Provision,Revenue Budgets,Childrens Services,Fostering and Adoption,A0486,Residence  Or Special G'Ship,A61015,Fostering and Guardianship Allowances,42267917,16/11/2023,202308,466.00,REDACTED PERSONAL INFORMATION,REDACTED PERSONAL INFORMATION
AD Regulated Provision,Revenue Budgets,Childrens Services,Fostering and Adoption,A0486,Residence  Or Special G'Ship,A61015,Fostering and Guardianship Allowances,42267918,16/11/2023,202308,357.00,REDACTED PERSONAL INFORMATION,REDACTED PERSONAL INFORMATION
AD Regulated Provision,Revenue Budgets,Childrens Services,Fostering and Adoption,A0486,Residence  Or Special G'Ship,A61015,Fostering and Guardianship Allowances,42267924,16/11/2023,202308,333.00,REDACTED PERSONAL INFORMATION,REDACTED PERSONAL INFORMATION
AD Regulated Provision,Revenue Budgets,Childrens Services,CS Commissioning Service,A0273,Agency Placement,A56000,Other Establishments,30163919,17/11/2023,202308,"26,641.84",100406,Kisimul School
AD Regulated Provision,Revenue Budgets,Childrens Services,CS Commissioning Service,A0273,Agency Placement,A56000,Other Establishments,30163926,17/11/2023,202308,"26,703.47",100406,Kisimul School
AD Regulated Provision,Revenue Budgets,Childrens Services,CS Commissioning Service,A0273,Agency Placement,A56000,Other Establishments,30163929,17/11/2023,202308,"24,724.67",100406,Kisimul School
AD Regulated Provision,Revenue Budgets,Childrens Services,CS Residential Homes,A1718,Staying Close Project,A56000,Other Establishments,30164655,17/11/2023,202308,"4,470.00",1006007,Crisp and Crane Consultancy Limited
AD Regulated Provision,Revenue Budgets,Childrens Services,Children in Care Disability,A0511,Care Leavers Allowances,A61152,Leaving Care Grant,30165095,21/11/2023,202308,398.45,103262,Carpets Galore
AD Regulated Provision,Revenue Budgets,Childrens Services,CS Commissioning Service,A0492,Agency Fostercare,A56000,Other Establishments,30165097,22/11/2023,202308,"6,025.80",105607,Action For Children Services Ltd
AD Regulated Provision,Revenue Budgets,Childrens Services,CS Commissioning Service,A0492,Agency Fostercare,A56000,Other Establishments,30165099,22/11/2023,202308,"6,342.90",105607,Action For Children Services Ltd
AD Regulated Provision,Revenue Budgets,Childrens Services,CS Commissioning Service,A0492,Agency Fostercare,A56000,Other Establishments,30165101,22/11/2023,202308,"4,897.20",105607,Action For Children Services Ltd
AD Regulated Provision,Revenue Budgets,Childrens Services,CS Commissioning Service,A0492,Agency Fostercare,A56000,Other Establishments,30165104,22/11/2023,202308,"4,864.20",105607,Action For Children Services Ltd
AD Regulated Provision,Revenue Budgets,Childrens Services,CS Commissioning Service,A0492,Agency Fostercare,A56000,Other Establishments,30165106,22/11/2023,202308,"4,767.00",105607,Action For Children Services Ltd
AD Regulated Provision,Revenue Budgets,Childrens Services,Children in Care Disability,A0515,Childrens Disability Team,A49105,Other Supplies & Services,30165141,22/11/2023,202308,509.70,143698,Martin Walker
AD Regulated Provision,Revenue Budgets,Childrens Services,CS Commissioning Service,A0273,Agency Placement,A56000,Other Establishments,30165417,23/11/2023,202308,"6,515.64",100406,Kisimul School
AD Regulated Provision,Revenue Budgets,Childrens Services,CS Commissioning Service,A0273,Agency Placement,A56000,Other Establishments,30165418,23/11/2023,202308,"6,500.64",100406,Kisimul School
AD Regulated Provision,Revenue Budgets,Childrens Services,CS Commissioning Service,A0273,Agency Placement,A56000,Other Establishments,30165422,23/11/2023,202308,600.00,1007813,Project Phoenix Ltd
AD Regulated Provision,Revenue Budgets,Childrens Services,CS Commissioning Service,A0273,Agency Placement,A56000,Other Establishments,30165426,23/11/2023,202308,"6,032.80",100406,Kisimul School
AD Regulated Provision,Revenue Budgets,Childrens Services,Fostering and Adoption,A0484,Mainstream Carer Payments,A61166,Contract Plus,42269158,23/11/2023,202308,315.00,REDACTED PERSONAL INFORMATION,REDACTED PERSONAL INFORMATION
AD Regulated Provision,Revenue Budgets,Childrens Services,Fostering and Adoption,A0489,Adoption Support,A61120,Adoptions Allowances,42269162,23/11/2023,202308,370.74,REDACTED PERSONAL INFORMATION,REDACTED PERSONAL INFORMATION
AD Regulated Provision,Revenue Budgets,Childrens Services,Fostering and Adoption,A0489,Adoption Support,A61120,Adoptions Allowances,42269162,23/11/2023,202308,370.74,REDACTED PERSONAL INFORMATION,REDACTED PERSONAL INFORMATION
AD Regulated Provision,Revenue Budgets,Childrens Services,Fostering and Adoption,A0484,Mainstream Carer Payments,A57205,Child Care Payments,42269163,23/11/2023,202308,-350.00,REDACTED PERSONAL INFORMATION,REDACTED PERSONAL INFORMATION
AD Regulated Provision,Revenue Budgets,Childrens Services,Fostering and Adoption,A0484,Mainstream Carer Payments,A61166,Contract Plus,42269164,23/11/2023,202308,315.00,REDACTED PERSONAL INFORMATION,REDACTED PERSONAL INFORMATION
AD Regulated Provision,Revenue Budgets,Childrens Services,Fostering and Adoption,A0484,Mainstream Carer Payments,A61166,Contract Plus,42269227,23/11/2023,202308,315.00,REDACTED PERSONAL INFORMATION,REDACTED PERSONAL INFORMATION
AD Regulated Provision,Revenue Budgets,Childrens Services,Children in Care Disability,A0517,Direct Payments Scheme,A56000,Other Establishments,42269280,23/11/2023,202308,398.19,REDACTED PERSONAL INFORMATION,REDACTED PERSONAL INFORMATION
AD Regulated Provision,Revenue Budgets,Childrens Services,Children in Care Disability,A0517,Direct Payments Scheme,A56000,Other Establishments,42269281,23/11/2023,202308,305.31,REDACTED PERSONAL INFORMATION,REDACTED PERSONAL INFORMATION
AD Regulated Provision,Revenue Budgets,Childrens Services,Fostering and Adoption,A0486,Residence  Or Special G'Ship,A61015,Fostering and Guardianship Allowances,42269356,23/11/2023,202308,364.08,REDACTED PERSONAL INFORMATION,REDACTED PERSONAL INFORMATION
AD Regulated Provision,Revenue Budgets,Childrens Services,Fostering and Adoption,A0486,Residence  Or Special G'Ship,A61015,Fostering and Guardianship Allowances,42269356,23/11/2023,202308,364.08,REDACTED PERSONAL INFORMATION,REDACTED PERSONAL INFORMATION
AD Regulated Provision,Revenue Budgets,Childrens Services,Fostering and Adoption,A0484,Mainstream Carer Payments,A61166,Contract Plus,42269360,23/11/2023,202308,315.00,REDACTED PERSONAL INFORMATION,REDACTED PERSONAL INFORMATION
AD Regulated Provision,Revenue Budgets,Childrens Services,Fostering and Adoption,A0484,Mainstream Carer Payments,A61166,Contract Plus,42269377,23/11/2023,202308,315.00,REDACTED PERSONAL INFORMATION,REDACTED PERSONAL INFORMATION
AD Regulated Provision,Revenue Budgets,Childrens Services,Fostering and Adoption,A0484,Mainstream Carer Payments,A61166,Contract Plus,42269378,23/11/2023,202308,315.00,REDACTED PERSONAL INFORMATION,REDACTED PERSONAL INFORMATION
AD Regulated Provision,Revenue Budgets,Childrens Services,Fostering and Adoption,A0484,Mainstream Carer Payments,A57205,Child Care Payments,42269379,23/11/2023,202308,711.58,REDACTED PERSONAL INFORMATION,REDACTED PERSONAL INFORMATION
AD Regulated Provision,Revenue Budgets,Childrens Services,Fostering and Adoption,A0484,Mainstream Carer Payments,A61166,Contract Plus,42269380,23/11/2023,202308,315.00,REDACTED PERSONAL INFORMATION,REDACTED PERSONAL INFORMATION
AD Regulated Provision,Revenue Budgets,Childrens Services,Fostering and Adoption,A0484,Mainstream Carer Payments,A61166,Contract Plus,42269381,23/11/2023,202308,315.00,REDACTED PERSONAL INFORMATION,REDACTED PERSONAL INFORMATION
AD Regulated Provision,Revenue Budgets,Childrens Services,Fostering and Adoption,A0484,Mainstream Carer Payments,A61166,Contract Plus,42269382,23/11/2023,202308,315.00,REDACTED PERSONAL INFORMATION,REDACTED PERSONAL INFORMATION
AD Regulated Provision,Revenue Budgets,Childrens Services,Fostering and Adoption,A0484,Mainstream Carer Payments,A61159,Special Carer Payments,42269405,23/11/2023,202308,711.58,REDACTED PERSONAL INFORMATION,REDACTED PERSONAL INFORMATION
AD Regulated Provision,Revenue Budgets,Childrens Services,Fostering and Adoption,A0484,Mainstream Carer Payments,A61166,Contract Plus,42269415,23/11/2023,202308,315.00,REDACTED PERSONAL INFORMATION,REDACTED PERSONAL INFORMATION
AD Regulated Provision,Revenue Budgets,Childrens Services,Fostering and Adoption,A0484,Mainstream Carer Payments,A61166,Contract Plus,42269418,23/11/2023,202308,315.00,REDACTED PERSONAL INFORMATION,REDACTED PERSONAL INFORMATION
AD Regulated Provision,Revenue Budgets,Childrens Services,Fostering and Adoption,A0484,Mainstream Carer Payments,A61166,Contract Plus,42269421,23/11/2023,202308,315.00,REDACTED PERSONAL INFORMATION,REDACTED PERSONAL INFORMATION
AD Regulated Provision,Revenue Budgets,Childrens Services,Fostering and Adoption,A0489,Adoption Support,A61120,Adoptions Allowances,42269424,23/11/2023,202308,559.44,REDACTED PERSONAL INFORMATION,REDACTED PERSONAL INFORMATION
AD Regulated Provision,Revenue Budgets,Childrens Services,Fostering and Adoption,A0484,Mainstream Carer Payments,A61166,Contract Plus,42269429,23/11/2023,202308,315.00,REDACTED PERSONAL INFORMATION,REDACTED PERSONAL INFORMATION
AD Regulated Provision,Revenue Budgets,Childrens Services,Fostering and Adoption,A0484,Mainstream Carer Payments,A61166,Contract Plus,42269430,23/11/2023,202308,315.00,REDACTED PERSONAL INFORMATION,REDACTED PERSONAL INFORMATION
AD Regulated Provision,Revenue Budgets,Childrens Services,Fostering and Adoption,A0486,Residence  Or Special G'Ship,A61015,Fostering and Guardianship Allowances,42269434,23/11/2023,202308,357.00,REDACTED PERSONAL INFORMATION,REDACTED PERSONAL INFORMATION
AD Regulated Provision,Revenue Budgets,Childrens Services,Fostering and Adoption,A0486,Residence  Or Special G'Ship,A61015,Fostering and Guardianship Allowances,42269434,23/11/2023,202308,357.00,REDACTED PERSONAL INFORMATION,REDACTED PERSONAL INFORMATION
AD Regulated Provision,Revenue Budgets,Childrens Services,Fostering and Adoption,A0486,Residence  Or Special G'Ship,A61015,Fostering and Guardianship Allowances,42269434,23/11/2023,202308,365.10,REDACTED PERSONAL INFORMATION,REDACTED PERSONAL INFORMATION
AD Regulated Provision,Revenue Budgets,Childrens Services,Fostering and Adoption,A0489,Adoption Support,A61120,Adoptions Allowances,42269473,23/11/2023,202308,886.58,REDACTED PERSONAL INFORMATION,REDACTED PERSONAL INFORMATION
AD Regulated Provision,Revenue Budgets,Childrens Services,Fostering and Adoption,A0484,Mainstream Carer Payments,A61150,Additional Cost,42269477,23/11/2023,202308,522.00,REDACTED PERSONAL INFORMATION,REDACTED PERSONAL INFORMATION
AD Regulated Provision,Revenue Budgets,Childrens Services,Fostering and Adoption,A0484,Mainstream Carer Payments,A61166,Contract Plus,42269513,23/11/2023,202308,315.00,REDACTED PERSONAL INFORMATION,REDACTED PERSONAL INFORMATION
AD Regulated Provision,Revenue Budgets,Childrens Services,Children in Care Disability,A0511,Care Leavers Allowances,A61165,Housing Benefit,42269516,23/11/2023,202308,257.00,REDACTED PERSONAL INFORMATION,REDACTED PERSONAL INFORMATION
AD Regulated Provision,Revenue Budgets,Childrens Services,Children in Care Disability,A0511,Care Leavers Allowances,A61165,Housing Benefit,42269541,23/11/2023,202308,257.00,REDACTED PERSONAL INFORMATION,REDACTED PERSONAL INFORMATION
AD Regulated Provision,Revenue Budgets,Childrens Services,Children in Care Disability,A0511,Care Leavers Allowances,A61165,Housing Benefit,42269545,23/11/2023,202308,257.00,REDACTED PERSONAL INFORMATION,REDACTED PERSONAL INFORMATION
AD Regulated Provision,Revenue Budgets,Childrens Services,Fostering and Adoption,A0484,Mainstream Carer Payments,A57205,Child Care Payments,42269546,23/11/2023,202308,318.00,REDACTED PERSONAL INFORMATION,REDACTED PERSONAL INFORMATION
AD Regulated Provision,Revenue Budgets,Childrens Services,Children in Care Disability,A0517,Direct Payments Scheme,A56000,Other Establishments,42269574,23/11/2023,202308,384.45,REDACTED PERSONAL INFORMATION,REDACTED PERSONAL INFORMATION
AD Regulated Provision,Revenue Budgets,Childrens Services,Children in Care Disability,A0517,Direct Payments Scheme,A56000,Other Establishments,42269574,23/11/2023,202308,447.07,REDACTED PERSONAL INFORMATION,REDACTED PERSONAL INFORMATION
AD Regulated Provision,Revenue Budgets,Childrens Services,Children in Care Disability,A0511,Care Leavers Allowances,A61165,Housing Benefit,42269582,23/11/2023,202308,257.00,REDACTED PERSONAL INFORMATION,REDACTED PERSONAL INFORMATION
AD Regulated Provision,Revenue Budgets,Childrens Services,Fostering and Adoption,A0484,Mainstream Carer Payments,A61166,Contract Plus,42269591,23/11/2023,202308,315.00,REDACTED PERSONAL INFORMATION,REDACTED PERSONAL INFORMATION
AD Regulated Provision,Revenue Budgets,Childrens Services,Fostering and Adoption,A0486,Residence  Or Special G'Ship,A61015,Fostering and Guardianship Allowances,42269600,23/11/2023,202308,357.00,REDACTED PERSONAL INFORMATION,REDACTED PERSONAL INFORMATION
AD Regulated Provision,Revenue Budgets,Childrens Services,Fostering and Adoption,A0486,Residence  Or Special G'Ship,A61015,Fostering and Guardianship Allowances,42269600,23/11/2023,202308,357.00,REDACTED PERSONAL INFORMATION,REDACTED PERSONAL INFORMATION
AD Regulated Provision,Revenue Budgets,Childrens Services,Children in Care Disability,A0511,Care Leavers Allowances,A61165,Housing Benefit,42269603,23/11/2023,202308,360.00,REDACTED PERSONAL INFORMATION,REDACTED PERSONAL INFORMATION
AD Regulated Provision,Revenue Budgets,Childrens Services,Children in Care Disability,A0511,Care Leavers Allowances,A61165,Housing Benefit,42269607,23/11/2023,202308,257.00,REDACTED PERSONAL INFORMATION,REDACTED PERSONAL INFORMATION
AD Regulated Provision,Revenue Budgets,Childrens Services,Fostering and Adoption,A0486,Residence  Or Special G'Ship,A61015,Fostering and Guardianship Allowances,42269616,23/11/2023,202308,466.00,REDACTED PERSONAL INFORMATION,REDACTED PERSONAL INFORMATION
AD Regulated Provision,Revenue Budgets,Childrens Services,Fostering and Adoption,A0486,Residence  Or Special G'Ship,A61015,Fostering and Guardianship Allowances,42269617,23/11/2023,202308,357.00,REDACTED PERSONAL INFORMATION,REDACTED PERSONAL INFORMATION
AD Regulated Provision,Revenue Budgets,Childrens Services,Children in Care Disability,A0511,Care Leavers Allowances,A61165,Housing Benefit,42269626,23/11/2023,202308,257.00,REDACTED PERSONAL INFORMATION,REDACTED PERSONAL INFORMATION
AD Regulated Provision,Revenue Budgets,Childrens Services,Fostering and Adoption,A0486,Residence  Or Special G'Ship,A61015,Fostering and Guardianship Allowances,42269628,23/11/2023,202308,333.00,REDACTED PERSONAL INFORMATION,REDACTED PERSONAL INFORMATION
AD Regulated Provision,Revenue Budgets,Childrens Services,Children in Care Disability,A0511,Care Leavers Allowances,A61165,Housing Benefit,42269647,23/11/2023,202308,257.00,REDACTED PERSONAL INFORMATION,REDACTED PERSONAL INFORMATION
AD Regulated Provision,Revenue Budgets,Childrens Services,Children in Care Disability,A0511,Care Leavers Allowances,A61165,Housing Benefit,42269650,23/11/2023,202308,257.00,REDACTED PERSONAL INFORMATION,REDACTED PERSONAL INFORMATION
AD Regulated Provision,Revenue Budgets,Childrens Services,Children in Care Disability,A0511,Care Leavers Allowances,A61165,Housing Benefit,42269692,23/11/2023,202308,257.00,REDACTED PERSONAL INFORMATION,REDACTED PERSONAL INFORMATION
AD Regulated Provision,Revenue Budgets,Childrens Services,Children in Care Disability,A0509,Unaccomp Childr Asylum Seekers,A61165,Housing Benefit,42269693,23/11/2023,202308,292.00,REDACTED PERSONAL INFORMATION,REDACTED PERSONAL INFORMATION
AD Regulated Provision,Revenue Budgets,Childrens Services,Children in Care Disability,A0509,Unaccomp Childr Asylum Seekers,A61165,Housing Benefit,42269710,23/11/2023,202308,"1,546.40",REDACTED PERSONAL INFORMATION,REDACTED PERSONAL INFORMATION
AD Regulated Provision,Revenue Budgets,Childrens Services,Fostering and Adoption,A1603,Adoption Support Fund,A61148,Setting Up,42269711,23/11/2023,202308,350.00,REDACTED PERSONAL INFORMATION,REDACTED PERSONAL INFORMATION
AD Regulated Provision,Revenue Budgets,Childrens Services,Fostering and Adoption,A0484,Mainstream Carer Payments,A57205,Child Care Payments,42269714,23/11/2023,202308,363.43,REDACTED PERSONAL INFORMATION,REDACTED PERSONAL INFORMATION
AD Regulated Provision,Revenue Budgets,Childrens Services,Fostering and Adoption,A0484,Mainstream Carer Payments,A57205,Child Care Payments,42269714,23/11/2023,202308,363.43,REDACTED PERSONAL INFORMATION,REDACTED PERSONAL INFORMATION
AD Regulated Provision,Revenue Budgets,Childrens Services,CS Residential Homes,A0502,REDACTED PERSONAL INFORMATION,A44030,Provisions,30165922,24/11/2023,202308,431.40,PETTY CASH,PETTY CASH
AD Regulated Provision,Revenue Budgets,Childrens Services,CS Residential Homes,A0501,REDACTED PERSONAL INFORMATION,A44030,Provisions,30165922,24/11/2023,202308,479.15,PETTY CASH,PETTY CASH
AD Regulated Provision,Revenue Budgets,Childrens Services,CS Residential Homes,A0504,REDACTED PERSONAL INFORMATION,A44030,Provisions,30166336,24/11/2023,202308,335.11,PETTY CASH,PETTY CASH
AD Regulated Provision,Revenue Budgets,Childrens Services,CS Residential Homes,A0500,REDACTED PERSONAL INFORMATION,A44030,Provisions,30166336,24/11/2023,202308,382.70,PETTY CASH,PETTY CASH
AD Regulated Provision,Revenue Budgets,Childrens Services,CS Residential Homes,A0504,REDACTED PERSONAL INFORMATION,A61110,Birthday Allowances,30166336,24/11/2023,202308,346.80,PETTY CASH,PETTY CASH
AD Regulated Provision,Revenue Budgets,Childrens Services,CS Commissioning Service,A0273,Agency Placement,A56000,Other Establishments,30165921,26/11/2023,202308,"20,951.36",145195,Keys Pce Limited
AD Regulated Provision,Revenue Budgets,Childrens Services,CS Commissioning Service,A0273,Agency Placement,A56000,Other Establishments,30165925,26/11/2023,202308,"20,951.36",145195,Keys Pce Limited
AD Regulated Provision,Revenue Budgets,Childrens Services,CS Commissioning Service,A0273,Agency Placement,A56000,Other Establishments,30165930,26/11/2023,202308,"20,951.36",145195,Keys Pce Limited
AD Regulated Provision,Revenue Budgets,Childrens Services,CS Commissioning Service,A0273,Agency Placement,A56000,Other Establishments,30165934,26/11/2023,202308,"20,951.36",145195,Keys Pce Limited
AD Regulated Provision,Revenue Budgets,Childrens Services,CS Commissioning Service,A0273,Agency Placement,A56000,Other Establishments,30165937,26/11/2023,202308,"21,800.00",145195,Keys Pce Limited
AD Regulated Provision,Revenue Budgets,Childrens Services,CS Commissioning Service,A0492,Agency Fostercare,A56000,Other Establishments,30166378,27/11/2023,202308,"3,509.70",150831,Affinity Fostering
AD Regulated Provision,Revenue Budgets,Childrens Services,CS Commissioning Service,A0492,Agency Fostercare,A56000,Other Establishments,30166483,28/11/2023,202308,"3,835.71",151029,Rainbow Fostering Services Ltd
AD Regulated Provision,Revenue Budgets,Childrens Services,Fostering and Adoption,A0490,Fostering And Adoption Team,A11005,Agency Supply Staff,30166703,28/11/2023,202308,"2,127.50",120715,Nonstop Consulting Limited
AD Regulated Provision,Revenue Budgets,Childrens Services,Fostering and Adoption,A0490,Fostering And Adoption Team,A11005,Agency Supply Staff,30166705,28/11/2023,202308,"2,127.50",120715,Nonstop Consulting Limited
AD Regulated Provision,Revenue Budgets,Childrens Services,CS Commissioning Service,A1844,CH and Educ Comm Team,A11005,Agency Supply Staff,30166833,28/11/2023,202308,649.35,1007668,Humber Recruitment Limited
AD Regulated Provision,Revenue Budgets,Childrens Services,CS Commissioning Service,A0492,Agency Fostercare,A56000,Other Establishments,30166830,29/11/2023,202308,"4,552.11",122809,Barnardos
AD Regulated Provision,Revenue Budgets,Childrens Services,CS Commissioning Service,A0492,Agency Fostercare,A56000,Other Establishments,30167073,30/11/2023,202308,"6,092.40",101150,Tree House Care Fostering Solutions Ltd
AD Regulated Provision,Revenue Budgets,Childrens Services,CS Commissioning Service,A0492,Agency Fostercare,A56000,Other Establishments,30165949,01/12/2023,202308,"5,757.01",138712,Family Care Fostering Ltd
Adult Services,Revenue Budgets,Adult Services,Assisted Living Centre,A0764,Assisted Living Centre,A40920,Purchase of Equipment,30163546,17/06/2023,202308,"3,902.17",139184,Ambre-Stone Ltd
Adult Services,Revenue Budgets,Adult Services,Assisted Living Centre,A0764,Assisted Living Centre,A40095,Equipment Maintenance and Repair,30151957,06/10/2023,202308,444.00,101710,Etac Limited
Adult Services,Revenue Budgets,Adult Services,Assisted Living Centre,A0764,Assisted Living Centre,A40080,Health & Safety Equipment,30154048,13/10/2023,202308,"3,073.00",100833,Jenx Ltd
Adult Services,Revenue Budgets,Adult Services,Assisted Living Centre,A0764,Assisted Living Centre,A40080,Health & Safety Equipment,30156962,25/10/2023,202308,372.00,101260,Silvalea Ltd
Adult Services,Revenue Budgets,Adult Services,Adult Social Care,A0172,Adult Social Care,A56000,Other Establishments,30157588,28/10/2023,202308,"2,493.00",1000177,Access UK Ltd
Adult Services,Revenue Budgets,Adult Services,Assisted Living Centre,A0764,Assisted Living Centre,A40080,Health & Safety Equipment,30157752,30/10/2023,202308,"2,632.00",1001212,Rehabilitation Manufacturing Services Ltd
Adult Services,Revenue Budgets,Adult Services,Assisted Living Centre,A0764,Assisted Living Centre,A40920,Purchase of Equipment,30157755,30/10/2023,202308,342.00,1001212,Rehabilitation Manufacturing Services Ltd
Adult Services,Revenue Budgets,Adult Services,Assisted Living Centre,A0764,Assisted Living Centre,A40095,Equipment Maintenance and Repair,30157895,30/10/2023,202308,275.13,126914,Joerns Healthcare Ltd
Adult Services,Revenue Budgets,Adult Services,Assisted Living Centre,A0764,Assisted Living Centre,A40095,Equipment Maintenance and Repair,30157895,30/10/2023,202308,502.02,126914,Joerns Healthcare Ltd
Adult Services,Revenue Budgets,Adult Services,Assisted Living Centre,A0764,Assisted Living Centre,A40095,Equipment Maintenance and Repair,30157895,30/10/2023,202308,816.00,126914,Joerns Healthcare Ltd
Adult Services,Revenue Budgets,Adult Services,Assisted Living Centre,A0764,Assisted Living Centre,A40080,Health & Safety Equipment,30157897,30/10/2023,202308,751.18,101715,Nottingham Rehab Limited
Adult Services,Revenue Budgets,Adult Services,Assisted Living Centre,A0764,Assisted Living Centre,A40095,Equipment Maintenance and Repair,30158560,30/10/2023,202308,259.50,100556,R S Components Ltd
Adult Services,Revenue Budgets,Adult Services,Assisted Living Centre,A0764,Assisted Living Centre,A40095,Equipment Maintenance and Repair,30158231,31/10/2023,202308,468.00,101710,Etac Limited
Adult Services,Revenue Budgets,Adult Services,Assisted Living Centre,A0764,Assisted Living Centre,A40095,Equipment Maintenance and Repair,30158231,31/10/2023,202308,688.00,101710,Etac Limited
Adult Services,Revenue Budgets,Adult Services,Director Of Adult Services,A1593,Safeguarding Adult Board,A56000,Other Establishments,30160597,31/10/2023,202308,"1,063.05",1005948,Darren Downs Consultancy
Adult Services,Revenue Budgets,Adult Services,Assisted Living Centre,A0764,Assisted Living Centre,A40095,Equipment Maintenance and Repair,30158974,02/11/2023,202308,259.60,1002110,Winncare
Adult Services,Revenue Budgets,Adult Services,Assisted Living Centre,A0764,Assisted Living Centre,A40095,Equipment Maintenance and Repair,30158974,02/11/2023,202308,384.60,1002110,Winncare
Adult Services,Revenue Budgets,Adult Services,Assisted Living Centre,A0764,Assisted Living Centre,A40080,Health & Safety Equipment,30159312,02/11/2023,202308,"3,812.80",146221,Katnic Ltd
Adult Services,Revenue Budgets,Adult Services,Assisted Living Centre,A0764,Assisted Living Centre,A40920,Purchase of Equipment,30159696,03/11/2023,202308,"1,721.00",119507,Prism Medical Uk Ltd
Adult Services,Revenue Budgets,Adult Services,Assisted Living Centre,A0764,Assisted Living Centre,A40080,Health & Safety Equipment,30160765,07/11/2023,202308,"1,170.00",139289,Sumed International Uk Ltd
Adult Services,Revenue Budgets,Adult Services,Assisted Living Centre,A0764,Assisted Living Centre,A40080,Health & Safety Equipment,30160765,07/11/2023,202308,"2,500.00",139289,Sumed International Uk Ltd
Adult Services,Revenue Budgets,Adult Services,Assisted Living Centre,A0764,Assisted Living Centre,A40080,Health & Safety Equipment,30160890,07/11/2023,202308,"3,800.00",1006670,Apollo Healthcare Technologies Limited
Adult Services,Revenue Budgets,Adult Services,Assisted Living Centre,A0764,Assisted Living Centre,A40080,Health & Safety Equipment,30161009,08/11/2023,202308,262.43,101715,Nottingham Rehab Limited
Adult Services,Revenue Budgets,Adult Services,Assisted Living Centre,A0764,Assisted Living Centre,A40080,Health & Safety Equipment,30161011,08/11/2023,202308,910.00,101715,Nottingham Rehab Limited
Adult Services,Revenue Budgets,Adult Services,Assisted Living Centre,A0764,Assisted Living Centre,A40080,Health & Safety Equipment,30161012,08/11/2023,202308,594.90,101715,Nottingham Rehab Limited
Adult Services,Revenue Budgets,Adult Services,Assisted Living Centre,A0764,Assisted Living Centre,A40080,Health & Safety Equipment,30161012,08/11/2023,202308,"1,225.00",101715,Nottingham Rehab Limited
Adult Services,Revenue Budgets,Adult Services,Assisted Living Centre,A0764,Assisted Living Centre,A40920,Purchase of Equipment,30161031,08/11/2023,202308,"2,160.00",123517,Seating Matters Ltd
Adult Services,Revenue Budgets,Adult Services,Assisted Living Centre,A0764,Assisted Living Centre,A40920,Purchase of Equipment,30161987,13/11/2023,202308,"1,712.00",101710,Etac Limited
Adult Services,Revenue Budgets,Adult Services,Assisted Living Centre,A0764,Assisted Living Centre,A40080,Health & Safety Equipment,30162100,13/11/2023,202308,"1,125.00",101710,Etac Limited
Adult Services,Revenue Budgets,Adult Services,Assisted Living Centre,A0764,Assisted Living Centre,A40080,Health & Safety Equipment,30162100,13/11/2023,202308,"3,327.75",101710,Etac Limited
Adult Services,Revenue Budgets,Adult Services,Assisted Living Centre,A0764,Assisted Living Centre,A40080,Health & Safety Equipment,30162166,13/11/2023,202308,"1,225.00",101715,Nottingham Rehab Limited
Adult Services,Revenue Budgets,Adult Services,Assisted Living Centre,A0764,Assisted Living Centre,A40920,Purchase of Equipment,30162253,13/11/2023,202308,590.00,1008044,Centrobed Ltd
Adult Services,Revenue Budgets,Adult Services,Assisted Living Centre,A0764,Assisted Living Centre,A40095,Equipment Maintenance and Repair,30162277,14/11/2023,202308,473.61,126914,Joerns Healthcare Ltd
Adult Services,Revenue Budgets,Adult Services,Adult Social Care,A0172,Adult Social Care,A44065,Consultancy Services,30162630,14/11/2023,202308,"16,747.50",1006058,Mace Consult Ltd
Adult Services,Revenue Budgets,Adult Services,Assisted Living Centre,A0764,Assisted Living Centre,A40080,Health & Safety Equipment,30162830,15/11/2023,202308,369.75,101710,Etac Limited
Adult Services,Revenue Budgets,Adult Services,Assisted Living Centre,A0764,Assisted Living Centre,A40080,Health & Safety Equipment,30164114,16/11/2023,202308,770.36,101627,Drive Devilbiss Healthcare Ltd
Adult Services,Revenue Budgets,Adult Services,Assisted Living Centre,A0764,Assisted Living Centre,A40080,Health & Safety Equipment,30163927,17/11/2023,202308,312.00,101260,Silvalea Ltd
Adult Services,Revenue Budgets,Adult Services,Assisted Living Centre,A0764,Assisted Living Centre,A40080,Health & Safety Equipment,30163927,17/11/2023,202308,312.00,101260,Silvalea Ltd
Adult Services,Revenue Budgets,Adult Services,Assisted Living Centre,A0764,Assisted Living Centre,A40080,Health & Safety Equipment,30163927,17/11/2023,202308,312.00,101260,Silvalea Ltd
Adult Services,Revenue Budgets,Adult Services,Assisted Living Centre,A0764,Assisted Living Centre,A40080,Health & Safety Equipment,30163927,17/11/2023,202308,312.00,101260,Silvalea Ltd
Adult Services,Revenue Budgets,Adult Services,Assisted Living Centre,A0764,Assisted Living Centre,A40080,Health & Safety Equipment,30163927,17/11/2023,202308,312.00,101260,Silvalea Ltd
Adult Services,Revenue Budgets,Adult Services,Assisted Living Centre,A0764,Assisted Living Centre,A40080,Health & Safety Equipment,30164402,20/11/2023,202308,"2,400.00",101715,Nottingham Rehab Limited
Adult Services,Revenue Budgets,Adult Services,Assisted Living Centre,A0764,Assisted Living Centre,A40080,Health & Safety Equipment,30164416,20/11/2023,202308,350.09,101715,Nottingham Rehab Limited
Adult Services,Revenue Budgets,Adult Services,Assisted Living Centre,A0764,Assisted Living Centre,A40080,Health & Safety Equipment,30164727,21/11/2023,202308,541.50,101715,Nottingham Rehab Limited
Adult Services,Revenue Budgets,Adult Services,Assisted Living Centre,A0764,Assisted Living Centre,A40080,Health & Safety Equipment,30166352,21/11/2023,202308,"1,140.00",1006670,Apollo Healthcare Technologies Limited
Adult Services,Revenue Budgets,Adult Services,Assisted Living Centre,A0764,Assisted Living Centre,A40080,Health & Safety Equipment,30165140,22/11/2023,202308,630.00,101260,Silvalea Ltd
Adult Services,Revenue Budgets,Adult Services,Adult Social Care,A0172,Adult Social Care,A56000,Other Establishments,30166680,28/11/2023,202308,"2,493.00",1000177,Access UK Ltd
Assistant Chief Executive,Revenue Budgets,Resources,Elections Team,A0219,Elections,A22005,Building Rents,30159746,06/05/2023,202308,"1,186.83",109912,Algeco UK Ltd
Assistant Chief Executive,Revenue Budgets,Resources,Elections Team,A0219,Elections,A22005,Building Rents,30159770,06/05/2023,202308,526.00,109912,Algeco UK Ltd
Assistant Chief Executive,Revenue Budgets,Resources,Elections Team,A0219,Elections,A22005,Building Rents,30159751,20/05/2023,202308,325.00,109912,Algeco UK Ltd
Assistant Chief Executive,Revenue Budgets,Resources,Emergency Planning,A1868,Household Support Fund 4,A47005,"Grants, Contributions & Donations",30159373,09/10/2023,202308,"2,500.00",1000935,Care Ltd
Assistant Chief Executive,Revenue Budgets,Resources,Elections Team,A0219,Elections,A22005,Building Rents,30159535,12/10/2023,202308,-936.40,109912,Algeco UK Ltd
Assistant Chief Executive,Revenue Budgets,Resources,Emergency Planning,A1868,Household Support Fund 4,A49105,Other Supplies & Services,30159971,12/10/2023,202308,270.06,112919,Allpay Limited
Assistant Chief Executive,Revenue Budgets,Resources,Emergency Planning,A0623,Emergency Planning,A52005,Payments to Other Local Authorities,30161574,16/10/2023,202308,"58,688.88",100377,East Riding Of Yorkshire Council
Assistant Chief Executive,Revenue Budgets,Resources,Emergency Planning,A1868,Household Support Fund 4,A47005,"Grants, Contributions & Donations",30163487,19/10/2023,202308,"5,750.00",128748,Care Plus Group Primary Care Ltd
Assistant Chief Executive,Revenue Budgets,Resources,Elections Team,A0219,Elections,A40100,Books,30159484,24/10/2023,202308,583.00,101447,Lexisnexis Uk
Assistant Chief Executive,Revenue Budgets,Resources,Assistant Chief Executive,A0770,Dem Improvement And Engagement,A56000,Other Establishments,30167037,25/10/2023,202308,"12,500.00",1002339,NHS Humber and North Yorkshire ICB
Assistant Chief Executive,Revenue Budgets,Resources,Elections Team,A0218,Electoral Registration,A43010,Printing,30159486,31/10/2023,202308,896.50,103724,Print Image Network Ltd
Assistant Chief Executive,Revenue Budgets,Resources,Elections Team,A0218,Electoral Registration,A43010,Printing,30160335,31/10/2023,202308,"1,392.89",103724,Print Image Network Ltd
Assistant Chief Executive,Revenue Budgets,Resources,Asylum & Resettlement,A1857,Ukraine Scheme,A61163,Driving Lessons,30159314,01/11/2023,202308,315.00,1006352,Proactive Driving
Assistant Chief Executive,Revenue Budgets,Resources,Registrars & Civic Services,A0222,Civic & Caretaking,A49105,Other Supplies & Services,30165098,01/11/2023,202308,320.00,1004487,Royal British Legion Poppy Appeal
Assistant Chief Executive,Revenue Budgets,Resources,Asylum & Resettlement,A1857,Ukraine Scheme,A56000,Other Establishments,30159585,03/11/2023,202308,350.00,HFU GRANT,HFU GRANT
Assistant Chief Executive,Revenue Budgets,Resources,Asylum & Resettlement,A1857,Ukraine Scheme,A56000,Other Establishments,30159585,03/11/2023,202308,350.00,HFU GRANT,HFU GRANT
Assistant Chief Executive,Revenue Budgets,Resources,Asylum & Resettlement,A1857,Ukraine Scheme,A56000,Other Establishments,30159585,03/11/2023,202308,500.00,HFU GRANT,HFU GRANT
Assistant Chief Executive,Revenue Budgets,Resources,Asylum & Resettlement,A1857,Ukraine Scheme,A56000,Other Establishments,30159585,03/11/2023,202308,500.00,HFU GRANT,HFU GRANT
Assistant Chief Executive,Revenue Budgets,Resources,Asylum & Resettlement,A1857,Ukraine Scheme,A56000,Other Establishments,30159585,03/11/2023,202308,500.00,HFU GRANT,HFU GRANT
Assistant Chief Executive,Revenue Budgets,Resources,Asylum & Resettlement,A1857,Ukraine Scheme,A56000,Other Establishments,30159585,03/11/2023,202308,500.00,HFU GRANT,HFU GRANT
Assistant Chief Executive,Revenue Budgets,Resources,Asylum & Resettlement,A1857,Ukraine Scheme,A56000,Other Establishments,30159585,03/11/2023,202308,500.00,HFU GRANT,HFU GRANT
Assistant Chief Executive,Revenue Budgets,Resources,Asylum & Resettlement,A1857,Ukraine Scheme,A56000,Other Establishments,30159585,03/11/2023,202308,500.00,HFU GRANT,HFU GRANT
Assistant Chief Executive,Revenue Budgets,Resources,Asylum & Resettlement,A1857,Ukraine Scheme,A56000,Other Establishments,30159585,03/11/2023,202308,500.00,HFU GRANT,HFU GRANT
Assistant Chief Executive,Revenue Budgets,Resources,Asylum & Resettlement,A1857,Ukraine Scheme,A56000,Other Establishments,30159585,03/11/2023,202308,500.00,HFU GRANT,HFU GRANT
Assistant Chief Executive,Revenue Budgets,Resources,Asylum & Resettlement,A1857,Ukraine Scheme,A56000,Other Establishments,30159585,03/11/2023,202308,500.00,HFU GRANT,HFU GRANT
Assistant Chief Executive,Revenue Budgets,Resources,Asylum & Resettlement,A1857,Ukraine Scheme,A56000,Other Establishments,30159585,03/11/2023,202308,500.00,HFU GRANT,HFU GRANT
Assistant Chief Executive,Revenue Budgets,Resources,Asylum & Resettlement,A1857,Ukraine Scheme,A56000,Other Establishments,30159585,03/11/2023,202308,500.00,HFU GRANT,HFU GRANT
Assistant Chief Executive,Revenue Budgets,Resources,Asylum & Resettlement,A1857,Ukraine Scheme,A56000,Other Establishments,30159585,03/11/2023,202308,500.00,HFU GRANT,HFU GRANT
Assistant Chief Executive,Revenue Budgets,Resources,Asylum & Resettlement,A1857,Ukraine Scheme,A56000,Other Establishments,30159585,03/11/2023,202308,500.00,HFU GRANT,HFU GRANT
Assistant Chief Executive,Revenue Budgets,Resources,Asylum & Resettlement,A1857,Ukraine Scheme,A56000,Other Establishments,30159585,03/11/2023,202308,500.00,HFU GRANT,HFU GRANT
Assistant Chief Executive,Revenue Budgets,Resources,Asylum & Resettlement,A1857,Ukraine Scheme,A56000,Other Establishments,30159585,03/11/2023,202308,500.00,HFU GRANT,HFU GRANT
Assistant Chief Executive,Revenue Budgets,Resources,Asylum & Resettlement,A1857,Ukraine Scheme,A56000,Other Establishments,30159585,03/11/2023,202308,500.00,HFU GRANT,HFU GRANT
Assistant Chief Executive,Revenue Budgets,Resources,Asylum & Resettlement,A1857,Ukraine Scheme,A56000,Other Establishments,30159585,03/11/2023,202308,500.00,HFU GRANT,HFU GRANT
Assistant Chief Executive,Revenue Budgets,Resources,Asylum & Resettlement,A1857,Ukraine Scheme,A56000,Other Establishments,30159585,03/11/2023,202308,500.00,HFU GRANT,HFU GRANT
Assistant Chief Executive,Revenue Budgets,Resources,Asylum & Resettlement,A1857,Ukraine Scheme,A56000,Other Establishments,30159585,03/11/2023,202308,500.00,HFU GRANT,HFU GRANT
Assistant Chief Executive,Revenue Budgets,Resources,Asylum & Resettlement,A1857,Ukraine Scheme,A56000,Other Establishments,30159585,03/11/2023,202308,500.00,HFU GRANT,HFU GRANT
Assistant Chief Executive,Revenue Budgets,Resources,Asylum & Resettlement,A1857,Ukraine Scheme,A56000,Other Establishments,30159585,03/11/2023,202308,500.00,HFU GRANT,HFU GRANT
Assistant Chief Executive,Revenue Budgets,Resources,Asylum & Resettlement,A1857,Ukraine Scheme,A56000,Other Establishments,30159585,03/11/2023,202308,500.00,HFU GRANT,HFU GRANT
Assistant Chief Executive,Revenue Budgets,Resources,Asylum & Resettlement,A1857,Ukraine Scheme,A56000,Other Establishments,30159585,03/11/2023,202308,500.00,HFU GRANT,HFU GRANT
Assistant Chief Executive,Revenue Budgets,Resources,Asylum & Resettlement,A1857,Ukraine Scheme,A56000,Other Establishments,30159585,03/11/2023,202308,500.00,HFU GRANT,HFU GRANT
Assistant Chief Executive,Revenue Budgets,Resources,Emergency Planning,A1868,Household Support Fund 4,A47005,"Grants, Contributions & Donations",30160033,06/11/2023,202308,500.00,HSFGRANT,HSF Grant
Assistant Chief Executive,Revenue Budgets,Resources,Emergency Planning,A1868,Household Support Fund 4,A47005,"Grants, Contributions & Donations",30160033,06/11/2023,202308,"1,000.00",HSFGRANT,HSF Grant
Assistant Chief Executive,Revenue Budgets,Resources,Emergency Planning,A1868,Household Support Fund 4,A47005,"Grants, Contributions & Donations",30160033,06/11/2023,202308,"1,000.00",HSFGRANT,HSF Grant
Assistant Chief Executive,Revenue Budgets,Resources,Emergency Planning,A1868,Household Support Fund 4,A47005,"Grants, Contributions & Donations",30160033,06/11/2023,202308,"1,000.00",HSFGRANT,HSF Grant
Assistant Chief Executive,Revenue Budgets,Resources,Emergency Planning,A1868,Household Support Fund 4,A47005,"Grants, Contributions & Donations",30160033,06/11/2023,202308,"1,000.00",HSFGRANT,HSF Grant
Assistant Chief Executive,Revenue Budgets,Resources,Emergency Planning,A1868,Household Support Fund 4,A47005,"Grants, Contributions & Donations",30160033,06/11/2023,202308,"1,200.00",HSFGRANT,HSF Grant
Assistant Chief Executive,Revenue Budgets,Resources,Emergency Planning,A1868,Household Support Fund 4,A47005,"Grants, Contributions & Donations",30160033,06/11/2023,202308,"1,200.00",HSFGRANT,HSF Grant
Assistant Chief Executive,Revenue Budgets,Resources,Emergency Planning,A1868,Household Support Fund 4,A47005,"Grants, Contributions & Donations",30160033,06/11/2023,202308,"1,500.00",HSFGRANT,HSF Grant
Assistant Chief Executive,Revenue Budgets,Resources,Emergency Planning,A1868,Household Support Fund 4,A47005,"Grants, Contributions & Donations",30160033,06/11/2023,202308,"1,500.00",HSFGRANT,HSF Grant
Assistant Chief Executive,Revenue Budgets,Resources,Emergency Planning,A1868,Household Support Fund 4,A47005,"Grants, Contributions & Donations",30160033,06/11/2023,202308,"2,000.00",HSFGRANT,HSF Grant
Assistant Chief Executive,Revenue Budgets,Resources,Emergency Planning,A1868,Household Support Fund 4,A47005,"Grants, Contributions & Donations",30160033,06/11/2023,202308,"2,000.00",HSFGRANT,HSF Grant
Assistant Chief Executive,Revenue Budgets,Resources,Emergency Planning,A1868,Household Support Fund 4,A47005,"Grants, Contributions & Donations",30161322,08/11/2023,202308,"23,000.00",120031,North Bank Forum
Assistant Chief Executive,Revenue Budgets,Resources,Emergency Planning,A1868,Household Support Fund 4,A49105,Other Supplies & Services,30161145,09/11/2023,202308,"40,000.00",1003832,Post Office Ltd - Payout
Assistant Chief Executive,Revenue Budgets,Resources,Elections Team,A0218,Electoral Registration,A45040,IT Software Purchase,30161708,10/11/2023,202308,"1,299.00",109848,Idox Software Ltd
Assistant Chief Executive,Revenue Budgets,Resources,Registrars & Civic Services,A0222,Civic & Caretaking,A44942,Promotions and Events,30161906,13/11/2023,202308,295.00,1002296,Coopers Tours
Assistant Chief Executive,Revenue Budgets,Resources,Emergency Planning,A1868,Household Support Fund 4,A47005,"Grants, Contributions & Donations",30164339,14/11/2023,202308,326.63,112919,Allpay Limited
Assistant Chief Executive,Revenue Budgets,Resources,Emergency Planning,A1868,Household Support Fund 4,A47005,"Grants, Contributions & Donations",30162774,15/11/2023,202308,500.00,HSFGRANT,HSF Grant
Assistant Chief Executive,Revenue Budgets,Resources,Emergency Planning,A1868,Household Support Fund 4,A47005,"Grants, Contributions & Donations",30162774,15/11/2023,202308,500.00,HSFGRANT,HSF Grant
Assistant Chief Executive,Revenue Budgets,Resources,Emergency Planning,A1868,Household Support Fund 4,A47005,"Grants, Contributions & Donations",30162774,15/11/2023,202308,500.00,HSFGRANT,HSF Grant
Assistant Chief Executive,Revenue Budgets,Resources,Emergency Planning,A1868,Household Support Fund 4,A47005,"Grants, Contributions & Donations",30162774,15/11/2023,202308,"1,000.00",HSFGRANT,HSF Grant
Assistant Chief Executive,Revenue Budgets,Resources,Emergency Planning,A1868,Household Support Fund 4,A47005,"Grants, Contributions & Donations",30162774,15/11/2023,202308,"1,500.00",HSFGRANT,HSF Grant
Assistant Chief Executive,Revenue Budgets,Resources,Emergency Planning,A1868,Household Support Fund 4,A47005,"Grants, Contributions & Donations",30162774,15/11/2023,202308,"2,500.00",HSFGRANT,HSF Grant
Assistant Chief Executive,Revenue Budgets,Resources,Registrars & Civic Services,A0222,Civic & Caretaking,A44030,Provisions,30164738,17/11/2023,202308,264.16,121021,Holdsworth Ltd
Assistant Chief Executive,Revenue Budgets,Resources,Emergency Planning,A1868,Household Support Fund 4,A47005,"Grants, Contributions & Donations",30165051,22/11/2023,202308,500.00,HSFGRANT,HSF Grant
Assistant Chief Executive,Revenue Budgets,Resources,Emergency Planning,A1868,Household Support Fund 4,A47005,"Grants, Contributions & Donations",30165151,22/11/2023,202308,"200,000.00",150373,Wonde Ltd
Assistant Chief Executive,Revenue Budgets,Resources,Emergency Planning,A1868,Household Support Fund 4,A47005,"Grants, Contributions & Donations",30166859,29/11/2023,202308,"1,000.00",HSFGRANT,HSF Grant
Assistant Chief Executive,Revenue Budgets,Resources,Asylum & Resettlement,A1857,Ukraine Scheme,A61163,Driving Lessons,30167127,29/11/2023,202308,380.00,1006819,Rapidpass Driving Centre
Assistant Director People & Organisation,Revenue Budgets,Resources,People and Culture,A0790,Disclosure Check Pmts,A16025,Recruitment Expenses,30161144,11/06/2023,202308,532.00,148286,Ucheck
Assistant Director People & Organisation,Revenue Budgets,Resources,People and Culture,A0790,Disclosure Check Pmts,A11005,Agency Supply Staff,30159990,04/10/2023,202308,"96,402.22",145197,Comensura Ltd
Assistant Director People & Organisation,Revenue Budgets,Resources,People and Culture,A0790,Disclosure Check Pmts,A11005,Agency Supply Staff,30159978,08/10/2023,202308,"98,538.65",145197,Comensura Ltd
Assistant Director People & Organisation,Revenue Budgets,Resources,People and Culture,A0814,Corporate Training & Devel,A16015,Staff Training Expenses,30163744,12/10/2023,202308,"1,700.00",1007987,Affinity Trust
Assistant Director People & Organisation,Revenue Budgets,Resources,People and Culture,A0790,Disclosure Check Pmts,A11005,Agency Supply Staff,30159976,22/10/2023,202308,"99,659.58",145197,Comensura Ltd
Assistant Director People & Organisation,Revenue Budgets,Resources,People and Culture,A0790,Disclosure Check Pmts,A11005,Agency Supply Staff,30158654,29/10/2023,202308,"17,785.31",145197,Comensura Ltd
Assistant Director People & Organisation,Revenue Budgets,Resources,People and Culture,A0790,Disclosure Check Pmts,A11005,Agency Supply Staff,30158656,29/10/2023,202308,"7,279.20",145197,Comensura Ltd
Assistant Director People & Organisation,Revenue Budgets,Resources,People and Culture,A0790,Disclosure Check Pmts,A11005,Agency Supply Staff,30158663,29/10/2023,202308,"78,014.07",145197,Comensura Ltd
Assistant Director People & Organisation,Revenue Budgets,Resources,People and Culture,A0790,Disclosure Check Pmts,A16025,Recruitment Expenses,30158664,30/10/2023,202308,342.00,148286,Ucheck
Assistant Director People & Organisation,Revenue Budgets,Resources,People and Culture,A1711,Summer Graduate Scheme,A16015,Staff Training Expenses,30159478,31/10/2023,202308,700.80,109018,The Colour Works International Ltd
Assistant Director People & Organisation,Revenue Budgets,Resources,Business Support,A0214,Business Support Unit (Sbs),A33005,Public Transport - Non Staff,30162610,31/10/2023,202308,705.27,127476,Click Travel
Assistant Director People & Organisation,Revenue Budgets,Resources,Business Support,A0214,Business Support Unit (Sbs),A33005,Public Transport - Non Staff,30162610,31/10/2023,202308,"4,011.33",127476,Click Travel
Assistant Director People & Organisation,Revenue Budgets,Resources,People and Culture,A0814,Corporate Training & Devel,A16015,Staff Training Expenses,30163736,31/10/2023,202308,385.00,102742,Tec Partnership
Assistant Director People & Organisation,Revenue Budgets,Resources,Business Support,A1442,Postal Services,A45015,Postages,30159825,05/11/2023,202308,"1,672.17",135925,Whistl Uk Ltd
Assistant Director People & Organisation,Revenue Budgets,Resources,Business Support,A1442,Postal Services,A45015,Postages,30159829,05/11/2023,202308,280.50,135925,Whistl Uk Ltd
Assistant Director People & Organisation,Revenue Budgets,Resources,People and Culture,A0790,Disclosure Check Pmts,A11005,Agency Supply Staff,30161157,05/11/2023,202308,"96,667.09",145197,Comensura Ltd
Assistant Director People & Organisation,Revenue Budgets,Resources,People and Culture,A0814,Corporate Training & Devel,A16015,Staff Training Expenses,30165984,06/11/2023,202308,360.00,105501,Forefront Training Ltd
Assistant Director People & Organisation,Revenue Budgets,Resources,People and Culture,A0790,Disclosure Check Pmts,A11005,Agency Supply Staff,30161159,08/11/2023,202308,"17,741.99",145197,Comensura Ltd
Assistant Director People & Organisation,Revenue Budgets,Resources,People and Culture,A1536,P&C - Occup Health & Safety,A16030,Employee Benefits,30162217,09/11/2023,202308,400.00,134740,Pbc Medical Services Ltd
Assistant Director People & Organisation,Revenue Budgets,Resources,People and Culture,A0814,Corporate Training & Devel,A16015,Staff Training Expenses,30164499,10/11/2023,202308,"1,192.50",1007489,Gravelles Mobility And Lifestyle Limited
Assistant Director People & Organisation,Revenue Budgets,Resources,People and Culture,A0790,Disclosure Check Pmts,A11005,Agency Supply Staff,30162727,12/11/2023,202308,"17,922.08",145197,Comensura Ltd
Assistant Director People & Organisation,Revenue Budgets,Resources,People and Culture,A0790,Disclosure Check Pmts,A11005,Agency Supply Staff,30162742,12/11/2023,202308,"89,186.09",145197,Comensura Ltd
Assistant Director People & Organisation,Revenue Budgets,Resources,Business Support,A1442,Postal Services,A45015,Postages,30163504,12/11/2023,202308,"2,086.30",135925,Whistl Uk Ltd
Assistant Director People & Organisation,Revenue Budgets,Resources,Business Support,A1442,Postal Services,A45015,Postages,30163548,12/11/2023,202308,870.23,135925,Whistl Uk Ltd
Assistant Director People & Organisation,Revenue Budgets,Resources,People and Culture,A0790,Disclosure Check Pmts,A16025,Recruitment Expenses,30162753,13/11/2023,202308,608.00,148286,Ucheck
Assistant Director People & Organisation,Revenue Budgets,Resources,People and Culture,A1536,P&C - Occup Health & Safety,A47010,Subscriptions (non staff),30164424,16/11/2023,202308,360.00,135506,Christine Miles
Assistant Director People & Organisation,Revenue Budgets,Resources,Business Support,A1442,Postal Services,A45015,Postages,30164168,19/11/2023,202308,"1,529.97",135925,Whistl Uk Ltd
Assistant Director People & Organisation,Revenue Budgets,Resources,Business Support,A1442,Postal Services,A45015,Postages,30164459,19/11/2023,202308,358.88,135925,Whistl Uk Ltd
Assistant Director People & Organisation,Revenue Budgets,Resources,Business Support,A1442,Postal Services,A45015,Postages,30164557,20/11/2023,202308,"-1,915.68",101082,Royal Mail Group Plc
Assistant Director People & Organisation,Revenue Budgets,Resources,Business Support,A1442,Postal Services,A45015,Postages,30164557,20/11/2023,202308,"1,915.68",101082,Royal Mail Group Plc
Assistant Director People & Organisation,Revenue Budgets,Resources,Business Support,A1442,Postal Services,A45015,Postages,30164566,20/11/2023,202308,395.00,101082,Royal Mail Group Plc
Assistant Director People & Organisation,Revenue Budgets,Resources,People and Culture,A0790,Disclosure Check Pmts,A16025,Recruitment Expenses,30165727,20/11/2023,202308,342.00,148286,Ucheck
Assistant Director People & Organisation,Revenue Budgets,Resources,People and Culture,A0790,Disclosure Check Pmts,A11005,Agency Supply Staff,30165737,22/11/2023,202308,"17,838.80",145197,Comensura Ltd
Assistant Director People & Organisation,Revenue Budgets,Resources,Business Support,A1442,Postal Services,A45015,Postages,30166831,26/11/2023,202308,"2,022.47",135925,Whistl Uk Ltd
Assistant Director People & Organisation,Revenue Budgets,Resources,Business Support,A1442,Postal Services,A45015,Postages,30166837,26/11/2023,202308,301.77,135925,Whistl Uk Ltd
Deputy s151,Revenue Budgets,Resources,Local Taxation & Benefits - Shared,A0187,Debt Collection,A49053,Debt Recovery Costs,30144605,14/08/2023,202308,"-7,758.70",101788,Jacobs Certified Bailiffs
Deputy s151,Revenue Budgets,Resources,Local Taxation & Benefits - Shared,A0187,Debt Collection,A49053,Debt Recovery Costs,30144605,14/08/2023,202308,"7,758.70",101788,Jacobs Certified Bailiffs
Deputy s151,Revenue Budgets,Resources,Local Taxation & Benefits - Shared,A0187,Debt Collection,A49053,Debt Recovery Costs,30144566,29/08/2023,202308,-300.00,101788,Jacobs Certified Bailiffs
Deputy s151,Revenue Budgets,Resources,Local Taxation & Benefits - Shared,A0187,Debt Collection,A49053,Debt Recovery Costs,30144566,29/08/2023,202308,300.00,101788,Jacobs Certified Bailiffs
Deputy s151,Revenue Budgets,Resources,Local Taxation & Benefits - Shared,A0187,Debt Collection,A49053,Debt Recovery Costs,30144598,29/08/2023,202308,"-7,707.90",101788,Jacobs Certified Bailiffs
Deputy s151,Revenue Budgets,Resources,Local Taxation & Benefits - Shared,A0187,Debt Collection,A49053,Debt Recovery Costs,30144598,29/08/2023,202308,"7,707.90",101788,Jacobs Certified Bailiffs
Deputy s151,Revenue Budgets,Resources,Local Taxation & Benefits - Shared,A0187,Debt Collection,A49053,Debt Recovery Costs,30153120,25/09/2023,202308,"-2,628.00",101788,Jacobs Certified Bailiffs
Deputy s151,Revenue Budgets,Resources,Local Taxation & Benefits - Shared,A0187,Debt Collection,A49053,Debt Recovery Costs,30153120,25/09/2023,202308,"2,628.00",101788,Jacobs Certified Bailiffs
Deputy s151,Revenue Budgets,Resources,Local Taxation & Benefits - Shared,A0187,Debt Collection,A49053,Debt Recovery Costs,30163617,04/10/2023,202308,"-1,975.40",101373,Rossendales Ltd
Deputy s151,Revenue Budgets,Resources,Local Taxation & Benefits - Shared,A0187,Debt Collection,A49053,Debt Recovery Costs,30163617,04/10/2023,202308,"1,975.40",101373,Rossendales Ltd
Deputy s151,Revenue Budgets,Resources,Local Taxation & Benefits - Shared,A0187,Debt Collection,A49053,Debt Recovery Costs,30163552,23/10/2023,202308,"-7,609.95",101788,Jacobs Certified Bailiffs
Deputy s151,Revenue Budgets,Resources,Local Taxation & Benefits - Shared,A0187,Debt Collection,A49053,Debt Recovery Costs,30163552,23/10/2023,202308,"7,609.95",101788,Jacobs Certified Bailiffs
Deputy s151,Revenue Budgets,Resources,Local Taxation & Benefits - Shared,A0187,Debt Collection,A49053,Debt Recovery Costs,30163510,28/10/2023,202308,"-15,224.75",123422,Newlyn
Deputy s151,Revenue Budgets,Resources,Local Taxation & Benefits - Shared,A0187,Debt Collection,A49053,Debt Recovery Costs,30163510,28/10/2023,202308,"15,224.75",123422,Newlyn
Deputy s151,Revenue Budgets,Resources,Local Taxation & Benefits - Shared,A0184,Control & Monitoring,A45015,Postages,30159113,31/10/2023,202308,"6,399.13",102314,Capita Business Services Ltd
Deputy s151,Revenue Budgets,Resources,Accountancy,A1837,Humber Freeport,A44065,Consultancy Services,30159533,02/11/2023,202308,"2,973.75",100785,Solace In Business
Deputy s151,Revenue Budgets,Resources,Local Taxation & Benefits - Shared,A0184,Control & Monitoring,A16015,Staff Training Expenses,30159571,02/11/2023,202308,700.00,1007513,Dave Marsden T/A DM Training Services
Deputy s151,Revenue Budgets,Resources,Local Taxation & Benefits - Shared,A0184,Control & Monitoring,A45040,IT Software Purchase,30161633,09/11/2023,202308,"6,531.81",101841,Nec Software Solutions Uk Ltd
Deputy s151,Revenue Budgets,Resources,Local Taxation & Benefits - Shared,A0187,Debt Collection,A49053,Debt Recovery Costs,30161787,09/11/2023,202308,350.00,109470,Wilkin Chapman Llp Solicitors
Deputy s151,Revenue Budgets,Resources,Accountancy,A1647,Accountancy -  Non Shared,A56000,Other Establishments,30163851,17/11/2023,202308,"80,880.33",101186,North Lincolnshire Council
Deputy s151,Revenue Budgets,Resources,Local Taxation & Benefits - Shared,A0184,Control & Monitoring,A16015,Staff Training Expenses,30165994,24/11/2023,202308,900.00,101841,Nec Software Solutions Uk Ltd
Deputy s151,Revenue Budgets,Resources,Local Taxation & Benefits - Shared,A0180,Benefits Administration,A49105,Other Supplies & Services,30166443,27/11/2023,202308,"36,345.00",101841,Nec Software Solutions Uk Ltd
Deputy s151,Revenue Budgets,Resources,Local Taxation & Benefits - Shared,A0184,Control & Monitoring,A45040,IT Software Purchase,30166842,28/11/2023,202308,"2,700.00",101841,Nec Software Solutions Uk Ltd
Deputy s151,Revenue Budgets,Resources,Accountancy,A1647,Accountancy -  Non Shared,A16015,Staff Training Expenses,30167061,30/11/2023,202308,"1,503.24",1008487,KAPLAN Financial
Deputy s151,Revenue Budgets,Resources,Local Taxation & Benefits - Shared,A0184,Control & Monitoring,A45015,Postages,30167249,30/11/2023,202308,"5,595.85",102314,Capita Business Services Ltd
Director Childrens Services,Revenue Budgets,Childrens Services,Director Children & Fam Serv,A0284,Director Children / Fam Serv,A56000,Other Establishments,30165287,27/09/2023,202308,"1,177.07",1002734,Tripod Partners
Director Childrens Services,Revenue Budgets,Childrens Services,Director Children & Fam Serv,A0284,Director Children / Fam Serv,A56000,Other Establishments,30165290,27/09/2023,202308,"4,963.40",1002734,Tripod Partners
Director Childrens Services,Revenue Budgets,Childrens Services,Director Children & Fam Serv,A0284,Director Children / Fam Serv,A16015,Staff Training Expenses,30160342,31/10/2023,202308,"1,500.00",1007994,Cuthbert Consultants Limited
Director Childrens Services,Revenue Budgets,Childrens Services,Director Children & Fam Serv,A0284,Director Children / Fam Serv,A56000,Other Establishments,30162609,31/10/2023,202308,"7,136.23",1008315,Nicholsons Accountants Ltd
Director Childrens Services,Revenue Budgets,Childrens Services,Director Children & Fam Serv,A0284,Director Children / Fam Serv,A44065,Consultancy Services,30160128,06/11/2023,202308,"4,000.00",1006980,ForeTwo Group Limited
Director Childrens Services,Revenue Budgets,Childrens Services,Director Children & Fam Serv,A0284,Director Children / Fam Serv,A44065,Consultancy Services,30162047,13/11/2023,202308,"4,000.00",1006980,ForeTwo Group Limited
Director Childrens Services,Revenue Budgets,Childrens Services,Director Children & Fam Serv,A0284,Director Children / Fam Serv,A22005,Building Rents,30165594,13/11/2023,202308,"1,250.00",146215,Bwpm Ltd
Director Childrens Services,Revenue Budgets,Childrens Services,Director Children & Fam Serv,A0284,Director Children / Fam Serv,A44065,Consultancy Services,30164163,20/11/2023,202308,"4,000.00",1006980,ForeTwo Group Limited
Education and Inclusion,Revenue Budgets,Childrens Services,Sen/Inclusion,A1563,Top Up Funding Post 16,A52005,Payments to Other Local Authorities,30162822,28/10/2021,202308,601.67,1000918,Linkage Community Trust
Education and Inclusion,Revenue Budgets,Childrens Services,Sen/Inclusion,A1563,Top Up Funding Post 16,A52005,Payments to Other Local Authorities,30162820,23/02/2022,202308,601.67,1000918,Linkage Community Trust
Education and Inclusion,Revenue Budgets,Childrens Services,Sen/Inclusion,A0415,Send Contracts,A49105,Other Supplies & Services,30164739,25/05/2022,202308,"1,168.21",1001038,Northern Lincolnshire and Goole NHS Foundation Trust
Education and Inclusion,Revenue Budgets,Childrens Services,Sen/Inclusion,A0415,Send Contracts,A49105,Other Supplies & Services,30164740,25/05/2022,202308,"1,168.21",1001038,Northern Lincolnshire and Goole NHS Foundation Trust
Education and Inclusion,Revenue Budgets,Childrens Services,Sen/Inclusion,A0415,Send Contracts,A49105,Other Supplies & Services,30164736,17/11/2022,202308,"1,168.21",1001038,Northern Lincolnshire and Goole NHS Foundation Trust
Education and Inclusion,Revenue Budgets,Childrens Services,Sen/Inclusion,A0415,Send Contracts,A49105,Other Supplies & Services,30164724,22/11/2022,202308,"1,168.21",1001038,Northern Lincolnshire and Goole NHS Foundation Trust
Education and Inclusion,Revenue Budgets,Childrens Services,Sen/Inclusion,A0415,Send Contracts,A49105,Other Supplies & Services,30165172,29/12/2022,202308,"1,168.21",1001038,Northern Lincolnshire and Goole NHS Foundation Trust
Education and Inclusion,Revenue Budgets,Childrens Services,Sen/Inclusion,A1563,Top Up Funding Post 16,A52005,Payments to Other Local Authorities,30161856,13/01/2023,202308,"2,781.67",1000918,Linkage Community Trust
Education and Inclusion,Revenue Budgets,Childrens Services,Sen/Inclusion,A1563,Top Up Funding Post 16,A52005,Payments to Other Local Authorities,30163072,13/01/2023,202308,498.34,1000918,Linkage Community Trust
Education and Inclusion,Revenue Budgets,Childrens Services,Sen/Inclusion,A1858,Education Other than After Schools,A52005,Payments to Other Local Authorities,30165524,31/01/2023,202308,"1,235.00",146662,Targeted Provision Ltd
Education and Inclusion,Revenue Budgets,Childrens Services,Sen/Inclusion,A0415,Send Contracts,A49105,Other Supplies & Services,30164742,15/03/2023,202308,"3,504.63",1001038,Northern Lincolnshire and Goole NHS Foundation Trust
Education and Inclusion,Revenue Budgets,Childrens Services,Sen/Inclusion,A1563,Top Up Funding Post 16,A52005,Payments to Other Local Authorities,30161861,16/03/2023,202308,"2,781.67",1000918,Linkage Community Trust
Education and Inclusion,Revenue Budgets,Childrens Services,Sen/Inclusion,A1563,Top Up Funding Post 16,A52005,Payments to Other Local Authorities,30161988,16/03/2023,202308,"2,998.34",1000918,Linkage Community Trust
Education and Inclusion,Revenue Budgets,Childrens Services,Sen/Inclusion,A1563,Top Up Funding Post 16,A52005,Payments to Other Local Authorities,30163062,14/04/2023,202308,"1,001.66",1000918,Linkage Community Trust
Education and Inclusion,Revenue Budgets,Childrens Services,Sen/Inclusion,A1563,Top Up Funding Post 16,A52005,Payments to Other Local Authorities,30163071,14/04/2023,202308,"1,668.32",1000918,Linkage Community Trust
Education and Inclusion,Revenue Budgets,Childrens Services,Sen/Inclusion,A1563,Top Up Funding Post 16,A52005,Payments to Other Local Authorities,30163092,14/04/2023,202308,"1,668.32",1000918,Linkage Community Trust
Education and Inclusion,Revenue Budgets,Childrens Services,Sen/Inclusion,A1783,Top-Up Non-Maintained & Indepe,A52005,Payments to Other Local Authorities,30167024,03/05/2023,202308,"78,612.91",109683,Demeter House (England) Ltd
Education and Inclusion,Revenue Budgets,Childrens Services,Sen/Inclusion,A1858,Education Other than After Schools,A52005,Payments to Other Local Authorities,30165532,31/05/2023,202308,845.00,146662,Targeted Provision Ltd
Education and Inclusion,Revenue Budgets,Childrens Services,Sen/Inclusion,A1783,Top-Up Non-Maintained & Indepe,A52005,Payments to Other Local Authorities,30160992,01/06/2023,202308,"1,452.94",1000106,Gravity Red Inspires
Education and Inclusion,Revenue Budgets,Childrens Services,Sen/Inclusion,A1858,Education Other than After Schools,A52005,Payments to Other Local Authorities,30165522,30/06/2023,202308,487.50,146662,Targeted Provision Ltd
Education and Inclusion,Revenue Budgets,Childrens Services,Sen/Inclusion,A1858,Education Other than After Schools,A52005,Payments to Other Local Authorities,30165528,30/06/2023,202308,"1,852.50",146662,Targeted Provision Ltd
Education and Inclusion,Revenue Budgets,Childrens Services,Sen/Inclusion,A1858,Education Other than After Schools,A52005,Payments to Other Local Authorities,30165533,30/06/2023,202308,650.00,146662,Targeted Provision Ltd
Education and Inclusion,Revenue Budgets,Childrens Services,Sen/Inclusion,A1858,Education Other than After Schools,A52005,Payments to Other Local Authorities,30165535,30/06/2023,202308,"1,722.50",146662,Targeted Provision Ltd
Education and Inclusion,Revenue Budgets,Childrens Services,Sen/Inclusion,A1783,Top-Up Non-Maintained & Indepe,A52005,Payments to Other Local Authorities,30160990,01/07/2023,202308,845.94,1000106,Gravity Red Inspires
Education and Inclusion,Revenue Budgets,Childrens Services,Sen/Inclusion,A0415,Send Contracts,A49105,Other Supplies & Services,30164649,14/07/2023,202308,"30,300.24",1001038,Northern Lincolnshire and Goole NHS Foundation Trust
Education and Inclusion,Revenue Budgets,Childrens Services,Sen/Inclusion,A1783,Top-Up Non-Maintained & Indepe,A52005,Payments to Other Local Authorities,30160817,31/07/2023,202308,"4,119.85",1003323,More Than Ed Independent School Limited
Education and Inclusion,Capital Spend,Childrens Services,Sufficiency Of School Places,Y1869,Waltham Provision,C01011,External Professional Fees,30163382,31/07/2023,202308,"2,527.50",124689,Weightmans Llp - Office Account
Education and Inclusion,Revenue Budgets,Childrens Services,Sen/Inclusion,A1783,Top-Up Non-Maintained & Indepe,A52005,Payments to Other Local Authorities,30160979,01/08/2023,202308,"1,036.24",1000106,Gravity Red Inspires
Education and Inclusion,Revenue Budgets,Childrens Services,Sen/Inclusion,A1783,Top-Up Non-Maintained & Indepe,A52005,Payments to Other Local Authorities,30160982,01/08/2023,202308,"1,341.88",1000106,Gravity Red Inspires
Education and Inclusion,Revenue Budgets,Childrens Services,Sen/Inclusion,A1783,Top-Up Non-Maintained & Indepe,A49105,Other Supplies & Services,30160984,01/08/2023,202308,"2,082.60",1000106,Gravity Red Inspires
Education and Inclusion,Revenue Budgets,Childrens Services,Sen/Inclusion,A1783,Top-Up Non-Maintained & Indepe,A52005,Payments to Other Local Authorities,30161909,01/08/2023,202308,"2,122.56",1000106,Gravity Red Inspires
Education and Inclusion,Revenue Budgets,Childrens Services,Sen/Inclusion,A1783,Top-Up Non-Maintained & Indepe,A52005,Payments to Other Local Authorities,30165126,01/08/2023,202308,"4,155.00",1000106,Gravity Red Inspires
Education and Inclusion,Capital Spend,Childrens Services,Backlog Maintenance Schools,Y1756,Stalling Primary Remodelling,C01009,"New Construction, conversion & renovation",30160888,23/08/2023,202308,"6,478.33",100555,J W Plater Ltd
Education and Inclusion,Revenue Budgets,Childrens Services,Sen/Inclusion,A1858,Education Other than After Schools,A49105,Other Supplies & Services,30160980,24/08/2023,202308,"1,287.00",1005408,S&F Equestrian Alternative Learning Ltd
Education and Inclusion,Revenue Budgets,Childrens Services,Sen/Inclusion,A1563,Top Up Funding Post 16,A56000,Other Establishments,30162728,25/08/2023,202308,"3,000.00",1006739,TES Institute Ltd
Education and Inclusion,Revenue Budgets,Childrens Services,Education Transport,A0254,Home To School Transport Sen,A32020,Home to School Transport,30164451,31/08/2023,202308,"1,614.40",100546,Links Taxis
Education and Inclusion,Revenue Budgets,Childrens Services,Sen/Inclusion,A1858,Education Other than After Schools,A56000,Other Establishments,30164576,09/09/2023,202308,900.00,143856,Nunnys Farm Cic
Education and Inclusion,Revenue Budgets,Childrens Services,Sen/Inclusion,A1858,Education Other than After Schools,A49105,Other Supplies & Services,30161000,11/09/2023,202308,"1,782.00",1005408,S&F Equestrian Alternative Learning Ltd
Education and Inclusion,Revenue Budgets,Childrens Services,Sen/Inclusion,A1565,Top Up Funding Academies & Fre,A52005,Payments to Other Local Authorities,30164988,11/09/2023,202308,"2,652.67",147934,For Under Fives Central Childrens Centre
Education and Inclusion,Revenue Budgets,Childrens Services,Sen/Inclusion,A1858,Education Other than After Schools,A56000,Other Establishments,30166253,11/09/2023,202308,"1,440.00",129154,Climb 4 Ltd
Education and Inclusion,Revenue Budgets,Childrens Services,Sen/Inclusion,A1858,Education Other than After Schools,A52005,Payments to Other Local Authorities,30164591,14/09/2023,202308,555.00,145278,Prospero Recruitment Ltd
Education and Inclusion,Revenue Budgets,Childrens Services,Sen/Inclusion,A1858,Education Other than After Schools,A52005,Payments to Other Local Authorities,30164562,21/09/2023,202308,"1,490.00",145278,Prospero Recruitment Ltd
Education and Inclusion,Revenue Budgets,Childrens Services,Education Transport,A0254,Home To School Transport Sen,A32020,Home to School Transport,30159700,26/09/2023,202308,"2,250.00",111879,Hansons Airport Express
Education and Inclusion,Revenue Budgets,Childrens Services,Sen/Inclusion,A1561,Education Team Hear / Vision,A40005,Equipment & Materials Learning,30149545,27/09/2023,202308,307.00,128854,Humanware Europe Ltd
Education and Inclusion,Revenue Budgets,Childrens Services,Sen/Inclusion,A1783,Top-Up Non-Maintained & Indepe,A52005,Payments to Other Local Authorities,30159989,28/09/2023,202308,"5,743.80",146022,Act Fast Nl Ltd
Education and Inclusion,Revenue Budgets,Childrens Services,Sen/Inclusion,A1858,Education Other than After Schools,A52005,Payments to Other Local Authorities,30164594,28/09/2023,202308,"1,815.00",145278,Prospero Recruitment Ltd
Education and Inclusion,Revenue Budgets,Childrens Services,Sen/Inclusion,A1783,Top-Up Non-Maintained & Indepe,A52005,Payments to Other Local Authorities,30159986,29/09/2023,202308,"5,445.00",1003323,More Than Ed Independent School Limited
Education and Inclusion,Revenue Budgets,Childrens Services,Sen/Inclusion,A1783,Top-Up Non-Maintained & Indepe,A52005,Payments to Other Local Authorities,30160819,29/09/2023,202308,"5,601.60",1003323,More Than Ed Independent School Limited
Education and Inclusion,Revenue Budgets,Childrens Services,Sen/Inclusion,A1858,Education Other than After Schools,A49105,Other Supplies & Services,30162178,30/09/2023,202308,437.94,1000900,Currys Group Limited   T/a Currys Business
Education and Inclusion,Revenue Budgets,Childrens Services,Education Transport,A0254,Home To School Transport Sen,A32020,Home to School Transport,30164445,30/09/2023,202308,925.00,100546,Links Taxis
Education and Inclusion,Revenue Budgets,Childrens Services,Sen/Inclusion,A1858,Education Other than After Schools,A52005,Payments to Other Local Authorities,30164596,30/09/2023,202308,"1,462.50",146662,Targeted Provision Ltd
Education and Inclusion,Revenue Budgets,Childrens Services,Sen/Inclusion,A1858,Education Other than After Schools,A52005,Payments to Other Local Authorities,30164625,30/09/2023,202308,440.00,146662,Targeted Provision Ltd
Education and Inclusion,Revenue Budgets,Childrens Services,Sen/Inclusion,A1858,Education Other than After Schools,A52005,Payments to Other Local Authorities,30164627,30/09/2023,202308,"1,040.00",146662,Targeted Provision Ltd
Education and Inclusion,Revenue Budgets,Childrens Services,Sen/Inclusion,A1858,Education Other than After Schools,A52005,Payments to Other Local Authorities,30164629,30/09/2023,202308,"2,437.50",146662,Targeted Provision Ltd
Education and Inclusion,Revenue Budgets,Childrens Services,Sen/Inclusion,A1858,Education Other than After Schools,A52005,Payments to Other Local Authorities,30164631,30/09/2023,202308,"1,023.75",146662,Targeted Provision Ltd
Education and Inclusion,Revenue Budgets,Childrens Services,Education Transport,A0254,Home To School Transport Sen,A32020,Home to School Transport,30158564,01/10/2023,202308,987.50,1007691,Ash Taxis Limited
Education and Inclusion,Revenue Budgets,Childrens Services,Education Transport,A0254,Home To School Transport Sen,A32020,Home to School Transport,30158594,01/10/2023,202308,819.00,1007691,Ash Taxis Limited
Education and Inclusion,Revenue Budgets,Childrens Services,Sen/Inclusion,A1563,Top Up Funding Post 16,A52005,Payments to Other Local Authorities,30162816,01/10/2023,202308,"3,400.00",1000918,Linkage Community Trust
Education and Inclusion,Revenue Budgets,Childrens Services,Sen/Inclusion,A1561,Education Team Hear / Vision,A40005,Equipment & Materials Learning,30150037,02/10/2023,202308,302.40,100898,Connevans Limited
Education and Inclusion,Revenue Budgets,Childrens Services,Education Transport,A0254,Home To School Transport Sen,A32020,Home to School Transport,30158509,02/10/2023,202308,"2,500.00",1003562,WAT Specialist Transport LTD T/A WAT
Education and Inclusion,Revenue Budgets,Childrens Services,Education Transport,A0254,Home To School Transport Sen,A32020,Home to School Transport,30158550,02/10/2023,202308,675.00,1003562,WAT Specialist Transport LTD T/A WAT
Education and Inclusion,Revenue Budgets,Childrens Services,Education Transport,A0254,Home To School Transport Sen,A32020,Home to School Transport,30158555,02/10/2023,202308,550.00,1003562,WAT Specialist Transport LTD T/A WAT
Education and Inclusion,Revenue Budgets,Childrens Services,Education Transport,A0254,Home To School Transport Sen,A32020,Home to School Transport,30160700,02/10/2023,202308,"1,950.00",1003562,WAT Specialist Transport LTD T/A WAT
Education and Inclusion,Revenue Budgets,Childrens Services,Education Transport,A0254,Home To School Transport Sen,A32020,Home to School Transport,30160703,02/10/2023,202308,"1,190.00",1003562,WAT Specialist Transport LTD T/A WAT
Education and Inclusion,Revenue Budgets,Childrens Services,Education Transport,A0254,Home To School Transport Sen,A32020,Home to School Transport,30161627,02/10/2023,202308,600.00,1003562,WAT Specialist Transport LTD T/A WAT
Education and Inclusion,Revenue Budgets,Childrens Services,Sen/Inclusion,A1858,Education Other than After Schools,A56000,Other Establishments,30162607,02/10/2023,202308,500.00,1003902,Mind Jam
Education and Inclusion,Revenue Budgets,Childrens Services,Sen/Inclusion,A1563,Top Up Funding Post 16,A52005,Payments to Other Local Authorities,30155820,03/10/2023,202308,"14,518.38",101728,Community Press Office Ltd
Education and Inclusion,Revenue Budgets,Childrens Services,Sen/Inclusion,A1858,Education Other than After Schools,A56000,Other Establishments,30164648,03/10/2023,202308,"18,900.00",1006030,Cleethorpes Community Sports & Education
Education and Inclusion,Revenue Budgets,Childrens Services,Sen/Inclusion,A1783,Top-Up Non-Maintained & Indepe,A52005,Payments to Other Local Authorities,30165148,03/10/2023,202308,"5,128.00",1000106,Gravity Red Inspires
Education and Inclusion,Revenue Budgets,Childrens Services,Sen/Inclusion,A1783,Top-Up Non-Maintained & Indepe,A52005,Payments to Other Local Authorities,30158853,04/10/2023,202308,"5,523.88",1000489,Acorn Care & Education Ltd (Sales)
Education and Inclusion,Revenue Budgets,Childrens Services,Sen/Inclusion,A1563,Top Up Funding Post 16,A52005,Payments to Other Local Authorities,30164560,04/10/2023,202308,"21,437.00",144120,Learning4life-Gy-Cic
Education and Inclusion,Revenue Budgets,Childrens Services,Sen/Inclusion,A1783,Top-Up Non-Maintained & Indepe,A52005,Payments to Other Local Authorities,30165110,04/10/2023,202308,"31,015.00",144120,Learning4life-Gy-Cic
Education and Inclusion,Revenue Budgets,Childrens Services,Sen/Inclusion,A1858,Education Other than After Schools,A56000,Other Establishments,30162608,05/10/2023,202308,450.00,1003902,Mind Jam
Education and Inclusion,Revenue Budgets,Childrens Services,Sen/Inclusion,A1858,Education Other than After Schools,A52005,Payments to Other Local Authorities,30164621,05/10/2023,202308,"2,090.00",145278,Prospero Recruitment Ltd
Education and Inclusion,Revenue Budgets,Childrens Services,Sen/Inclusion,A1783,Top-Up Non-Maintained & Indepe,A52005,Payments to Other Local Authorities,30164721,05/10/2023,202308,"66,703.78",109683,Demeter House (England) Ltd
Education and Inclusion,Revenue Budgets,Childrens Services,Sen/Inclusion,A1563,Top Up Funding Post 16,A52005,Payments to Other Local Authorities,30165118,05/10/2023,202308,"4,293.00",144120,Learning4life-Gy-Cic
Education and Inclusion,Revenue Budgets,Childrens Services,Sen/Inclusion,A1858,Education Other than After Schools,A56000,Other Establishments,30165531,05/10/2023,202308,"2,000.00",1008075,Bounce Back AP Ltd
Education and Inclusion,Revenue Budgets,Childrens Services,Sen/Inclusion,A0415,Send Contracts,A49105,Other Supplies & Services,30166257,05/10/2023,202308,"30,209.11",1001038,Northern Lincolnshire and Goole NHS Foundation Trust
Education and Inclusion,Revenue Budgets,Childrens Services,Sen/Inclusion,A1783,Top-Up Non-Maintained & Indepe,A52005,Payments to Other Local Authorities,30158701,06/10/2023,202308,"5,000.00",1007202,Rowan Education Services Ltd TA Rowan
Education and Inclusion,Revenue Budgets,Childrens Services,Sen/Inclusion,A1783,Top-Up Non-Maintained & Indepe,A52005,Payments to Other Local Authorities,30159973,06/10/2023,202308,"5,000.00",1007064,Rowan Education
Education and Inclusion,Revenue Budgets,Childrens Services,Sen/Inclusion,A1783,Top-Up Non-Maintained & Indepe,A52005,Payments to Other Local Authorities,30159984,06/10/2023,202308,"3,000.00",1007064,Rowan Education
Education and Inclusion,Revenue Budgets,Childrens Services,Sen/Inclusion,A1783,Top-Up Non-Maintained & Indepe,A52005,Payments to Other Local Authorities,30159985,06/10/2023,202308,"5,000.00",1007064,Rowan Education
Education and Inclusion,Revenue Budgets,Childrens Services,Sen/Inclusion,A1783,Top-Up Non-Maintained & Indepe,A52005,Payments to Other Local Authorities,30165120,06/10/2023,202308,"6,000.00",1007064,Rowan Education
Education and Inclusion,Revenue Budgets,Childrens Services,Education Transport,A0254,Home To School Transport Sen,A32020,Home to School Transport,30160419,07/10/2023,202308,390.00,1007691,Ash Taxis Limited
Education and Inclusion,Revenue Budgets,Childrens Services,Sen/Inclusion,A1783,Top-Up Non-Maintained & Indepe,A52005,Payments to Other Local Authorities,30160991,10/10/2023,202308,"1,417.26",1006807,Ganton School
Education and Inclusion,Revenue Budgets,Childrens Services,Sen/Inclusion,A1858,Education Other than After Schools,A52005,Payments to Other Local Authorities,30164597,11/10/2023,202308,"2,007.50",145278,Prospero Recruitment Ltd
Education and Inclusion,Revenue Budgets,Childrens Services,Sen/Inclusion,A1783,Top-Up Non-Maintained & Indepe,A52005,Payments to Other Local Authorities,30156966,12/10/2023,202308,"9,564.68",100406,Kisimul School
Education and Inclusion,Revenue Budgets,Childrens Services,Sen/Inclusion,A1858,Education Other than After Schools,A56000,Other Establishments,30166251,12/10/2023,202308,"1,200.00",129154,Climb 4 Ltd
Education and Inclusion,Revenue Budgets,Childrens Services,Sen/Inclusion,A1858,Education Other than After Schools,A56000,Other Establishments,30166260,12/10/2023,202308,720.00,129154,Climb 4 Ltd
Education and Inclusion,Revenue Budgets,Childrens Services,Sen/Inclusion,A1858,Education Other than After Schools,A56000,Other Establishments,30166260,12/10/2023,202308,"4,080.00",129154,Climb 4 Ltd
Education and Inclusion,Revenue Budgets,Childrens Services,Sen/Inclusion,A1783,Top-Up Non-Maintained & Indepe,A52005,Payments to Other Local Authorities,30158858,13/10/2023,202308,"8,225.67",1000489,Acorn Care & Education Ltd (Sales)
Education and Inclusion,Revenue Budgets,Childrens Services,Sen/Inclusion,A1563,Top Up Funding Post 16,A52005,Payments to Other Local Authorities,30158149,17/10/2023,202308,"1,072.50",1006278,Life Skills Hub Limited
Education and Inclusion,Revenue Budgets,Childrens Services,Sen/Inclusion,A1563,Top Up Funding Post 16,A52005,Payments to Other Local Authorities,30158149,17/10/2023,202308,"6,600.00",1006278,Life Skills Hub Limited
Education and Inclusion,Revenue Budgets,Childrens Services,Sen/Inclusion,A1565,Top Up Funding Academies & Fre,A56000,Other Establishments,30162595,18/10/2023,202308,"3,194.00",101322,St Peters Children Centre
Education and Inclusion,Revenue Budgets,Childrens Services,Sen/Inclusion,A1565,Top Up Funding Academies & Fre,A56000,Other Establishments,30164593,18/10/2023,202308,"41,999.03",107911,Humberston Park Special School
Education and Inclusion,Revenue Budgets,Childrens Services,Sen/Inclusion,A1783,Top-Up Non-Maintained & Indepe,A52005,Payments to Other Local Authorities,30155789,19/10/2023,202308,"3,553.00",145195,Keys Pce Limited
Education and Inclusion,Revenue Budgets,Childrens Services,Sen/Inclusion,A1783,Top-Up Non-Maintained & Indepe,A52005,Payments to Other Local Authorities,30155795,19/10/2023,202308,"1,870.00",145195,Keys Pce Limited
Education and Inclusion,Revenue Budgets,Childrens Services,Sen/Inclusion,A1858,Education Other than After Schools,A56000,Other Establishments,30164553,20/10/2023,202308,"13,937.50",1008075,Bounce Back AP Ltd
Education and Inclusion,Revenue Budgets,Childrens Services,Sen/Inclusion,A1784,Other La Top-Up,A52005,Payments to Other Local Authorities,30164645,20/10/2023,202308,"24,866.88",1006025,Lincolnshire County Council
Education and Inclusion,Revenue Budgets,Childrens Services,Sen/Inclusion,A1783,Top-Up Non-Maintained & Indepe,A52005,Payments to Other Local Authorities,30158850,23/10/2023,202308,"5,523.92",1000489,Acorn Care & Education Ltd (Sales)
Education and Inclusion,Revenue Budgets,Childrens Services,Sen/Inclusion,A1783,Top-Up Non-Maintained & Indepe,A52005,Payments to Other Local Authorities,30158878,23/10/2023,202308,"11,351.92",1000489,Acorn Care & Education Ltd (Sales)
Education and Inclusion,Revenue Budgets,Childrens Services,Employability and Skills,A1723,"Youth Careers, Info & Guidance",A49105,Other Supplies & Services,30160699,23/10/2023,202308,"1,250.00",1000197,HCFCATCH Ltd
Education and Inclusion,Revenue Budgets,Childrens Services,Sen/Inclusion,A0271,Sen Team Admin,A45020,Admin Related IT & Comms,30165092,23/10/2023,202308,540.00,141310,Total Computer Networks Ltd
Education and Inclusion,Revenue Budgets,Childrens Services,Attainment and Progress,A0595,Reynolds Cc Daycare,A20005,"Property Repairs, Maintenance & Alterations",30158979,24/10/2023,202308,394.48,133267,Equans Services Ltd
Education and Inclusion,Revenue Budgets,Childrens Services,Sen/Inclusion,A1783,Top-Up Non-Maintained & Indepe,A52005,Payments to Other Local Authorities,30159987,24/10/2023,202308,"243,630.39",141244,Orchard Education Ltd
Education and Inclusion,Revenue Budgets,Childrens Services,Sen/Inclusion,A1783,Top-Up Non-Maintained & Indepe,A52005,Payments to Other Local Authorities,30161808,24/10/2023,202308,"8,583.33",1006473,Robert Holme Academy
Education and Inclusion,Capital Spend,Childrens Services,Sufficiency Of School Places,Y1869,Waltham Provision,C01011,External Professional Fees,30162686,24/10/2023,202308,"12,000.00",133267,Equans Services Ltd
Education and Inclusion,Revenue Budgets,Childrens Services,Sen/Inclusion,A1858,Education Other than After Schools,A44065,Consultancy Services,30162600,25/10/2023,202308,"1,509.80",142906,R Y Fidler
Education and Inclusion,Capital Spend,Childrens Services,Cap Alloc Devolved To Schools,Y0799,Grange Primary Dfcg,C01009,"New Construction, conversion & renovation",30162734,25/10/2023,202308,981.00,102044,Lincs Electrical Services Ltd
Education and Inclusion,Revenue Budgets,Childrens Services,Sen/Inclusion,A1858,Education Other than After Schools,A52005,Payments to Other Local Authorities,30164592,25/10/2023,202308,"1,100.00",145278,Prospero Recruitment Ltd
Education and Inclusion,Revenue Budgets,Childrens Services,Sen/Inclusion,A0415,Send Contracts,A49105,Other Supplies & Services,30166087,25/10/2023,202308,"3,000.00",106613,Community Accord
Education and Inclusion,Revenue Budgets,Childrens Services,Sen/Inclusion,A1783,Top-Up Non-Maintained & Indepe,A52005,Payments to Other Local Authorities,30156988,26/10/2023,202308,"7,565.00",145195,Keys Pce Limited
Education and Inclusion,Revenue Budgets,Childrens Services,Sen/Inclusion,A1783,Top-Up Non-Maintained & Indepe,A52005,Payments to Other Local Authorities,30157001,26/10/2023,202308,"7,565.00",145195,Keys Pce Limited
Education and Inclusion,Revenue Budgets,Childrens Services,Sen/Inclusion,A1783,Top-Up Non-Maintained & Indepe,A52005,Payments to Other Local Authorities,30157002,26/10/2023,202308,"4,182.00",145195,Keys Pce Limited
Education and Inclusion,Revenue Budgets,Childrens Services,Sen/Inclusion,A1783,Top-Up Non-Maintained & Indepe,A52005,Payments to Other Local Authorities,30157003,26/10/2023,202308,"7,565.00",145195,Keys Pce Limited
Education and Inclusion,Revenue Budgets,Childrens Services,Sen/Inclusion,A1858,Education Other than After Schools,A56000,Other Establishments,30166250,27/10/2023,202308,"1,440.00",129154,Climb 4 Ltd
Education and Inclusion,Revenue Budgets,Childrens Services,Sen/Inclusion,A1858,Education Other than After Schools,A56000,Other Establishments,30166256,27/10/2023,202308,"3,600.00",129154,Climb 4 Ltd
Education and Inclusion,Revenue Budgets,Childrens Services,Sen/Inclusion,A1783,Top-Up Non-Maintained & Indepe,A52005,Payments to Other Local Authorities,30162821,28/10/2023,202308,"4,467.40",146022,Act Fast Nl Ltd
Education and Inclusion,Revenue Budgets,Childrens Services,Education Transport,A0254,Home To School Transport Sen,A32020,Home to School Transport,30158836,30/10/2023,202308,"1,264.00",102124,Minicabs Cleethorpes (Lincs) Ltd
Education and Inclusion,Revenue Budgets,Childrens Services,Education Transport,A0254,Home To School Transport Sen,A32020,Home to School Transport,30158841,30/10/2023,202308,"1,445.00",102124,Minicabs Cleethorpes (Lincs) Ltd
Education and Inclusion,Revenue Budgets,Childrens Services,Education Transport,A0248,Exceptional Circumstances,A32020,Home to School Transport,30158843,30/10/2023,202308,375.00,102124,Minicabs Cleethorpes (Lincs) Ltd
Education and Inclusion,Revenue Budgets,Childrens Services,Education Transport,A0254,Home To School Transport Sen,A32020,Home to School Transport,30158843,30/10/2023,202308,375.00,102124,Minicabs Cleethorpes (Lincs) Ltd
Education and Inclusion,Revenue Budgets,Childrens Services,Education Transport,A0252,Home To Sch Transport Pri-Grim,A32020,Home to School Transport,30158851,30/10/2023,202308,"1,258.00",102124,Minicabs Cleethorpes (Lincs) Ltd
Education and Inclusion,Revenue Budgets,Childrens Services,Education Transport,A0254,Home To School Transport Sen,A32020,Home to School Transport,30158854,30/10/2023,202308,864.00,102124,Minicabs Cleethorpes (Lincs) Ltd
Education and Inclusion,Revenue Budgets,Childrens Services,Education Transport,A0252,Home To Sch Transport Pri-Grim,A32020,Home to School Transport,30158862,30/10/2023,202308,"1,260.00",102124,Minicabs Cleethorpes (Lincs) Ltd
Education and Inclusion,Revenue Budgets,Childrens Services,Education Transport,A0254,Home To School Transport Sen,A32020,Home to School Transport,30158869,30/10/2023,202308,306.25,102124,Minicabs Cleethorpes (Lincs) Ltd
Education and Inclusion,Revenue Budgets,Childrens Services,Education Transport,A0249,Excluded And Ap Transport,A32020,Home to School Transport,30158869,30/10/2023,202308,918.75,102124,Minicabs Cleethorpes (Lincs) Ltd
Education and Inclusion,Revenue Budgets,Childrens Services,Education Transport,A0254,Home To School Transport Sen,A32020,Home to School Transport,30158870,30/10/2023,202308,"1,275.00",102124,Minicabs Cleethorpes (Lincs) Ltd
Education and Inclusion,Revenue Budgets,Childrens Services,Education Transport,A0247,Post 16 Sen,A32020,Home to School Transport,30158877,30/10/2023,202308,"3,906.00",102124,Minicabs Cleethorpes (Lincs) Ltd
Education and Inclusion,Revenue Budgets,Childrens Services,Education Transport,A0254,Home To School Transport Sen,A32020,Home to School Transport,30159169,30/10/2023,202308,"1,120.00",102124,Minicabs Cleethorpes (Lincs) Ltd
Education and Inclusion,Revenue Budgets,Childrens Services,Sen/Inclusion,A1858,Education Other than After Schools,A49105,Other Supplies & Services,30160986,30/10/2023,202308,"2,645.00",1005408,S&F Equestrian Alternative Learning Ltd
Education and Inclusion,Revenue Budgets,Childrens Services,Education Transport,A0254,Home To School Transport Sen,A32020,Home to School Transport,30158553,31/10/2023,202308,595.00,1007691,Ash Taxis Limited
Education and Inclusion,Revenue Budgets,Childrens Services,Education Transport,A0254,Home To School Transport Sen,A32020,Home to School Transport,30158588,31/10/2023,202308,"2,100.00",144612,Dj Taxis Scunthorpe Limited
Education and Inclusion,Revenue Budgets,Childrens Services,Education Transport,A0247,Post 16 Sen,A32020,Home to School Transport,30158592,31/10/2023,202308,"1,239.00",1007691,Ash Taxis Limited
Education and Inclusion,Revenue Budgets,Childrens Services,Education Transport,A0253,Home To Sch Transport Sec-Gy,A32020,Home to School Transport,30158834,31/10/2023,202308,640.00,100578,Coxons Cars Limited
Education and Inclusion,Revenue Budgets,Childrens Services,Education Transport,A0254,Home To School Transport Sen,A32020,Home to School Transport,30158859,31/10/2023,202308,580.00,100578,Coxons Cars Limited
Education and Inclusion,Revenue Budgets,Childrens Services,Education Transport,A0247,Post 16 Sen,A32020,Home to School Transport,30158867,31/10/2023,202308,360.00,100578,Coxons Cars Limited
Education and Inclusion,Capital Spend,Childrens Services,Sufficiency Of School Places,Y1868,Cleethorpes Academy,C01009,"New Construction, conversion & renovation",30159040,31/10/2023,202308,"1,380.00",101924,Grade 3 Limited
Education and Inclusion,Revenue Budgets,Childrens Services,Education Transport,A0254,Home To School Transport Sen,A47008,Contributions - Other,30159471,31/10/2023,202308,432.00,REDACTED PERSONAL INFORMATION,REDACTED PERSONAL INFORMATION
Education and Inclusion,Revenue Budgets,Childrens Services,Education Transport,A0247,Post 16 Sen,A47008,Contributions - Other,30159477,31/10/2023,202308,342.00,REDACTED PERSONAL INFORMATION,REDACTED PERSONAL INFORMATION
Education and Inclusion,Revenue Budgets,Childrens Services,Education Transport,A0254,Home To School Transport Sen,A32020,Home to School Transport,30159686,31/10/2023,202308,"1,639.99",101030,Amvale Limited
Education and Inclusion,Revenue Budgets,Childrens Services,Education Transport,A0254,Home To School Transport Sen,A32020,Home to School Transport,30159692,31/10/2023,202308,"1,639.99",101030,Amvale Limited
Education and Inclusion,Capital Spend,Childrens Services,Sufficiency Of School Places,Y1096,Stanford Primary,C01009,"New Construction, conversion & renovation",30159962,31/10/2023,202308,"126,321.58",144162,Topcon Building Ltd
Education and Inclusion,Revenue Budgets,Childrens Services,Education Transport,A0254,Home To School Transport Sen,A32020,Home to School Transport,30160668,31/10/2023,202308,"1,387.20",1000227,Mrs Sandra Delatouche - Sandy's Taxis
Education and Inclusion,Revenue Budgets,Childrens Services,Education Transport,A0254,Home To School Transport Sen,A32020,Home to School Transport,30160763,31/10/2023,202308,"1,496.00",101222,Aa Radio Cars Ltd
Education and Inclusion,Revenue Budgets,Childrens Services,Education Transport,A0254,Home To School Transport Sen,A32020,Home to School Transport,30160770,31/10/2023,202308,713.00,101222,Aa Radio Cars Ltd
Education and Inclusion,Revenue Budgets,Childrens Services,Education Transport,A0254,Home To School Transport Sen,A32020,Home to School Transport,30160780,31/10/2023,202308,812.00,101222,Aa Radio Cars Ltd
Education and Inclusion,Revenue Budgets,Childrens Services,Education Transport,A0254,Home To School Transport Sen,A32020,Home to School Transport,30160781,31/10/2023,202308,"1,950.00",101222,Aa Radio Cars Ltd
Education and Inclusion,Revenue Budgets,Childrens Services,Sen/Inclusion,A1783,Top-Up Non-Maintained & Indepe,A52005,Payments to Other Local Authorities,30160814,31/10/2023,202308,"4,761.36",1003323,More Than Ed Independent School Limited
Education and Inclusion,Revenue Budgets,Childrens Services,Education Transport,A0254,Home To School Transport Sen,A32020,Home to School Transport,30160858,31/10/2023,202308,"3,024.00",130777,Amvale Medical Transport Ltd
Education and Inclusion,Revenue Budgets,Childrens Services,Education Transport,A0253,Home To Sch Transport Sec-Gy,A32020,Home to School Transport,30160860,31/10/2023,202308,"2,676.96",130777,Amvale Medical Transport Ltd
Education and Inclusion,Revenue Budgets,Childrens Services,Education Transport,A0254,Home To School Transport Sen,A32020,Home to School Transport,30160863,31/10/2023,202308,"4,233.00",130777,Amvale Medical Transport Ltd
Education and Inclusion,Revenue Budgets,Childrens Services,Education Transport,A0254,Home To School Transport Sen,A32020,Home to School Transport,30160864,31/10/2023,202308,"4,233.00",130777,Amvale Medical Transport Ltd
Education and Inclusion,Revenue Budgets,Childrens Services,Education Transport,A0254,Home To School Transport Sen,A32020,Home to School Transport,30160882,31/10/2023,202308,"3,120.00",130777,Amvale Medical Transport Ltd
Education and Inclusion,Revenue Budgets,Childrens Services,Education Transport,A0254,Home To School Transport Sen,A32020,Home to School Transport,30160884,31/10/2023,202308,"2,544.00",130777,Amvale Medical Transport Ltd
Education and Inclusion,Revenue Budgets,Childrens Services,Education Transport,A0254,Home To School Transport Sen,A32020,Home to School Transport,30161019,31/10/2023,202308,"2,873.00",130777,Amvale Medical Transport Ltd
Education and Inclusion,Revenue Budgets,Childrens Services,Education Transport,A0254,Home To School Transport Sen,A32020,Home to School Transport,30161023,31/10/2023,202308,"2,592.00",130777,Amvale Medical Transport Ltd
Education and Inclusion,Revenue Budgets,Childrens Services,Education Transport,A0254,Home To School Transport Sen,A32020,Home to School Transport,30161024,31/10/2023,202308,"2,592.00",130777,Amvale Medical Transport Ltd
Education and Inclusion,Revenue Budgets,Childrens Services,Education Transport,A0254,Home To School Transport Sen,A32020,Home to School Transport,30161026,31/10/2023,202308,"2,592.00",130777,Amvale Medical Transport Ltd
Education and Inclusion,Revenue Budgets,Childrens Services,Education Transport,A0254,Home To School Transport Sen,A32020,Home to School Transport,30161028,31/10/2023,202308,"2,864.00",130777,Amvale Medical Transport Ltd
Education and Inclusion,Revenue Budgets,Childrens Services,Education Transport,A0254,Home To School Transport Sen,A32020,Home to School Transport,30161038,31/10/2023,202308,"2,873.00",130777,Amvale Medical Transport Ltd
Education and Inclusion,Revenue Budgets,Childrens Services,Education Transport,A0254,Home To School Transport Sen,A32020,Home to School Transport,30161042,31/10/2023,202308,"3,043.00",130777,Amvale Medical Transport Ltd
Education and Inclusion,Revenue Budgets,Childrens Services,Education Transport,A0254,Home To School Transport Sen,A32020,Home to School Transport,30161682,31/10/2023,202308,"1,803.00",100546,Links Taxis
Education and Inclusion,Revenue Budgets,Childrens Services,Education Transport,A0254,Home To School Transport Sen,A32020,Home to School Transport,30161687,31/10/2023,202308,855.00,100546,Links Taxis
Education and Inclusion,Revenue Budgets,Childrens Services,Education Transport,A0254,Home To School Transport Sen,A32020,Home to School Transport,30161691,31/10/2023,202308,611.00,100546,Links Taxis
Education and Inclusion,Revenue Budgets,Childrens Services,Education Transport,A0254,Home To School Transport Sen,A32020,Home to School Transport,30161692,31/10/2023,202308,"2,414.00",100546,Links Taxis
Education and Inclusion,Revenue Budgets,Childrens Services,Education Transport,A0248,Exceptional Circumstances,A32020,Home to School Transport,30161693,31/10/2023,202308,441.00,100546,Links Taxis
Education and Inclusion,Revenue Budgets,Childrens Services,Education Transport,A0254,Home To School Transport Sen,A32020,Home to School Transport,30161706,31/10/2023,202308,630.00,100546,Links Taxis
Education and Inclusion,Revenue Budgets,Childrens Services,Education Transport,A0254,Home To School Transport Sen,A32020,Home to School Transport,30161710,31/10/2023,202308,"1,300.00",100546,Links Taxis
Education and Inclusion,Revenue Budgets,Childrens Services,Education Transport,A0254,Home To School Transport Sen,A32020,Home to School Transport,30161711,31/10/2023,202308,490.00,100546,Links Taxis
Education and Inclusion,Revenue Budgets,Childrens Services,Education Transport,A0253,Home To Sch Transport Sec-Gy,A32020,Home to School Transport,30161850,31/10/2023,202308,960.00,100546,Links Taxis
Education and Inclusion,Revenue Budgets,Childrens Services,Education Transport,A0254,Home To School Transport Sen,A32020,Home to School Transport,30161851,31/10/2023,202308,"1,224.00",100546,Links Taxis
Education and Inclusion,Revenue Budgets,Childrens Services,Education Transport,A0254,Home To School Transport Sen,A32020,Home to School Transport,30161853,31/10/2023,202308,"3,562.50",100546,Links Taxis
Education and Inclusion,Revenue Budgets,Childrens Services,Education Transport,A0254,Home To School Transport Sen,A32020,Home to School Transport,30161855,31/10/2023,202308,672.00,100546,Links Taxis
Education and Inclusion,Revenue Budgets,Childrens Services,Education Transport,A0254,Home To School Transport Sen,A32020,Home to School Transport,30161858,31/10/2023,202308,555.00,100546,Links Taxis
Education and Inclusion,Revenue Budgets,Childrens Services,Education Transport,A0253,Home To Sch Transport Sec-Gy,A32020,Home to School Transport,30161859,31/10/2023,202308,"1,020.00",100546,Links Taxis
Education and Inclusion,Revenue Budgets,Childrens Services,Education Transport,A0254,Home To School Transport Sen,A32020,Home to School Transport,30161863,31/10/2023,202308,"4,543.00",100546,Links Taxis
Education and Inclusion,Revenue Budgets,Childrens Services,Education Transport,A0253,Home To Sch Transport Sec-Gy,A32020,Home to School Transport,30161864,31/10/2023,202308,912.00,100546,Links Taxis
Education and Inclusion,Revenue Budgets,Childrens Services,Education Transport,A0254,Home To School Transport Sen,A32020,Home to School Transport,30161867,31/10/2023,202308,"1,353.00",100546,Links Taxis
Education and Inclusion,Revenue Budgets,Childrens Services,Education Transport,A0254,Home To School Transport Sen,A32020,Home to School Transport,30161869,31/10/2023,202308,799.00,100546,Links Taxis
Education and Inclusion,Revenue Budgets,Childrens Services,Education Transport,A0254,Home To School Transport Sen,A32020,Home to School Transport,30161870,31/10/2023,202308,354.00,100546,Links Taxis
Education and Inclusion,Revenue Budgets,Childrens Services,Education Transport,A0254,Home To School Transport Sen,A32020,Home to School Transport,30161871,31/10/2023,202308,780.00,100546,Links Taxis
Education and Inclusion,Revenue Budgets,Childrens Services,Sen/Inclusion,A1783,Top-Up Non-Maintained & Indepe,A52005,Payments to Other Local Authorities,30162177,31/10/2023,202308,"2,833.32",146355,Castles Education Llp
Education and Inclusion,Revenue Budgets,Childrens Services,Sen/Inclusion,A1783,Top-Up Non-Maintained & Indepe,A52005,Payments to Other Local Authorities,30162188,31/10/2023,202308,"4,760.00",146355,Castles Education Llp
Education and Inclusion,Revenue Budgets,Childrens Services,Sen/Inclusion,A1783,Top-Up Non-Maintained & Indepe,A52005,Payments to Other Local Authorities,30162191,31/10/2023,202308,"6,093.85",146355,Castles Education Llp
Education and Inclusion,Revenue Budgets,Childrens Services,Sen/Inclusion,A1783,Top-Up Non-Maintained & Indepe,A52005,Payments to Other Local Authorities,30162193,31/10/2023,202308,"5,235.12",146355,Castles Education Llp
Education and Inclusion,Revenue Budgets,Childrens Services,Sen/Inclusion,A1783,Top-Up Non-Maintained & Indepe,A52005,Payments to Other Local Authorities,30162195,31/10/2023,202308,"3,471.28",146355,Castles Education Llp
Education and Inclusion,Revenue Budgets,Childrens Services,Sen/Inclusion,A1783,Top-Up Non-Maintained & Indepe,A52005,Payments to Other Local Authorities,30162196,31/10/2023,202308,"3,737.94",146355,Castles Education Llp
Education and Inclusion,Revenue Budgets,Childrens Services,Sen/Inclusion,A1783,Top-Up Non-Maintained & Indepe,A52005,Payments to Other Local Authorities,30162198,31/10/2023,202308,"4,391.68",146355,Castles Education Llp
Education and Inclusion,Revenue Budgets,Childrens Services,Sen/Inclusion,A1783,Top-Up Non-Maintained & Indepe,A52005,Payments to Other Local Authorities,30162201,31/10/2023,202308,"4,760.00",146355,Castles Education Llp
Education and Inclusion,Revenue Budgets,Childrens Services,Sen/Inclusion,A1783,Top-Up Non-Maintained & Indepe,A52005,Payments to Other Local Authorities,30162206,31/10/2023,202308,"5,270.00",146355,Castles Education Llp
Education and Inclusion,Revenue Budgets,Childrens Services,Sen/Inclusion,A1783,Top-Up Non-Maintained & Indepe,A52005,Payments to Other Local Authorities,30162207,31/10/2023,202308,"5,426.91",146355,Castles Education Llp
Education and Inclusion,Revenue Budgets,Childrens Services,Sen/Inclusion,A1783,Top-Up Non-Maintained & Indepe,A52005,Payments to Other Local Authorities,30162208,31/10/2023,202308,"4,760.00",146355,Castles Education Llp
Education and Inclusion,Revenue Budgets,Childrens Services,Sen/Inclusion,A1783,Top-Up Non-Maintained & Indepe,A52005,Payments to Other Local Authorities,30162209,31/10/2023,202308,"3,400.00",146355,Castles Education Llp
Education and Inclusion,Revenue Budgets,Childrens Services,Sen/Inclusion,A1783,Top-Up Non-Maintained & Indepe,A52005,Payments to Other Local Authorities,30162210,31/10/2023,202308,"4,760.00",146355,Castles Education Llp
Education and Inclusion,Revenue Budgets,Childrens Services,Sen/Inclusion,A1783,Top-Up Non-Maintained & Indepe,A52005,Payments to Other Local Authorities,30162211,31/10/2023,202308,"4,760.00",146355,Castles Education Llp
Education and Inclusion,Revenue Budgets,Childrens Services,Sen/Inclusion,A1783,Top-Up Non-Maintained & Indepe,A52005,Payments to Other Local Authorities,30162213,31/10/2023,202308,"4,760.00",146355,Castles Education Llp
Education and Inclusion,Revenue Budgets,Childrens Services,Sen/Inclusion,A1783,Top-Up Non-Maintained & Indepe,A52005,Payments to Other Local Authorities,30162220,31/10/2023,202308,"5,697.18",146355,Castles Education Llp
Education and Inclusion,Revenue Budgets,Childrens Services,Sen/Inclusion,A1783,Top-Up Non-Maintained & Indepe,A52005,Payments to Other Local Authorities,30162221,31/10/2023,202308,"5,182.82",146355,Castles Education Llp
Education and Inclusion,Revenue Budgets,Childrens Services,Sen/Inclusion,A1783,Top-Up Non-Maintained & Indepe,A52005,Payments to Other Local Authorities,30162223,31/10/2023,202308,"4,193.32",146355,Castles Education Llp
Education and Inclusion,Revenue Budgets,Childrens Services,Sen/Inclusion,A1783,Top-Up Non-Maintained & Indepe,A52005,Payments to Other Local Authorities,30162224,31/10/2023,202308,"6,093.85",146355,Castles Education Llp
Education and Inclusion,Revenue Budgets,Childrens Services,Sen/Inclusion,A1783,Top-Up Non-Maintained & Indepe,A52005,Payments to Other Local Authorities,30162225,31/10/2023,202308,"6,595.12",146355,Castles Education Llp
Education and Inclusion,Revenue Budgets,Childrens Services,Sen/Inclusion,A1783,Top-Up Non-Maintained & Indepe,A52005,Payments to Other Local Authorities,30162226,31/10/2023,202308,"4,193.32",146355,Castles Education Llp
Education and Inclusion,Revenue Budgets,Childrens Services,Education Transport,A0254,Home To School Transport Sen,A32020,Home to School Transport,30163066,31/10/2023,202308,513.00,100546,Links Taxis
Education and Inclusion,Revenue Budgets,Childrens Services,Education Transport,A0254,Home To School Transport Sen,A32020,Home to School Transport,30163067,31/10/2023,202308,855.00,100546,Links Taxis
Education and Inclusion,Revenue Budgets,Childrens Services,Education Transport,A0254,Home To School Transport Sen,A32020,Home to School Transport,30163068,31/10/2023,202308,"1,342.00",100546,Links Taxis
Education and Inclusion,Revenue Budgets,Childrens Services,Education Transport,A0254,Home To School Transport Sen,A32020,Home to School Transport,30163070,31/10/2023,202308,"1,366.40",100546,Links Taxis
Education and Inclusion,Revenue Budgets,Childrens Services,Education Transport,A0254,Home To School Transport Sen,A32020,Home to School Transport,30163076,31/10/2023,202308,780.00,100546,Links Taxis
Education and Inclusion,Revenue Budgets,Childrens Services,Education Transport,A0252,Home To Sch Transport Pri-Grim,A32020,Home to School Transport,30163079,31/10/2023,202308,"1,230.00",100546,Links Taxis
Education and Inclusion,Revenue Budgets,Childrens Services,Education Transport,A0254,Home To School Transport Sen,A32020,Home to School Transport,30163089,31/10/2023,202308,"2,634.80",100546,Links Taxis
Education and Inclusion,Revenue Budgets,Childrens Services,Education Transport,A0254,Home To School Transport Sen,A32020,Home to School Transport,30163090,31/10/2023,202308,"1,632.00",100546,Links Taxis
Education and Inclusion,Revenue Budgets,Childrens Services,Education Transport,A0254,Home To School Transport Sen,A32020,Home to School Transport,30163093,31/10/2023,202308,"1,842.00",100546,Links Taxis
Education and Inclusion,Revenue Budgets,Childrens Services,Education Transport,A0254,Home To School Transport Sen,A32020,Home to School Transport,30163105,31/10/2023,202308,"1,080.00",100546,Links Taxis
Education and Inclusion,Revenue Budgets,Childrens Services,Education Transport,A0254,Home To School Transport Sen,A32020,Home to School Transport,30163114,31/10/2023,202308,705.00,100546,Links Taxis
Education and Inclusion,Revenue Budgets,Childrens Services,Education Transport,A0249,Excluded And Ap Transport,A32020,Home to School Transport,30163117,31/10/2023,202308,588.00,100546,Links Taxis
Education and Inclusion,Revenue Budgets,Childrens Services,Education Transport,A0254,Home To School Transport Sen,A32020,Home to School Transport,30163119,31/10/2023,202308,630.00,100546,Links Taxis
Education and Inclusion,Revenue Budgets,Childrens Services,Education Transport,A0254,Home To School Transport Sen,A32020,Home to School Transport,30163151,31/10/2023,202308,"1,219.00",100546,Links Taxis
Education and Inclusion,Revenue Budgets,Childrens Services,Education Transport,A0254,Home To School Transport Sen,A32020,Home to School Transport,30163153,31/10/2023,202308,567.50,100546,Links Taxis
Education and Inclusion,Revenue Budgets,Childrens Services,Education Transport,A0254,Home To School Transport Sen,A32020,Home to School Transport,30163155,31/10/2023,202308,630.00,100546,Links Taxis
Education and Inclusion,Revenue Budgets,Childrens Services,Education Transport,A0254,Home To School Transport Sen,A32020,Home to School Transport,30163195,31/10/2023,202308,"2,355.00",100546,Links Taxis
Education and Inclusion,Revenue Budgets,Childrens Services,Education Transport,A0254,Home To School Transport Sen,A32020,Home to School Transport,30163204,31/10/2023,202308,884.00,100546,Links Taxis
Education and Inclusion,Revenue Budgets,Childrens Services,Education Transport,A0249,Excluded And Ap Transport,A32020,Home to School Transport,30163206,31/10/2023,202308,630.00,100546,Links Taxis
Education and Inclusion,Revenue Budgets,Childrens Services,Education Transport,A0249,Excluded And Ap Transport,A32020,Home to School Transport,30163207,31/10/2023,202308,264.00,100546,Links Taxis
Education and Inclusion,Revenue Budgets,Childrens Services,Education Transport,A0254,Home To School Transport Sen,A32020,Home to School Transport,30163216,31/10/2023,202308,588.00,100546,Links Taxis
Education and Inclusion,Revenue Budgets,Childrens Services,Education Transport,A0254,Home To School Transport Sen,A32020,Home to School Transport,30164159,31/10/2023,202308,"2,136.00",100546,Links Taxis
Education and Inclusion,Revenue Budgets,Childrens Services,Education Transport,A0254,Home To School Transport Sen,A32020,Home to School Transport,30164398,31/10/2023,202308,525.00,100546,Links Taxis
Education and Inclusion,Revenue Budgets,Childrens Services,Education Transport,A0247,Post 16 Sen,A32020,Home to School Transport,30164405,31/10/2023,202308,"1,794.00",100546,Links Taxis
Education and Inclusion,Revenue Budgets,Childrens Services,Education Transport,A0254,Home To School Transport Sen,A32020,Home to School Transport,30164407,31/10/2023,202308,"2,673.00",100546,Links Taxis
Education and Inclusion,Revenue Budgets,Childrens Services,Education Transport,A0254,Home To School Transport Sen,A32020,Home to School Transport,30164411,31/10/2023,202308,"1,904.00",100546,Links Taxis
Education and Inclusion,Revenue Budgets,Childrens Services,Education Transport,A0254,Home To School Transport Sen,A32020,Home to School Transport,30164412,31/10/2023,202308,"1,680.00",100546,Links Taxis
Education and Inclusion,Revenue Budgets,Childrens Services,Education Transport,A0247,Post 16 Sen,A32020,Home to School Transport,30164413,31/10/2023,202308,924.00,100546,Links Taxis
Education and Inclusion,Revenue Budgets,Childrens Services,Education Transport,A0254,Home To School Transport Sen,A32020,Home to School Transport,30164417,31/10/2023,202308,672.00,100546,Links Taxis
Education and Inclusion,Revenue Budgets,Childrens Services,Education Transport,A0247,Post 16 Sen,A32020,Home to School Transport,30164418,31/10/2023,202308,423.00,100546,Links Taxis
Education and Inclusion,Revenue Budgets,Childrens Services,Education Transport,A0254,Home To School Transport Sen,A32020,Home to School Transport,30164420,31/10/2023,202308,555.00,100546,Links Taxis
Education and Inclusion,Revenue Budgets,Childrens Services,Education Transport,A0254,Home To School Transport Sen,A32020,Home to School Transport,30164422,31/10/2023,202308,"1,162.00",100546,Links Taxis
Education and Inclusion,Revenue Budgets,Childrens Services,Education Transport,A0254,Home To School Transport Sen,A32020,Home to School Transport,30164423,31/10/2023,202308,"2,280.00",100546,Links Taxis
Education and Inclusion,Revenue Budgets,Childrens Services,Education Transport,A0254,Home To School Transport Sen,A32020,Home to School Transport,30164425,31/10/2023,202308,728.00,100546,Links Taxis
Education and Inclusion,Revenue Budgets,Childrens Services,Education Transport,A0247,Post 16 Sen,A32020,Home to School Transport,30164428,31/10/2023,202308,470.00,100546,Links Taxis
Education and Inclusion,Revenue Budgets,Childrens Services,Education Transport,A0254,Home To School Transport Sen,A32020,Home to School Transport,30164431,31/10/2023,202308,"1,952.00",100546,Links Taxis
Education and Inclusion,Revenue Budgets,Childrens Services,Education Transport,A0247,Post 16 Sen,A32020,Home to School Transport,30164440,31/10/2023,202308,"1,520.00",100546,Links Taxis
Education and Inclusion,Revenue Budgets,Childrens Services,Education Transport,A0254,Home To School Transport Sen,A32020,Home to School Transport,30164446,31/10/2023,202308,315.00,100546,Links Taxis
Education and Inclusion,Revenue Budgets,Childrens Services,Education Transport,A0254,Home To School Transport Sen,A32020,Home to School Transport,30164448,31/10/2023,202308,"2,727.00",100546,Links Taxis
Education and Inclusion,Revenue Budgets,Childrens Services,Education Transport,A0254,Home To School Transport Sen,A32020,Home to School Transport,30164449,31/10/2023,202308,650.00,100546,Links Taxis
Education and Inclusion,Revenue Budgets,Childrens Services,Education Transport,A0254,Home To School Transport Sen,A32020,Home to School Transport,30164454,31/10/2023,202308,270.00,100546,Links Taxis
Education and Inclusion,Revenue Budgets,Childrens Services,Education Transport,A0249,Excluded And Ap Transport,A32020,Home to School Transport,30164455,31/10/2023,202308,338.00,100546,Links Taxis
Education and Inclusion,Revenue Budgets,Childrens Services,Education Transport,A0254,Home To School Transport Sen,A32020,Home to School Transport,30164455,31/10/2023,202308,338.00,100546,Links Taxis
Education and Inclusion,Revenue Budgets,Childrens Services,Education Transport,A0247,Post 16 Sen,A32020,Home to School Transport,30164456,31/10/2023,202308,"1,050.00",100546,Links Taxis
Education and Inclusion,Revenue Budgets,Childrens Services,Education Transport,A0254,Home To School Transport Sen,A32020,Home to School Transport,30164469,31/10/2023,202308,"1,114.00",100546,Links Taxis
Education and Inclusion,Revenue Budgets,Childrens Services,Education Transport,A0249,Excluded And Ap Transport,A32020,Home to School Transport,30164490,31/10/2023,202308,387.42,100546,Links Taxis
Education and Inclusion,Revenue Budgets,Childrens Services,Education Transport,A0248,Exceptional Circumstances,A32020,Home to School Transport,30164490,31/10/2023,202308,553.46,100546,Links Taxis
Education and Inclusion,Revenue Budgets,Childrens Services,Education Transport,A0254,Home To School Transport Sen,A32020,Home to School Transport,30164490,31/10/2023,202308,"1,614.40",100546,Links Taxis
Education and Inclusion,Revenue Budgets,Childrens Services,Education Transport,A0254,Home To School Transport Sen,A32020,Home to School Transport,30164490,31/10/2023,202308,"4,427.68",100546,Links Taxis
Education and Inclusion,Revenue Budgets,Childrens Services,Sen/Inclusion,A1858,Education Other than After Schools,A52005,Payments to Other Local Authorities,30164555,31/10/2023,202308,926.25,146662,Targeted Provision Ltd
Education and Inclusion,Revenue Budgets,Childrens Services,Sen/Inclusion,A1858,Education Other than After Schools,A52005,Payments to Other Local Authorities,30164613,31/10/2023,202308,"1,820.00",146662,Targeted Provision Ltd
Education and Inclusion,Revenue Budgets,Childrens Services,Sen/Inclusion,A1858,Education Other than After Schools,A52005,Payments to Other Local Authorities,30164615,31/10/2023,202308,455.00,146662,Targeted Provision Ltd
Education and Inclusion,Revenue Budgets,Childrens Services,Sen/Inclusion,A1858,Education Other than After Schools,A52005,Payments to Other Local Authorities,30164617,31/10/2023,202308,330.00,146662,Targeted Provision Ltd
Education and Inclusion,Revenue Budgets,Childrens Services,Sen/Inclusion,A1858,Education Other than After Schools,A52005,Payments to Other Local Authorities,30164622,31/10/2023,202308,"1,137.50",146662,Targeted Provision Ltd
Education and Inclusion,Revenue Budgets,Childrens Services,Sen/Inclusion,A1858,Education Other than After Schools,A52005,Payments to Other Local Authorities,30164624,31/10/2023,202308,"2,280.00",146662,Targeted Provision Ltd
Education and Inclusion,Revenue Budgets,Childrens Services,Sen/Inclusion,A1858,Education Other than After Schools,A52005,Payments to Other Local Authorities,30164626,31/10/2023,202308,910.00,146662,Targeted Provision Ltd
Education and Inclusion,Revenue Budgets,Childrens Services,Sen/Inclusion,A1858,Education Other than After Schools,A52005,Payments to Other Local Authorities,30164628,31/10/2023,202308,"1,267.50",146662,Targeted Provision Ltd
Education and Inclusion,Revenue Budgets,Childrens Services,Sen/Inclusion,A1783,Top-Up Non-Maintained & Indepe,A52005,Payments to Other Local Authorities,30165115,31/10/2023,202308,"4,037.21",1000106,Gravity Red Inspires
Education and Inclusion,Revenue Budgets,Childrens Services,Sen/Inclusion,A1783,Top-Up Non-Maintained & Indepe,A52005,Payments to Other Local Authorities,30165119,31/10/2023,202308,"3,465.00",1000106,Gravity Red Inspires
Education and Inclusion,Revenue Budgets,Childrens Services,Sen/Inclusion,A1565,Top Up Funding Academies & Fre,A48900,Contingency Reserve,30158631,01/11/2023,202308,"3,849.00",107472,The Cambridge Park Academy
Education and Inclusion,Revenue Budgets,Childrens Services,Sen/Inclusion,A1565,Top Up Funding Academies & Fre,A48900,Contingency Reserve,30158631,01/11/2023,202308,"9,166.00",107472,The Cambridge Park Academy
Education and Inclusion,Revenue Budgets,Childrens Services,Sen/Inclusion,A1564,Top Up Funding Ap Provision,A48900,Contingency Reserve,30158631,01/11/2023,202308,"66,333.00",128660,Sevenhills Academy
Education and Inclusion,Revenue Budgets,Childrens Services,Sen/Inclusion,A1564,Top Up Funding Ap Provision,A48900,Contingency Reserve,30158631,01/11/2023,202308,"81,134.00",126685,Phoenix Park Academy
Education and Inclusion,Revenue Budgets,Childrens Services,Sen/Inclusion,A1565,Top Up Funding Academies & Fre,A48900,Contingency Reserve,30158631,01/11/2023,202308,"157,913.00",107911,Humberston Park Special School
Education and Inclusion,Revenue Budgets,Childrens Services,Sen/Inclusion,A1565,Top Up Funding Academies & Fre,A48900,Contingency Reserve,30158631,01/11/2023,202308,"196,088.00",107472,The Cambridge Park Academy
Education and Inclusion,Revenue Budgets,Childrens Services,Sen/Inclusion,A1564,Top Up Funding Ap Provision,A49105,Other Supplies & Services,30158631,01/11/2023,202308,"2,013.00",121907,Eastfield Primary Academy
Education and Inclusion,Revenue Budgets,Childrens Services,Sen/Inclusion,A1564,Top Up Funding Ap Provision,A49105,Other Supplies & Services,30158631,01/11/2023,202308,"6,300.00",121907,Eastfield Primary Academy
Education and Inclusion,Revenue Budgets,Childrens Services,Sen/Inclusion,A1564,Top Up Funding Ap Provision,A49105,Other Supplies & Services,30158631,01/11/2023,202308,"9,450.00",121907,Eastfield Primary Academy
Education and Inclusion,Revenue Budgets,Childrens Services,Education Transport,A0254,Home To School Transport Sen,A32020,Home to School Transport,30158657,01/11/2023,202308,440.00,1007792,Scartho Cars Ltd
Education and Inclusion,Revenue Budgets,Childrens Services,Sen/Inclusion,A1783,Top-Up Non-Maintained & Indepe,A52005,Payments to Other Local Authorities,30159037,01/11/2023,202308,"9,564.68",100406,Kisimul School
Education and Inclusion,Revenue Budgets,Childrens Services,Pupil Support Safeguard/Wellbeing,A0513,Lac Education,A60010,Tuition &/or Board Fees,30159315,01/11/2023,202308,360.00,1005014,Twist & Flip Gymnastics
